Workbook

Sheet Meni
A1: Годишњи финансијски извештај за 2025. годину
A2: Изаберите филијалу, здравствену установу, упишите датум попуњавања, попуните податке о здравственој установи, попуните обрасцe и податке сачувајте кликом на дугме САЧУВАЈ (назив документа треба да буде шифра установе)
C7: 19.02.2026.
C10: Дом здравља Уб
C11: Уб
C12: 17211692
C13: 101349256
C14: 840-407661-24
G21: =IF(KontrolaF!J12 ="","Filijala nije obavila dodatnu kontrolu!", "Filijala je obavila dodatnu kontrolu!") -> Filijala nije obavila dodatnu kontrolu!
A29: 09 ВАЉЕВО | B29: =LEFT(A29,2) -> 09 | D29: 100209001 ДЗ УБ | E29: =LEFT(D29,8) -> 10020900
A30: 01 СУБОТИЦА | B30: 01 | C30: 100201001 ДЗ БАЧКА ТОПОЛА | D30: 100209001 ДЗ УБ
A31: 02 ЗРЕЊАНИН | B31: 01 | C31: 100201002 ДЗ МАЛИ ИЂОШ | D31: 100209003 АП ВАЉЕВО
A32: 03 КИКИНДА | B32: 01 | C32: 100201004 ЗЈЗ СУБОТИЦА | D32: 100209004 ДЗ ЛАЈКОВАЦ
A33: 04 ПАНЧЕВО | B33: 01 | C33: 100201005 АП СУБОТИЦА | D33: 100209005 ЗЈЗ ВАЉЕВО
A34: 05 СОМБОР | B34: 01 | C34: 100201006 ДЗ СУБОТИЦА | D34: 100209008 ДЗ ОСЕЧИНА
A35: 06 НОВИ САД | B35: 01 | C35: 100201007 ОБ СУБОТИЦА | D35: 100209009 ДЗ ЉИГ
A36: 07 СРЕМСКА МИТРОВИЦА | B36: 02 | C36: 100202001 ДЗ ЖИТИШТЕ | D36: 100209010 ДЗ МИОНИЦА
A37: 08 ШАБАЦ | B37: 02 | C37: 100202003 ДЗ НОВИ БЕЧЕЈ | D37: 100209012 ЗЦ ВАЉЕВО
A38: 09 ВАЉЕВО | B38: 02 | C38: 100202004 ДЗ СЕЧАЊ
A39: 10 СМЕДЕРЕВО | B39: 02 | C39: 100202005 ДЗ СРПСКА ЦРЊА
A40: 11 ПОЖАРЕВАЦ | B40: 02 | C40: 100202007 СБ ЗА РЕХАБИЛИТАЦИЈУ РУСАНДА, МЕЛЕНЦИ
A41: 12 КРАГУЈЕВАЦ | B41: 02 | C41: 100202008 СБ ЗА ПЛУЋНЕ БОЛЕСТИ ЗРЕЊАНИН
A42: 13 ЈАГОДИНА | B42: 02 | C42: 100202009 ЗЈЗ ЗРЕЊАНИН
A43: 14 БОР | B43: 02 | C43: 100202010 АП ЗРЕЊАНИН
A44: 15 ЗАЈЕЧАР | B44: 02 | C44: 100202011 ДЗ ЗРЕЊАНИН
A45: 16 УЖИЦЕ | B45: 02 | C45: 100202012 ОБ ЗРЕЊАНИН
A46: 17 ЧАЧАК | B46: 03 | C46: 100203001 ДЗ АДА
A47: 18 КРАЉЕВО | B47: 03 | C47: 100203002 ДЗ КАЊИЖА
A48: 19 КРУШЕВАЦ | B48: 03 | C48: 100203003 ДЗ НОВИ КНЕЖЕВАЦ
A49: 20 НИШ | B49: 03 | C49: 100203004 ДЗ ЧОКА
A50: 21 ПРОКУПЉЕ | B50: 03 | C50: 100203007 СБ НОВИ КНЕЖЕВАЦ
A51: 22 ПИРОТ | B51: 03 | C51: 100203008 СБ ЗА РЕХАБИЛИТАЦИЈУ БАЊА КАЊИЖА
A52: 23 ЛЕСКОВАЦ | B52: 03 | C52: 100203009 ЗЈЗ КИКИНДА
A53: 24 ВРАЊЕ | B53: 03 | C53: 100203010 АП КИКИНДА
A54: 25 ГРАЧАНИЦА | B54: 03 | C54: 100203011 ДЗ КИКИНДА
A55: 28 КОСОВСКА МИТРОВИЦА | B55: 03 | C55: 100203012 OБ КИКИНДА
A56: 29 ГЊИЛАНЕ | B56: 03 | C56: 100203013 ДЗ СЕНТА
A57: 30 БЕОГРАД | B57: 03 | C57: 100203014 ОБ СЕНТА
A58: 33 НОВИ ПАЗАР | B58: 03 | C58: 100203015 АП СЕНТА
B59: 04 | C59: 100204001 ДЗ АЛИБУНАР
B60: 04 | C60: 100204002 ДЗ БЕЛА ЦРКВА
B61: 04 | C61: 100204003 ДЗ КОВАЧИЦА
B62: 04 | C62: 100204004 ДЗ КОВИН
B63: 04 | C63: 100204005 ДЗ ОПОВО
B64: 04 | C64: 100204006 ДЗ ПЛАНДИШТЕ
B65: 04 | C65: 100204009 СБ ЗА ПЛУЋНЕ БОЛЕСТИ БЕЛА ЦРКВА
B66: 04 | C66: 100204010 СБ ЗА ПСИХИЈАТРИЈСКЕ БОЛЕСТИ ВРШАЦ
B67: 04 | C67: 100204011 СБ ЗА ПСИХИЈАТРИЈСКЕ БОЛЕСТИ КОВИН
B68: 04 | C68: 100204012 ЗЈЗ ПАНЧЕВО
B69: 04 | C69: 100204013 АП ПАНЧЕВО
B70: 04 | C70: 100204014 АП ВРШАЦ
B71: 04 | C71: 100204015 ДЗ ВРШАЦ
B72: 04 | C72: 100204016 ОБ ВРШАЦ
B73: 04 | C73: 100204017 ДЗ ПАНЧЕВО
B74: 04 | C74: 100204018 ОБ ПАНЧЕВО
B75: 05 | C75: 100205001 ДЗ АПАТИН
B76: 05 | C76: 100205002 ДЗ КУЛА
B77: 05 | C77: 100205003 ДЗ ОЏАЦИ
B78: 05 | C78: 100205005 ЗЈЗ СОМБОР
B79: 05 | C79: 100205006 АП СОМБОР
B80: 05 | C80: 100205007 ДЗ СОМБОР
B81: 05 | C81: 100205008 ОБ СОМБОР
B82: 05 | C82: 100205009 СБ ЗА РЕХАБИЛИТАЦИЈУ ЈУНАКОВИЋ АПАТИН
B83: 06 | C83: 100206001 ДЗ БАЧ
B84: 06 | C84: 100206002 ДЗ БАЧКА ПАЛАНКА
B85: 06 | C85: 100206003 ДЗ БАЧКИ ПЕТРОВАЦ
B86: 06 | C86: 100206004 ДЗ БЕОЧИН
B87: 06 | C87: 100206005 ДЗ БЕЧЕЈ
B88: 06 | C88: 100206006 ДЗ ЖАБАЉ
B89: 06 | C89: 100206007 ДЗ СРБОБРАН
B90: 06 | C90: 100206008 ДЗ ТЕМЕРИН
B91: 06 | C91: 100206009 ДЗ ТИТЕЛ
B92: 06 | C92: 100206010 ДЗ НОВИ САД
B93: 06 | C93: 100206012 ЗАВОД ЗА ТРАНСФУЗИЈУ КРВИ ВОЈВОДИНЕ
B94: 06 | C94: 100206013 СБ ЗА РЕУМАТСКЕ БОЛЕСТИ НОВИ САД
B95: 06 | C95: 100206014 ИЗЈЗ ВОЈВОДИНЕ
B96: 06 | C96: 100206015 ИНСТИТУТ ЗА ОНКОЛОГИЈУ ВОЈВОДИНЕ
B97: 06 | C97: 100206016 ИНСТИТУТ ЗА ПЛУЋНЕ БОЛЕСТИ ВОЈВОДИНЕ
B98: 06 | C98: 100206017 ИКВБ ВОЈВОДИНЕ
B99: 06 | C99: 100206018 ИНСТИТУТ ЗА ЗЗ ДЕЦЕ И ОМЛАДИНЕ ВОЈВОДИНЕ
B100: 06 | C100: 100206019 КЛИНИКА ЗА ДЕНТАЛНУ МЕДИЦИНУ ВОЈВОДИНЕ
B101: 06 | C101: 100206020 УНИВЕРЗИТЕТСКИ КЛИНИЧКИ ЦЕНТАР ВОЈВОДИНЕ
B102: 06 | C102: 100206021 ЗЗЗ РАДНИКА НОВИ САД
B103: 06 | C103: 100206022 ЗЗЗ СТУДЕНАТА НОВИ САД
B104: 06 | C104: 100206023 ПАСТЕРОВ ЗАВОД НОВИ САД
B105: 06 | C105: 100206024 АП НОВИ САД
B106: 06 | C106: 100206025 ЗАВОД ЗА УРГЕНТНУ МЕДИЦИНУ НОВИ САД
B107: 06 | C107: 100206026 ДЗ ВРБАС
B108: 06 | C108: 100206027 ОБ ВРБАС
B109: 06 | C109: 100206028 АП ВРБАС
B110: 06 | C110: 100206029 ВМЦ НОВИ САД
B111: 07 | C111: 100207001 ДЗ ИНЂИЈА
B112: 07 | C112: 100207002 ДЗ ПЕЋИНЦИ
B113: 07 | C113: 100207003 ДЗ РУМА
B114: 07 | C114: 100207004 ДЗ СТАРА ПАЗОВА
B115: 07 | C115: 100207005 ДЗ ШИД
B116: 07 | C116: 100207007 СБ СТАРИ СЛАНКАМЕН
B117: 07 | C117: 100207008 ЗЈЗ СРЕМСКА МИТРОВИЦА
B118: 07 | C118: 100207009 СБ ЗА РЕХАБИЛИТАЦИЈУ ТЕРМАЛ ВРДНИК
B119: 07 | C119: 100207010 АП СРЕМСКА МИТРОВИЦА
B120: 07 | C120: 100207011 ДЗ ИРИГ
B121: 07 | C121: 100207012 ДЗ СРЕМСКА МИТРОВИЦА
B122: 07 | C122: 100207013 ОБ СРЕМСКА МИТРОВИЦА
B123: 08 | C123: 100208001 ДЗ БОГАТИЋ
B124: 08 | C124: 100208002 ДЗ ЉУБОВИЈА
B125: 08 | C125: 100208005 СБ ЗА РЕХАБИЛИТАЦИЈУ БАЊА КОВИЉАЧА
B126: 08 | C126: 100208006 ЗЈЗ ШАБАЦ
B127: 08 | C127: 100208007 АУ ЛОЗНИЦА
B128: 08 | C128: 100208008 АП ШАБАЦ
B129: 08 | C129: 100208009 ОБ ШАБАЦ
B130: 08 | C130: 100208010 ДЗ ШАБАЦ
B131: 08 | C131: 100208011 ДЗ ВЛАДИМИРЦИ
B132: 08 | C132: 100208012 ДЗ КОЦЕЉЕВА
B133: 08 | C133: 100208014 ДЗ КРУПАЊ
B134: 08 | C134: 100208015 ДЗ МАЛИ ЗВОРНИК
B135: 08 | C135: 100208017 ЗЦ ЛОЗНИЦА
B136: 08 | C136: 100208018 ЗЦ ШАБАЦ
B137: 09 | C137: 100209001 ДЗ УБ
B138: 09 | C138: 100209003 АП ВАЉЕВО
B139: 09 | C139: 100209004 ДЗ ЛАЈКОВАЦ
B140: 09 | C140: 100209005 ЗЈЗ ВАЉЕВО
B141: 09 | C141: 100209008 ДЗ ОСЕЧИНА
B142: 09 | C142: 100209009 ДЗ ЉИГ
B143: 09 | C143: 100209010 ДЗ МИОНИЦА
B144: 09 | C144: 100209012 ЗЦ ВАЉЕВО
B145: 10 | C145: 100210002 ОБ СМЕДЕРЕВСКА ПАЛАНКА
B146: 10 | C146: 100210003 АП СМЕДЕРЕВСКА ПАЛАНКА
B147: 10 | C147: 100210004 АП СМЕДЕРЕВО
B148: 10 | C148: 100210005 ДЗ ВЕЛИКА ПЛАНА
B149: 10 | C149: 100210006 ДЗ СМЕДЕРЕВСКА ПАЛАНКА
B150: 10 | C150: 100210007 АУ ВЕЛИКА ПЛАНА
B151: 10 | C151: 100210008 ОБ СМЕДЕРЕВО
B152: 10 | C152: 100210009 ДЗ СМЕДЕРЕВО
B153: 10 | C153: 100210010 ЗЦ СМЕДЕРЕВО
B154: 11 | C154: 100211001 ДЗ ВЕЛИКО ГРАДИШТЕ
B155: 11 | C155: 100211002 ДЗ ЖАГУБИЦА
B156: 11 | C156: 100211005 ЗЈЗ ПОЖАРЕВАЦ
B157: 11 | C157: 100211006 АП ПОЖАРЕВАЦ
B158: 11 | C158: 100211007 ДЗ ЖАБАРИ
B159: 11 | C159: 100211008 ДЗ ГОЛУБАЦ
B160: 11 | C160: 100211009 ДЗ КУЧЕВО
B161: 11 | C161: 100211010 ДЗ МАЛО ЦРНИЋЕ
B162: 11 | C162: 100211011 ДЗ ПОЖАРЕВАЦ
B163: 11 | C163: 100211012 OБ ПОЖАРЕВАЦ
B164: 11 | C164: 100211013 ДЗ ПЕТРОВАЦ НА МЛАВИ
B165: 11 | C165: 100211014 ОБ ПЕТРОВАЦ НА МЛАВИ
B166: 12 | C166: 100212001 ДЗ КРАГУЈЕВАЦ
B167: 12 | C167: 100212002 ДЗ БАТОЧИНА
B168: 12 | C168: 100212003 ДЗ КНИЋ
B169: 12 | C169: 100212004 ДЗ ЛАПОВО
B170: 12 | C170: 100212005 ДЗ РАЧА
B171: 12 | C171: 100212006 ДЗ ТОПОЛА
B172: 12 | C172: 100212007 ЗЦ АРАНЂЕЛОВАЦ
B173: 12 | C173: 100212008 ЗАВОД ЗА ДЕНТАЛНУ МЕДИЦИНУ КРАГУЈЕВАЦ
B174: 12 | C174: 100212009 СБ ЗА РЕХАБИЛИТАЦИЈУ БУКОВИЧКА БАЊА
B175: 12 | C175: 100212010 УНИВЕРЗИТЕТСКИ КЛИНИЧКИ ЦЕНТАР КРАГУЈЕВАЦ
B176: 12 | C176: 100212011 ИЗЈЗ КРАГУЈЕВАЦ
B177: 12 | C177: 100212012 АП КРАГУЈЕВАЦ
B178: 12 | C178: 100212013 АП АРАНЂЕЛОВАЦ
B179: 12 | C179: 100212014 ЗАВОД ЗА УРГЕНТНУ МЕДИЦИНУ КРАГУЈЕВАЦ
B180: 13 | C180: 100213001 ДЗ ДЕСПОТОВАЦ
B181: 13 | C181: 100213002 ДЗ СВИЛАЈНАЦ
B182: 13 | C182: 100213005 ЗЈЗ ЋУПРИЈА
B183: 13 | C183: 100213007 ДЗ РЕКОВАЦ
B184: 13 | C184: 100213008 ДЗ ЈАГОДИНА
B185: 13 | C185: 100213009 ОБ ЈАГОДИНА
B186: 13 | C186: 100213010 АП ЈАГОДИНА
B187: 13 | C187: 100213011 ДЗ ЋУПРИЈА
B188: 13 | C188: 100213012 ОБ ЋУПРИЈА
B189: 13 | C189: 100213014 ДЗ ПАРАЋИН
B190: 13 | C190: 100213015 АП ПАРАЋИН
B191: 13 | C191: 100213016 ОБ ПАРАЋИН
B192: 14 | C192: 100214002 ЗЦ НЕГОТИН
B193: 14 | C193: 100214003 ЗЦ КЛАДОВО
B194: 14 | C194: 100214005 АУ БОР
B195: 14 | C195: 100214006 ДЗ МАЈДАНПЕК
B196: 14 | C196: 100214007 ОБ МАЈДАНПЕК
B197: 14 | C197: 100214008 ДЗ БОР
B198: 14 | C198: 100214009 ОБ БОР
B199: 14 | C199: 100214010 ЗЦ БОР
B200: 15 | C200: 100215001 ДЗ БОЉЕВАЦ
B201: 15 | C201: 100215002 ЗЦ КЊАЖЕВАЦ
B202: 15 | C202: 100215003 ЗЦ ЗАЈЕЧАР
B203: 15 | C203: 100215004 СБ ЗА РЕХАБИЛИТАЦИЈУ ГАМЗИГРАД
B204: 15 | C204: 100215005 ЗЈЗ ЗАЈЕЧАР
B205: 15 | C205: 100215006 АП ЗАЈЕЧАР
B206: 16 | C206: 100216001 ЗЦ УЖИЦЕ
B207: 16 | C207: 100216003 СБ ЗЛАТИБОР, ЧАЈЕТИНА
B208: 16 | C208: 100216004 ЗЈЗ УЖИЦЕ
B209: 16 | C209: 100216005 АП УЖИЦЕ
B210: 17 | C210: 100217003 СБ ЗА РЕХАБИЛИТАЦИЈУ ИВАЊИЦА
B211: 17 | C211: 100217004 ЗЈЗ ЧАЧАК
B212: 17 | C212: 100217005 АП ЧАЧАК
B213: 17 | C213: 100217006 АП ГОРЊИ МИЛАНОВАЦ
B214: 17 | C214: 100217007 ДЗ ГОРЊИ МИЛАНОВАЦ
B215: 17 | C215: 100217008 ОБ ГОРЊИ МИЛАНОВАЦ
B216: 17 | C216: 100217009 ДЗ ЧАЧАК
B217: 17 | C217: 100217010 ДЗ ИВАЊИЦА
B218: 17 | C218: 100217011 ДЗ ЛУЧАНИ
B219: 17 | C219: 100217012 ОБ ЧАЧАК
... 164 more rows

Sheet ObrazacIB
K1: Образац ИБ
A7: Назив корисника буџетских средстава
A8: =NazivKorisnika -> Дом здравља Уб
A9: ="Седиште: " & biop -> Седиште: Уб | D9: ="Матични број: " & MaticniBroj -> Матични број: 17211692
A10: ="ПИБ: " & bip -> ПИБ: 101349256 | D10: ="Број подрачуна: " & BrojPodracuna -> Број подрачуна: 840-407661-24
A11: Назив надлежног директног корисника буџетских средстава
A12: _______________________________________________________________________
A13: (Попуњава само индиректни корисник буџетских средстава)
A14: ИЗВЕШТАЈ О ИЗВРШЕЊУ БУЏЕТА
A15: у периоду од 01.01.2025. - 31.12.2025. године
A16: I. УКУПНИ ПРИХОДИ И ПРИМАЊА
K17: (У хиљадама динара)
A18: Ознака ОП | B18: Број конта | C18: Опис | D18: Износ планираних прихода и примања | E18: Износ остварених прихода и примања
E19: Укупно (од 6 до 11) | F19: Приходи и примања из буџета | J19: Из донација и помоћи | K19: Из осталих извора
F20: Републике | G20: Аутономне покрајине | H20: Општине / града | I20: ООСО
A21: 1 | B21: 2 | C21: 3 | D21: 4 | E21: 5 | F21: 6 | G21: 7 | H21: 8 | I21: 9 | J21: 10 | K21: 11
A22: 5001 | C22: ТЕКУЋИ ПРИХОДИ И ПРИМАЊА ОД ПРОДАЈЕ НЕФИНАНСИЈСКЕ ИМОВИНЕ (5002 + 5106) | D22: =D23+D147 -> 439000 | E22: =SUM(F22:K22) -> 426484 | F22: =F23+F147 -> 7691 | G22: 0 | H22: 18412 | I22: 394453 | J22: 0 | K22: 5928
A23: 5002 | B23: 700000 | C23: ТЕКУЋИ ПРИХОДИ (5003 + 5047 + 5057 + 5069 + 5094 + 5099 + 5103) | D23: =D24+D76+D90+D102+D131+D136+D140 -> 438950 | E23: 426479 | F23: =F24+F76+F90+F102+F131+F136+F140 -> 7691 | G23: 0 | H23: 18412 | I23: 394453 | J23: 0 | K23: 5923
A24: 5003 | B24: 710000 | C24: ПОРЕЗИ (5004 + 5008 + 5010 + 5017 + 5023 + 5030 + 5033 + 5040) | D24: =D25+D33+D35+D42+D48+D55+D58+D69 -> 0 | E24: 0 | F24: =F25+F33+F35+F42+F48+F55+F58+F69 -> 0 | G24: 0 | H24: 0 | I24: 0 | J24: 0 | K24: 0
A25: 5004 | B25: 711000 | C25: ПОРЕЗ НА ДОХОДАК, ДОБИТ И КАПИТАЛНЕ ДОБИТКЕ (од 5005 до 5007) | D25: =SUM(D26:D32) -> 0 | E25: 0 | F25: =SUM(F26:F32) -> 0 | G25: 0 | H25: 0 | I25: 0 | J25: 0 | K25: 0
A26: 5005 | B26: 711100 | C26: Порези на доходак и капиталнe добиткe које плаћају физичка лица | E26: 0
A27: Ознака ОП | B27: Број конта | C27: Опис | D27: Износ планираних прихода и примања | E27: Износ остварених прихода и примања
E28: Укупно (од 6 до 11) | F28: Приходи и примања из буџета | J28: Из донација и помоћи | K28: Из осталих извора
F29: Републике | G29: Аутономне покрајине | H29: Општине / града | I29: ООСО
A30: 1 | B30: 2 | C30: 3 | D30: 4 | E30: 5 | F30: 6 | G30: 7 | H30: 8 | I30: 9 | J30: 10 | K30: 11
A31: 5006 | B31: 711200 | C31: Порези на добит и капиталне добитке које плаћају предузећа и друга правна лица | E31: 0
A32: 5007 | B32: 711300 | C32: Порези на доходак, добит и капиталне добитке који се не могу разврстати између физичких и правних лица | E32: 0
A33: 5008 | B33: 712000 | C33: ПОРЕЗ НА ФОНД ЗАРАДА (5009) | D33: =D34 -> 0 | E33: 0 | F33: =F34 -> 0 | G33: 0 | H33: 0 | I33: 0 | J33: 0 | K33: 0
A34: 5009 | B34: 712100 | C34: Порез на фонд зарада | E34: 0
A35: 5010 | B35: 713000 | C35: ПОРЕЗ НА ИМОВИНУ (од 5011 до 5016) | D35: =SUM(D36:D41) -> 0 | E35: 0 | F35: =SUM(F36:F41) -> 0 | G35: 0 | H35: 0 | I35: 0 | J35: 0 | K35: 0
A36: 5011 | B36: 713100 | C36: Периодични порези на непокретности | E36: 0
A37: 5012 | B37: 713200 | C37: Периодични порези на нето имовину | E37: 0
A38: 5013 | B38: 713300 | C38: Порези на заоставштину, наслеђе и поклон | E38: 0
A39: 5014 | B39: 713400 | C39: Порези на финансијске и капиталне трансакције | E39: 0
A40: 5015 | B40: 713500 | C40: Други једнократни порези на имовину | E40: 0
A41: 5016 | B41: 713600 | C41: Други периодични порези на имовину | E41: 0
A42: 5017 | B42: 714000 | C42: ПОРЕЗ НА ДОБРА И УСЛУГЕ (од 5018 до 5022) | D42: =SUM(D43:D47) -> 0 | E42: 0 | F42: =SUM(F43:F47) -> 0 | G42: 0 | H42: 0 | I42: 0 | J42: 0 | K42: 0
A43: 5018 | B43: 714100 | C43: Општи порези на добра и услуге | E43: 0
A44: 5019 | B44: 714300 | C44: Добит фискалних монопола | E44: 0
A45: 5020 | B45: 714400 | C45: Порези на појединачне услуге | E45: 0
A46: 5021 | B46: 714500 | C46: Порези, таксе и накнаде на употребу добара, на дозволу да се добра употребљавају или делатности обављају | E46: 0
A47: 5022 | B47: 714600 | C47: Други порези на добра и услуге | E47: 0
A48: 5023 | B48: 715000 | C48: ПОРЕЗ НА МЕЂУНАРОДНУ ТРГОВИНУ И ТРАНСАКЦИЈЕ (од 5024 до 5029) | D48: =SUM(D49:D54) -> 0 | E48: 0 | F48: =SUM(F49:F54) -> 0 | G48: 0 | H48: 0 | I48: 0 | J48: 0 | K48: 0
A49: 5024 | B49: 715100 | C49: Царине и друге увозне дажбине | E49: 0
A50: 5025 | B50: 715200 | C50: Порези на извоз | E50: 0
A51: 5026 | B51: 715300 | C51: Добит извозних или увозних монопола | E51: 0
A52: 5027 | B52: 715400 | C52: Добит по основу разлике између куповног и продајног девизног курса | E52: 0
A53: 5028 | B53: 715500 | C53: Порези на продају или куповину девиза | E53: 0
A54: 5029 | B54: 715600 | C54: Други порези на међународну трговину и трансакције | E54: 0
A55: 5030 | B55: 716000 | C55: ДРУГИ ПОРЕЗИ (5031 + 5032) | D55: =D56+D57 -> 0 | E55: 0 | F55: =F56+F57 -> 0 | G55: 0 | H55: 0 | I55: 0 | J55: 0 | K55: 0
A56: 5031 | B56: 716100 | C56: Други порези које искључиво плаћају предузећа, односно предузетници | E56: 0
A57: 5032 | B57: 716200 | C57: Други порези које плаћају остала лица или који се не могу идентификовати | E57: 0
A58: 5033 | B58: 717000 | C58: АКЦИЗЕ (од 5034 до 5039) | D58: =SUM(D63:D68) -> 0 | E58: =SUM(F58:K58) -> 0 | F58: =SUM(F63:F68) -> 0 | G58: 0 | H58: 0 | I58: 0 | J58: 0 | K58: 0
A59: Ознака ОП | B59: Број конта | C59: Опис | D59: Износ планираних прихода и примања | E59: Износ остварених прихода и примања
E60: Укупно (од 6 до 11) | F60: Приходи и примања из буџета | J60: Из донација и помоћи | K60: Из осталих извора
F61: Републике | G61: Аутономне покрајине | H61: Општине / града | I61: ООСО
A62: 1 | B62: 2 | C62: 3 | D62: 4 | E62: 5 | F62: 6 | G62: 7 | H62: 8 | I62: 9 | J62: 10 | K62: 11
A63: 5034 | B63: 717100 | C63: Акцизе на деривате нафте | E63: 0
A64: 5035 | B64: 717200 | C64: Акцизе на дуванске прерађевине | E64: 0
A65: 5036 | B65: 717300 | C65: Акцизе на алкохолна пића | E65: 0
A66: 5037 | B66: 717400 | C66: Акцизе на освежавајућа безалкохолна пића | E66: 0
A67: 5038 | B67: 717500 | C67: Акциза на кафу | E67: 0
A68: 5039 | B68: 717600 | C68: Друге акцизе | E68: 0
A69: 5040 | B69: 719000 | C69: ЈЕДНОКРАТНИ ПОРЕЗ НА ЕКСТРА ПРОФИТ И ЕКСТРА ИМОВИНУ СТЕЧЕНУ КОРИШЋЕЊЕМ ПОСЕБНИХ ПОГОДНОСТИ (од 5041 до 5046) | D69: =SUM(D70:D75) -> 0 | E69: 0 | F69: =SUM(F70:F75) -> 0 | G69: 0 | H69: 0 | I69: 0 | J69: 0 | K69: 0
A70: 5041 | B70: 719100 | C70: Порез на доходак, добит и капиталну добит на терет физичких лица | E70: 0
A71: 5042 | B71: 719200 | C71: Порез на доходак, добит и капиталну добит на терет предузећа и осталих правних лица | E71: 0
A72: 5043 | B72: 719300 | C72: Порез на доходак, добит и капиталну добит нераспоредив између физичких и правних лица | E72: 0
A73: 5044 | B73: 719400 | C73: Остали једнократни порези на имовину | E73: 0
A74: 5045 | B74: 719500 | C74: Остали порези које плаћају искључиво предузећа и предузетници | E74: 0
A75: 5046 | B75: 719600 | C75: Остали порези које плаћају друга или неидентификована лица | E75: 0
A76: 5047 | B76: 720000 | C76: СОЦИЈАЛНИ ДОПРИНОСИ (5048 + 5053) | D76: =D77+D82 -> 0 | E76: 0 | F76: =F77+F82 -> 0 | G76: 0 | H76: 0 | I76: 0 | J76: 0 | K76: 0
A77: 5048 | B77: 721000 | C77: ДОПРИНОСИ ЗА СОЦИЈАЛНО ОСИГУРАЊЕ (од 5049 до 5052) | D77: =SUM(D78:D81) -> 0 | E77: 0 | F77: =SUM(F78:F81) -> 0 | G77: 0 | H77: 0 | I77: 0 | J77: 0 | K77: 0
A78: 5049 | B78: 721100 | C78: Доприноси за социјално осигурање на терет запослених | E78: 0
A79: 5050 | B79: 721200 | C79: Доприноси за социјално осигурање на терет послодавца | E79: 0
A80: 5051 | B80: 721300 | C80: Доприноси за социјално осигурање лица која обављају самосталну делатност и незапослених лица | E80: 0
A81: 5052 | B81: 721400 | C81: Доприноси за социјално осигурање који се не могу разврстати | E81: 0
A82: 5053 | B82: 722000 | C82: ОСТАЛИ СОЦИЈАЛНИ ДОПРИНОСИ (од 5054 до 5056) | D82: =SUM(D83:D85) -> 0 | E82: 0 | F82: =SUM(F83:F85) -> 0 | G82: 0 | H82: 0 | I82: 0 | J82: 0 | K82: 0
A83: 5054 | B83: 722100 | C83: Социјални доприноси на терет осигураника | E83: 0
A84: 5055 | B84: 722200 | C84: Социјални доприноси на терет послодаваца | E84: 0
A85: 5056 | B85: 722300 | C85: Импутирани социјални доприноси | E85: 0
A86: Ознака ОП | B86: Број конта | C86: Опис | D86: Износ планираних прихода и примања | E86: Износ остварених прихода и примања
E87: Укупно (од 6 до 11) | F87: Приходи и примања из буџета | J87: Из донација и помоћи | K87: Из осталих извора
F88: Републике | G88: Аутономне покрајине | H88: Општине / града | I88: ООСО
A89: 1 | B89: 2 | C89: 3 | D89: 4 | E89: 5 | F89: 6 | G89: 7 | H89: 8 | I89: 9 | J89: 10 | K89: 11
A90: 5057 | B90: 730000 | C90: ДОНАЦИЈЕ, ПОМОЋИ И ТРАНСФЕРИ (5058 + 5061 + 5066) | D90: =D91+D94+D99 -> 20000 | E90: 18412 | F90: =F91+F94+F99 -> 0 | G90: 0 | H90: 18412 | I90: 0 | J90: 0 | K90: 0
A91: 5058 | B91: 731000 | C91: ДОНАЦИЈЕ ОД ИНОСТРАНИХ ДРЖАВА (5059 + 5060) | D91: =D92+D93 -> 0 | E91: 0 | F91: =F92+F93 -> 0 | G91: 0 | H91: 0 | I91: 0 | J91: 0 | K91: 0
A92: 5059 | B92: 731100 | C92: Текуће донације од иностраних држава | E92: 0
A93: 5060 | B93: 731200 | C93: Капиталне донације од иностраних држава | E93: 0
A94: 5061 | B94: 732000 | C94: ДОНАЦИЈЕ И ПОМОЋИ ОД МЕЂУНАРОДНИХ ОРГАНИЗАЦИЈА (од 5062 до 5065) | D94: =D95+D96+D97+D98 -> 0 | E94: 0 | F94: =F95+F96+F97+F98 -> 0 | G94: 0 | H94: 0 | I94: 0 | J94: 0 | K94: 0
A95: 5062 | B95: 732100 | C95: Текуће донације од међународних организација | E95: 0
A96: 5063 | B96: 732200 | C96: Капиталне донације од међународних организација | E96: 0
A97: 5064 | B97: 732300 | C97: Текуће помоћи од ЕУ | E97: 0
A98: 5065 | B98: 732400 | C98: Капиталне помоћи од ЕУ | E98: 0
A99: 5066 | B99: 733000 | C99: ТРАНСФЕРИ ОД ДРУГИХ НИВОА ВЛАСТИ (5067 + 5068) | D99: =D100+D101 -> 20000 | E99: 18412 | F99: =F100+F101 -> 0 | G99: 0 | H99: 18412 | I99: 0 | J99: 0 | K99: 0
A100: 5067 | B100: 733100 | C100: Текући трансфери од других нивоа власти | D100: 20000 | E100: =SUM(F100:K100) -> 18412 | H100: 18412
A101: 5068 | B101: 733200 | C101: Капитални трансфери од других нивоа власти | E101: 0
A102: 5069 | B102: 740000 | C102: ДРУГИ ПРИХОДИ (5070 + 5077 + 5082 + 5089 + 5092) | D102: =D103+D110+D115+D126+D129 -> 10000 | E102: 6219 | F102: =F103+F110+F115+F126+F129 -> 0 | G102: 0 | H102: 0 | I102: 296 | J102: 0 | K102: 5923
A103: 5070 | B103: 741000 | C103: ПРИХОДИ ОД ИМОВИНЕ (од 5071 до 5076) | D103: =SUM(D104:D109) -> 750 | E103: 296 | F103: =SUM(F104:F109) -> 0 | G103: 0 | H103: 0 | I103: 296 | J103: 0 | K103: 0
A104: 5071 | B104: 741100 | C104: Камате | E104: 0
A105: 5072 | B105: 741200 | C105: Дивиденде | E105: 0
A106: 5073 | B106: 741300 | C106: Повлачење прихода од квази корпорација | E106: 0
A107: 5074 | B107: 741400 | C107: Приход од имовине који припада имаоцима полиса осигурања | D107: 750 | E107: 296 | I107: 296
A108: 5075 | B108: 741500 | C108: Закуп непроизведене имовине | E108: 0
A109: 5076 | B109: 741600 | C109: Финансијске промене на финансијским лизинзима | E109: 0
A110: 5077 | B110: 742000 | C110: ПРИХОДИ ОД ПРОДАЈЕ ДОБАРА И УСЛУГА (од 5078 до 5081) | D110: =SUM(D111:D114) -> 9000 | E110: 5907 | F110: =SUM(F111:F114) -> 0 | G110: 0 | H110: 0 | I110: 0 | J110: 0 | K110: 5907
A111: 5078 | B111: 742100 | C111: Приходи од продаје добара и услуга или закупа од стране тржишних организација | D111: 1500 | E111: 687 | K111: 687
A112: 5079 | B112: 742200 | C112: Таксе и накнаде | E112: 0
A113: 5080 | B113: 742300 | C113: Споредне продаје добара и услуга које врше државне нетржишне јединице | D113: 7500 | E113: 5220 | K113: 5220
A114: 5081 | B114: 742400 | C114: Импутиране продаје добара и услуга | E114: 0
A115: 5082 | B115: 743000 | C115: НОВЧАНЕ КАЗНЕ И ОДУЗЕТА ИМОВИНСКА КОРИСТ (од 5083 до 5088) | D115: =SUM(D120:D125) -> 0 | E115: 0 | F115: =SUM(F120:F125) -> 0 | G115: 0 | H115: 0 | I115: 0 | J115: 0 | K115: 0
A116: Ознака ОП | B116: Број конта | C116: Опис | D116: Износ планираних прихода и примања | E116: Износ остварених прихода и примања
E117: Укупно (од 6 до 11) | F117: Приходи и примања из буџета | J117: Из донација и помоћи | K117: Из осталих извора
F118: Републике | G118: Аутономне покрајине | H118: Општине / града | I118: ООСО
A119: 1 | B119: 2 | C119: 3 | D119: 4 | E119: 5 | F119: 6 | G119: 7 | H119: 8 | I119: 9 | J119: 10 | K119: 11
A120: 5083 | B120: 743100 | C120: Приходи од новчаних казни за кривична дела | E120: 0
A121: 5084 | B121: 743200 | C121: Приходи од новчаних казни за привредне преступе | E121: 0
A122: 5085 | B122: 743300 | C122: Приходи од новчаних казни за прекршаје | E122: 0
A123: 5086 | B123: 743400 | C123: Приходи од пенала | E123: 0
A124: 5087 | B124: 743500 | C124: Приходи од одузете имовинске користи | E124: 0
A125: 5088 | B125: 743900 | C125: Остале новчане казне, пенали и приходи од одузете имовинске користи | E125: 0
A126: 5089 | B126: 744000 | C126: ДОБРОВОЉНИ ТРАНСФЕРИ ОД ФИЗИЧКИХ И ПРАВНИХ ЛИЦА (5090 + 5091) | D126: =D127+D128 -> 0 | E126: 0 | F126: =F127+F128 -> 0 | G126: 0 | H126: 0 | I126: 0 | J126: 0 | K126: 0
A127: 5090 | B127: 744100 | C127: Текући добровољни трансфери од физичких и правних лица | E127: 0
A128: 5091 | B128: 744200 | C128: Капитални добровољни трансфери од физичких и правних лица | E128: 0
A129: 5092 | B129: 745000 | C129: МЕШОВИТИ И НЕОДРЕЂЕНИ ПРИХОДИ (5093) | D129: =D130 -> 250 | E129: 16 | F129: =F130 -> 0 | G129: 0 | H129: 0 | I129: 0 | J129: 0 | K129: 16
A130: 5093 | B130: 745100 | C130: Мешовити и неодређени приходи | D130: 250 | E130: 16 | K130: 16
A131: 5094 | B131: 770000 | C131: МЕМОРАНДУМСКЕ СТАВКЕ ЗА РЕФУНДАЦИЈУ РАСХОДА (5095 + 5097) | D131: =D132+D134 -> 0 | E131: 0 | F131: =F132+F134 -> 0 | G131: 0 | H131: 0 | I131: 0 | J131: 0 | K131: 0
A132: 5095 | B132: 771000 | C132: МЕМОРАНДУМСКЕ СТАВКЕ ЗА РЕФУНДАЦИЈУ РАСХОДА (5096) | D132: =D133 -> 0 | E132: 0 | F132: =F133 -> 0 | G132: 0 | H132: 0 | I132: 0 | J132: 0 | K132: 0
A133: 5096 | B133: 771100 | C133: Меморандумске ставке за рефундацију расхода | E133: 0
A134: 5097 | B134: 772000 | C134: МЕМОРАНДУМСКЕ СТАВКЕ ЗА РЕФУНДАЦИЈУ РАСХОДА ИЗ ПРЕТХОДНЕ ГОДИНЕ (5098) | D134: =D135 -> 0 | E134: 0 | F134: =F135 -> 0 | G134: 0 | H134: 0 | I134: 0 | J134: 0 | K134: 0
A135: 5098 | B135: 772100 | C135: Меморандумске ставке за рефундацију расхода из претходне године | E135: 0
A136: 5099 | B136: 780000 | C136: ТРАНСФЕРИ ИЗМЕЂУ БУЏЕТСКИХ КОРИСНИКА НА ИСТОМ НИВОУ (5100) | D136: =D137 -> 408950 | E136: =SUM(F136:K136) -> 401848 | F136: =F137 -> 7691 | G136: 0 | H136: 0 | I136: 394157 | J136: 0 | K136: 0
A137: 5100 | B137: 781000 | C137: ТРАНСФЕРИ ИЗМЕЂУ БУЏЕТСКИХ КОРИСНИКА НА ИСТОМ НИВОУ (5101 + 5102) | D137: =D138+D139 -> 408950 | E137: 401848 | F137: =F138+F139 -> 7691 | G137: 0 | H137: 0 | I137: 394157 | J137: 0 | K137: 0
A138: 5101 | B138: 781100 | C138: Трансфери између буџетских корисника на истом нивоу | D138: 408950 | E138: =SUM(F138:K138) -> 401848 | F138: 7691 | I138: 394157
A139: 5102 | B139: 781300 | C139: Трансфери између организација обавезног социјалног осигурања | E139: 0
A140: 5103 | B140: 790000 | C140: ПРИХОДИ ИЗ БУЏЕТА (5104) | D140: =D141 -> 0 | E140: 0 | F140: =F141 -> 0 | G140: 0 | H140: 0 | I140: 0 | J140: 0 | K140: 0
A141: 5104 | B141: 791000 | C141: ПРИХОДИ ИЗ БУЏЕТА (5105) | D141: =D146 -> 0 | E141: 0 | F141: =F146 -> 0 | G141: 0 | H141: 0 | I141: 0 | J141: 0 | K141: 0
A142: Ознака ОП | B142: Број конта | C142: Опис | D142: Износ планираних прихода и примања | E142: Износ остварених прихода и примања
E143: Укупно (од 6 до 11) | F143: Приходи и примања из буџета | J143: Из донација и помоћи | K143: Из осталих извора
F144: Републике | G144: Аутономне покрајине | H144: Општине / града | I144: ООСО
A145: 1 | B145: 2 | C145: 3 | D145: 4 | E145: 5 | F145: 6 | G145: 7 | H145: 8 | I145: 9 | J145: 10 | K145: 11
A146: 5105 | B146: 791100 | C146: Приходи из буџета | E146: 0
A147: 5106 | B147: 800000 | C147: ПРИМАЊА ОД ПРОДАЈЕ НЕФИНАНСИЈСКЕ ИМОВИНЕ (5107 + 5114 + 5121 + 5124) | D147: =D148+D155+D162+D165 -> 50 | E147: 5 | F147: =F148+F155+F162+F165 -> 0 | G147: 0 | H147: 0 | I147: 0 | J147: 0 | K147: 5
A148: 5107 | B148: 810000 | C148: ПРИМАЊА ОД ПРОДАЈЕ ОСНОВНИХ СРЕДСТАВА (5108 + 5110 + 5112) | D148: =D149+D151+D153 -> 50 | E148: 5 | F148: =F149+F151+F153 -> 0 | G148: 0 | H148: 0 | I148: 0 | J148: 0 | K148: 5
A149: 5108 | B149: 811000 | C149: ПРИМАЊА ОД ПРОДАЈЕ НЕПОКРЕТНОСТИ (5109) | D149: =D150 -> 50 | E149: 5 | F149: =F150 -> 0 | G149: 0 | H149: 0 | I149: 0 | J149: 0 | K149: 5
A150: 5109 | B150: 811100 | C150: Примања од продаје непокретности | D150: 50 | E150: 5 | K150: 5
A151: 5110 | B151: 812000 | C151: ПРИМАЊА ОД ПРОДАЈЕ ПОКРЕТНЕ ИМОВИНЕ (5111) | D151: =D152 -> 0 | E151: 0 | F151: =F152 -> 0 | G151: 0 | H151: 0 | I151: 0 | J151: 0 | K151: 0
A152: 5111 | B152: 812100 | C152: Примања од продаје покретне имовине | E152: 0
A153: 5112 | B153: 813000 | C153: ПРИМАЊА ОД ПРОДАЈЕ ОСТАЛИХ ОСНОВНИХ СРЕДСТАВА (5113) | D153: =D154 -> 0 | E153: 0 | F153: =F154 -> 0 | G153: 0 | H153: 0 | I153: 0 | J153: 0 | K153: 0
A154: 5113 | B154: 813100 | C154: Примања од продаје осталих основних средстава | E154: 0
A155: 5114 | B155: 820000 | C155: ПРИМАЊА ОД ПРОДАЈЕ ЗАЛИХА (5115 + 5117 + 5119) | D155: =D156+D158+D160 -> 0 | E155: 0 | F155: =F156+F158+F160 -> 0 | G155: 0 | H155: 0 | I155: 0 | J155: 0 | K155: 0
A156: 5115 | B156: 821000 | C156: ПРИМАЊА ОД ПРОДАЈЕ РОБНИХ РЕЗЕРВИ (5116) | D156: =D157 -> 0 | E156: 0 | F156: =F157 -> 0 | G156: 0 | H156: 0 | I156: 0 | J156: 0 | K156: 0
A157: 5116 | B157: 821100 | C157: Примања од продаје робних резерви | E157: 0
A158: 5117 | B158: 822000 | C158: ПРИМАЊА ОД ПРОДАЈЕ ЗАЛИХА ПРОИЗВОДЊЕ (5118) | D158: =D159 -> 0 | E158: 0 | F158: =F159 -> 0 | G158: 0 | H158: 0 | I158: 0 | J158: 0 | K158: 0
A159: 5118 | B159: 822100 | C159: Примања од продаје залиха производње | E159: 0
A160: 5119 | B160: 823000 | C160: ПРИМАЊА ОД ПРОДАЈЕ РОБЕ ЗА ДАЉУ ПРОДАЈУ (5120) | D160: =D161 -> 0 | E160: 0 | F160: =F161 -> 0 | G160: 0 | H160: 0 | I160: 0 | J160: 0 | K160: 0
A161: 5120 | B161: 823100 | C161: Примања од продаје робе за даљу продају | E161: 0
A162: 5121 | B162: 830000 | C162: ПРИМАЊА ОД ПРОДАЈЕ ДРАГОЦЕНОСТИ (5122) | D162: =D163 -> 0 | E162: 0 | F162: =F163 -> 0 | G162: 0 | H162: 0 | I162: 0 | J162: 0 | K162: 0
A163: 5122 | B163: 831000 | C163: ПРИМАЊА ОД ПРОДАЈЕ ДРАГОЦЕНОСТИ (5123) | D163: =D164 -> 0 | E163: 0 | F163: 0 | G163: 0 | H163: 0 | I163: 0 | J163: 0 | K163: 0
A164: 5123 | B164: 831100 | C164: Примања од продаје драгоцености | E164: 0
A165: 5124 | B165: 840000 | C165: ПРИМАЊА ОД ПРОДАЈЕ ПРИРОДНЕ ИМОВИНЕ (5125 + 5127 + 5129) | D165: =D166+D168+D174 -> 0 | E165: 0 | F165: =F166+F168+F174 -> 0 | G165: 0 | H165: 0 | I165: 0 | J165: 0 | K165: 0
A166: 5125 | B166: 841000 | C166: ПРИМАЊА ОД ПРОДАЈЕ ЗЕМЉИШТА (5126) | D166: =D167 -> 0 | E166: 0 | F166: =F167 -> 0 | G166: 0 | H166: 0 | I166: 0 | J166: 0 | K166: 0
A167: 5126 | B167: 841100 | C167: Примања од продаје земљишта | E167: 0
A168: 5127 | B168: 842000 | C168: ПРИМАЊА ОД ПРОДАЈЕ ПОДЗЕМНИХ БЛАГА (5128) | D168: =D173 -> 0 | E168: 0 | F168: =F173 -> 0 | G168: 0 | H168: 0 | I168: 0 | J168: 0 | K168: 0
A169: Ознака ОП | B169: Број конта | C169: Опис | D169: Износ планираних прихода и примања | E169: Износ остварених прихода и примања
E170: Укупно (од 6 до 11) | F170: Приходи и примања из буџета | J170: Из донација и помоћи | K170: Из осталих извора
F171: Републике | G171: Аутономне покрајине | H171: Општине / града | I171: ООСО
A172: 1 | B172: 2 | C172: 3 | D172: 4 | E172: 5 | F172: 6 | G172: 7 | H172: 8 | I172: 9 | J172: 10 | K172: 11
A173: 5128 | B173: 842100 | C173: Примања од продаје подземних блага | E173: 0
A174: 5129 | B174: 843000 | C174: ПРИМАЊА ОД ПРОДАЈЕ ШУМА И ВОДА (5130) | D174: =D175 -> 0 | E174: 0 | F174: =F175 -> 0 | G174: 0 | H174: 0 | I174: 0 | J174: 0 | K174: 0
A175: 5130 | B175: 843100 | C175: Примања од продаје шума и вода | E175: 0
A176: 5131 | B176: 900000 | C176: ПРИМАЊА ОД ЗАДУЖИВАЊА И ПРОДАЈЕ ФИНАНСИЈСКЕ ИМОВИНЕ (5132 + 5151) | D176: =D177+D200 -> 0 | E176: =SUM(F176:K176) -> 0 | F176: =F177+F200 -> 0 | G176: 0 | H176: 0 | I176: 0 | J176: 0 | K176: 0
A177: 5132 | B177: 910000 | C177: ПРИМАЊА ОД ЗАДУЖИВАЊА (5133 + 5143) | D177: =D178+D188 -> 0 | E177: 0 | F177: =F178+F188 -> 0 | G177: 0 | H177: 0 | I177: 0 | J177: 0 | K177: 0
A178: 5133 | B178: 911000 | C178: ПРИМАЊА ОД ДОМАЋИХ ЗАДУЖИВАЊА (од 5134 до 5142) | D178: =SUM(D179:D187) -> 0 | E178: 0 | F178: =SUM(F179:F187) -> 0 | G178: 0 | H178: 0 | I178: 0 | J178: 0 | K178: 0
A179: 5134 | B179: 911100 | C179: Примања од емитовања домаћих хартија од вредности, изузев акција | E179: 0
A180: 5135 | B180: 911200 | C180: Примања од задуживања од осталих нивоа власти | E180: 0
A181: 5136 | B181: 911300 | C181: Примања од задуживања од јавних финансијских институција у земљи | E181: 0
A182: 5137 | B182: 911400 | C182: Примања од задуживања од пословних банака у земљи | E182: 0
A183: 5138 | B183: 911500 | C183: Примања од задуживања код осталих поверилаца у земљи | E183: 0
A184: 5139 | B184: 911600 | C184: Примања од задуживања од домаћинстава у земљи | E184: 0
A185: 5140 | B185: 911700 | C185: Примања од домаћих финансијских деривата | E185: 0
A186: 5141 | B186: 911800 | C186: Примања од домаћих меница | E186: 0
A187: 5142 | B187: 911900 | C187: Исправка унутрашњег дуга | E187: 0
A188: 5143 | B188: 912000 | C188: ПРИМАЊА ОД ИНОСТРАНОГ ЗАДУЖИВАЊА (од 5144 до 5150) | D188: =SUM(D189:D199) -> 0 | E188: 0 | F188: =SUM(F189:F199) -> 0 | G188: 0 | H188: 0 | I188: 0 | J188: 0 | K188: 0
A189: 5144 | B189: 912100 | C189: Примања од емитовања хартија од вредности, изузев акција, на иностраном финансијском тржишту | E189: 0
A190: 5145 | B190: 912200 | C190: Примања од задуживања од иностраних држава | E190: 0
A191: 5146 | B191: 912300 | C191: Примања од задуживања од мултилатералних институција | E191: 0
A192: 5147 | B192: 912400 | C192: Примања од задуживања од иностраних пословних банака | E192: 0
A193: 5148 | B193: 912500 | C193: Примања од задуживања од осталих иностраних поверилаца | E193: 0
A194: 5149 | B194: 912600 | C194: Примања од иностраних финансијских деривата | E194: 0
A195: Ознака ОП | B195: Број конта | C195: Опис | D195: Износ планираних прихода и примања | E195: Износ остварених прихода и примања
E196: Укупно (од 6 до 11) | F196: Приходи и примања из буџета | J196: Из донација и помоћи | K196: Из осталих извора
F197: Републике | G197: Аутономне покрајине | H197: Општине / града | I197: ООСО
A198: 1 | B198: 2 | C198: 3 | D198: 4 | E198: 5 | F198: 6 | G198: 7 | H198: 8 | I198: 9 | J198: 10 | K198: 11
A199: 5150 | B199: 912900 | C199: Исправка спољног дуга | E199: 0
A200: 5151 | B200: 920000 | C200: ПРИМАЊА ОД ПРОДАЈЕ ФИНАНСИЈСКЕ ИМОВИНЕ (5152 + 5162) | D200: =D201+D211 -> 0 | E200: 0 | F200: =F201+F211 -> 0 | G200: 0 | H200: 0 | I200: 0 | J200: 0 | K200: 0
A201: 5152 | B201: 921000 | C201: ПРИМАЊА ОД ПРОДАЈЕ ДОМАЋЕ ФИНАНСИЈСКЕ ИМОВИНЕ (од 5153 до 5161) | D201: =SUM(D202:D210) -> 0 | E201: 0 | F201: =SUM(F202:F210) -> 0 | G201: 0 | H201: 0 | I201: 0 | J201: 0 | K201: 0
A202: 5153 | B202: 921100 | C202: Примања од продаје домаћих хартија од вредности, изузев акција | E202: 0
A203: 5154 | B203: 921200 | C203: Примања од отплате кредита датих осталим нивоима власти | E203: 0
A204: 5155 | B204: 921300 | C204: Примања од отплате кредита датих домаћим јавним финансијским институцијама | E204: 0
A205: 5156 | B205: 921400 | C205: Примања од отплате кредита домаћим пословним банкама | E205: 0
... 346 more rows

Sheet ObrazacPR
E1: Образац ПР
A7: Назив корисника буџетских средстава
A8: =NazKorisnika -> Дом здравља Уб
A9: ="Седиште: " &biop -> Седиште: Уб | D9: ="Матични број: " & MatBroj -> Матични број: 17211692
A10: ="ПИБ: " & bip -> ПИБ: 101349256 | D10: ="Број подрачуна: " & BrojPodr -> Број подрачуна: 840-407661-24
A11: Назив надлежног директног корисника буџетских средстава
A14: БИЛАНС ПРИХОДА И РАСХОДА
A15: у периоду 01.01.2025. - 31.12.2025.
E17: (У хиљадама динара)
A18: Ознака ОП | B18: Број конта | C18: Опис | D18: Износ
D19: Претходна година | E19: Текућа година
A20: 1 | B20: 2 | C20: 3 | D20: 4 | E20: 5
A21: 2001 | C21: ТЕКУЋИ ПРИХОДИ И ПРИМАЊА ОД ПРОДАЈЕ НЕФИНАНСИЈСКЕ ИМОВИНЕ (2002 + 2106) | D21: =D22+D126 -> 371562 | E21: =E22+E126 -> 426484
A22: 2002 | B22: 700000 | C22: ТЕКУЋИ ПРИХОДИ (2003 + 2047 + 2057 + 2069 + 2094 + 2099 + 2103) | D22: =D23+D67+D77+D89+D114+D119+D123 -> 371556 | E22: =E23+E67+E77+E89+E114+E119+E123 -> 426479
A23: 2003 | B23: 710000 | C23: ПОРЕЗИ (2004 + 2008 + 2010 + 2017 + 2023 + 2030 + 2033 + 2040) | D23: =D24+D28+D30+D37+D43+D50+D53+D60 -> 0 | E23: =E24+E28+E30+E37+E43+E50+E53+E60 -> 0
A24: 2004 | B24: 711000 | C24: ПОРЕЗ НА ДОХОДАК, ДОБИТ И КАПИТАЛНЕ ДОБИТКЕ (од 2005 до 2007) | D24: =SUM(D25:D27) -> 0 | E24: =SUM(E25:E27) -> 0
A25: 2005 | B25: 711100 | C25: Порези на доходак и капиталне добитке које плаћају физичка лица
A26: 2006 | B26: 711200 | C26: Порези на добит и капиталне добитке које плаћају правна лица
A27: 2007 | B27: 711300 | C27: Порези на доходак, добит и капиталне добитке који се не могу разврстати између физичких и правних лица
A28: 2008 | B28: 712000 | C28: ПОРЕЗ НА ФОНД ЗАРАДА (2009) | D28: =D29 -> 0 | E28: =E29 -> 0
A29: 2009 | B29: 712100 | C29: Порез на фонд зарада
A30: 2010 | B30: 713000 | C30: ПОРЕЗ НА ИМОВИНУ (од 2011 до 2016) | D30: =SUM(D31:D36) -> 0 | E30: =SUM(E31:E36) -> 0
A31: 2011 | B31: 713100 | C31: Периодични порези на непокретности
A32: 2012 | B32: 713200 | C32: Периодични порези на нето имовину
A33: 2013 | B33: 713300 | C33: Порези на заоставштину, наслеђе и поклон
A34: 2014 | B34: 713400 | C34: Порези на финансијске и капиталне трансакције
A35: 2015 | B35: 713500 | C35: Други једнократни порези на имовину
A36: 2016 | B36: 713600 | C36: Други периодични порези на имовину
A37: 2017 | B37: 714000 | C37: ПОРЕЗ НА ДОБРА И УСЛУГЕ (од 2018 до 2022) | D37: =SUM(D38:D42) -> 0 | E37: =SUM(E38:E42) -> 0
A38: 2018 | B38: 714100 | C38: Општи порези на добра и услуге
A39: 2019 | B39: 714300 | C39: Добит фискалних монопола
A40: 2020 | B40: 714400 | C40: Порези на појединачне услуге
A41: 2021 | B41: 714500 | C41: Порези, таксе и накнаде на употребу добара, на дозволу да се добра употребљавају или делатности обављају
A42: 2022 | B42: 714600 | C42: Други порези на добра и услуге
A43: 2023 | B43: 715000 | C43: ПОРЕЗ НА МЕЂУНАРОДНУ ТРГОВИНУ И ТРАНСАКЦИЈЕ (од 2024 до 2029) | D43: =SUM(D44:D49) -> 0 | E43: =SUM(E44:E49) -> 0
A44: 2024 | B44: 715100 | C44: Царине и друге увозне дажбине
A45: 2025 | B45: 715200 | C45: Порези на извоз
A46: 2026 | B46: 715300 | C46: Добит извозних или увозних монопола
A47: 2027 | B47: 715400 | C47: Добит по основу разлике између куповног и продајног девизног курса
A48: 2028 | B48: 715500 | C48: Порези на продају или куповину девиза
A49: 2029 | B49: 715600 | C49: Други порези на међународну трговину и трансакције
A50: 2030 | B50: 716000 | C50: ДРУГИ ПОРЕЗИ (2031 + 2032) | D50: =D51+D52 -> 0 | E50: =E51+E52 -> 0
A51: 2031 | B51: 716100 | C51: Други порези које искључиво плаћају предузећа, односно предузетници
A52: 2032 | B52: 716200 | C52: Други порези које плаћају остала лица или који се не могу идентификовати
A53: 2033 | B53: 717000 | C53: АКЦИЗЕ (од 2034 до 2039) | D53: =SUM(D54:D59) -> 0 | E53: =SUM(E54:E59) -> 0
A54: 2034 | B54: 717100 | C54: Акцизе на деривате нафте
A55: 2035 | B55: 717200 | C55: Акцизе на дуванске прерађевине
A56: 2036 | B56: 717300 | C56: Акцизе на алкохолна пића
A57: 2037 | B57: 717400 | C57: Акцизе на освежавајућа безалкохолна пића
A58: 2038 | B58: 717500 | C58: Акцизе на кафу
A59: 2039 | B59: 717600 | C59: Друге акцизе
A60: 2040 | B60: 719000 | C60: ЈЕДНОКРАТНИ ПОРЕЗ НА ЕКСТРА ПРОФИТ И ЕКСТРА ИМОВИНУ СТЕЧЕНУ КОРИШЋЕЊЕМ ПОСЕБНИХ ПОГОДНОСТИ (од 2041 до 2046) | D60: =SUM(D61:D66) -> 0 | E60: =SUM(E61:E66) -> 0
A61: 2041 | B61: 719100 | C61: Порез на доходак, добит и капиталну добит на терет физичких лица
A62: 2042 | B62: 719200 | C62: Порез на доходак, добит и капиталну добит на терет предузећа и осталих правних лица
A63: 2043 | B63: 719300 | C63: Порез на доходак, добит и капиталну добит нераспоредив између физичких и правних лица
A64: 2044 | B64: 719400 | C64: Остали једнократни порези на имовину
A65: 2045 | B65: 719500 | C65: Остали порези које плаћају искључиво предузећа и предузетници
A66: 2046 | B66: 719600 | C66: Остали порези које плаћају друга или неидентификована лица
A67: 2047 | B67: 720000 | C67: СОЦИЈАЛНИ ДОПРИНОСИ (2048 + 2053) | D67: =D68+D73 -> 0 | E67: =E68+E73 -> 0
A68: 2048 | B68: 721000 | C68: ДОПРИНОСИ ЗА СОЦИЈАЛНО ОСИГУРАЊЕ (од 2049 до 2052) | D68: =SUM(D69:D72) -> 0 | E68: =SUM(E69:E72) -> 0
A69: 2049 | B69: 721100 | C69: Доприноси за социјално осигурање на терет запослених
A70: 2050 | B70: 721200 | C70: Доприноси за социјално осигурање на терет послодаваца
A71: 2051 | B71: 721300 | C71: Доприноси за социјално осигурање лица која обављају самосталну делатност и незапослених лица
A72: 2052 | B72: 721400 | C72: Доприноси за социјално осигурање који се не могу разврстати
A73: 2053 | B73: 722000 | C73: ОСТАЛИ СОЦИЈАЛНИ ДОПРИНОСИ (од 2054 до 2056) | D73: =SUM(D74:D76) -> 0 | E73: =SUM(E74:E76) -> 0
A74: 2054 | B74: 722100 | C74: Социјални доприноси на терет осигураника
A75: 2055 | B75: 722200 | C75: Социјални доприноси на терет послодавца
A76: 2056 | B76: 722300 | C76: Импутирани социјални доприноси
A77: 2057 | B77: 730000 | C77: ДОНАЦИЈЕ, ПОМОЋИ И ТРАНСФЕРИ (2058 + 2061 + 2066) | D77: =D78+D81+D86 -> 18247 | E77: =E78+E81+E86 -> 18412
A78: 2058 | B78: 731000 | C78: ДОНАЦИЈЕ ОД ИНОСТРАНИХ ДРЖАВА (2059 + 2060) | D78: =D79+D80 -> 0 | E78: =E79+E80 -> 0
A79: 2059 | B79: 731100 | C79: Текуће донације од иностраних држава
A80: 2060 | B80: 731200 | C80: Капиталне донације од иностраних држава
A81: 2061 | B81: 732000 | C81: ДОНАЦИЈЕ И ПОМОЋИ ОД МЕЂУНАРОДНИХ ОРГАНИЗАЦИЈА (од 2062 до 2065) | D81: =D82+D83+D84+D85 -> 0 | E81: =E82+E83+E84+E85 -> 0
A82: 2062 | B82: 732100 | C82: Текуће донације од међународних организација
A83: 2063 | B83: 732200 | C83: Капиталне донације од међународних организација
A84: 2064 | B84: 732300 | C84: Текуће помоћи од ЕУ
A85: 2065 | B85: 732400 | C85: Капиталне помоћи од ЕУ
A86: 2066 | B86: 733000 | C86: ТРАНСФЕРИ ОД ДРУГИХ НИВОА ВЛАСТИ (2067 + 2068) | D86: =D87+D88 -> 18247 | E86: =E87+E88 -> 18412
A87: 2067 | B87: 733100 | C87: Текући трансфери од других нивоа власти | D87: 18247 | E87: 18412
A88: 2068 | B88: 733200 | C88: Капитални трансфери од других нивоа власти
A89: 2069 | B89: 740000 | C89: ДРУГИ ПРИХОДИ (2070 + 2077 + 2082 + 2089 + 2092) | D89: =D90+D97+D102+D109+D112 -> 6367 | E89: =E90+E97+E102+E109+E112 -> 6219
A90: 2070 | B90: 741000 | C90: ПРИХОДИ ОД ИМОВИНЕ (од 2071 до 2076) | D90: =SUM(D91:D96) -> 120 | E90: =SUM(E91:E96) -> 296
A91: 2071 | B91: 741100 | C91: Камате
A92: 2072 | B92: 741200 | C92: Дивиденде
A93: 2073 | B93: 741300 | C93: Повлачење прихода од квази корпорација
A94: 2074 | B94: 741400 | C94: Приход од имовине који припада имаоцима полиса осигурања | D94: 120 | E94: 296
A95: 2075 | B95: 741500 | C95: Закуп непроизведене имовине
A96: 2076 | B96: 741600 | C96: Финансијске промене на финансијским лизинзима
A97: 2077 | B97: 742000 | C97: ПРИХОДИ ОД ПРОДАЈЕ ДОБАРА И УСЛУГА (од 2078 до 2081) | D97: =SUM(D98:D101) -> 6133 | E97: =SUM(E98:E101) -> 5907
A98: 2078 | B98: 742100 | C98: Приходи од продаје добара и услуга или закупа од стране тржишних организација | D98: 759 | E98: 687
A99: 2079 | B99: 742200 | C99: Таксе и накнаде
A100: 2080 | B100: 742300 | C100: Споредне продаје добара и услуга које врше државне нетржишне јединице | D100: 5374 | E100: 5220
A101: 2081 | B101: 742400 | C101: Импутиране продаје добара и услуга
A102: 2082 | B102: 743000 | C102: НОВЧАНЕ КАЗНЕ И ОДУЗЕТА ИМОВИНСКА КОРИСТ (од 2083 до 2088) | D102: =SUM(D103:D108) -> 0 | E102: =SUM(E103:E108) -> 0
A103: 2083 | B103: 743100 | C103: Приходи од новчаних казни за кривична дела
A104: 2084 | B104: 743200 | C104: Приходи од новчаних казни за привредне преступе
A105: 2085 | B105: 743300 | C105: Приходи од новчаних казни за прекршаје
A106: 2086 | B106: 743400 | C106: Приходи од пенала
A107: 2087 | B107: 743500 | C107: Приходи од одузете имовинске користи
A108: 2088 | B108: 743900 | C108: Остале новчане казне, пенали и приходи од одузете имовинске користи
A109: 2089 | B109: 744000 | C109: ДОБРОВОЉНИ ТРАНСФЕРИ ОД ФИЗИЧКИХ И ПРАВНИХ ЛИЦА (2090 + 2091) | D109: =D110+D111 -> 0 | E109: =E110+E111 -> 0
A110: 2090 | B110: 744100 | C110: Текући добровољни трансфери од физичких и правних лица
A111: 2091 | B111: 744200 | C111: Капитални добровољни трансфери од физичких и правних лица
A112: 2092 | B112: 745000 | C112: МЕШОВИТИ И НЕОДРЕЂЕНИ ПРИХОДИ (2093) | D112: =D113 -> 114 | E112: =E113 -> 16
A113: 2093 | B113: 745100 | C113: Мешовити и неодређени приходи | D113: 114 | E113: 16
A114: 2094 | B114: 770000 | C114: МЕМОРАНДУМСКЕ СТАВКЕ ЗА РЕФУНДАЦИЈУ РАСХОДА (2095 + 2097) | D114: =D115+D117 -> 0 | E114: =E115+E117 -> 0
A115: 2095 | B115: 771000 | C115: МЕМОРАНДУМСКЕ СТАВКЕ ЗА РЕФУНДАЦИЈУ РАСХОДА (2096) | D115: =D116 -> 0 | E115: =E116 -> 0
A116: 2096 | B116: 771100 | C116: Меморандумске ставке за рефундацију расхода
A117: 2097 | B117: 772000 | C117: МЕМОРАНДУМСКЕ СТАВКЕ ЗА РЕФУНДАЦИЈУ РАСХОДА ИЗ ПРЕТХОДНЕ ГОДИНЕ (2098) | D117: =D118 -> 0 | E117: =E118 -> 0
A118: 2098 | B118: 772100 | C118: Меморандумске ставке за рефундацију расхода из претходне године
A119: 2099 | B119: 780000 | C119: ТРАНСФЕРИ ИЗМЕЂУ БУЏЕТСКИХ КОРИСНИКА НА ИСТОМ НИВОУ (2100) | D119: =D120 -> 346942 | E119: =E120 -> 401848
A120: 2100 | B120: 781000 | C120: ТРАНСФЕРИ ИЗМЕЂУ БУЏЕТСКИХ КОРИСНИКА НА ИСТОМ НИВОУ (2101 + 2102) | D120: =D121+D122 -> 346942 | E120: =E121+E122 -> 401848
A121: 2101 | B121: 781100 | C121: Трансфери између буџетских корисника на истом нивоу | D121: 346942 | E121: 401848
A122: 2102 | B122: 781300 | C122: Трансфери између организација за обавезно социјално осигурање
A123: 2103 | B123: 790000 | C123: ПРИХОДИ ИЗ БУЏЕТА (2104) | D123: =D124 -> 0 | E123: =E124 -> 0
A124: 2104 | B124: 791000 | C124: ПРИХОДИ ИЗ БУЏЕТА (2105) | D124: =D125 -> 0 | E124: =E125 -> 0
A125: 2105 | B125: 791100 | C125: Приходи из буџета
A126: 2106 | B126: 800000 | C126: ПРИМАЊА ОД ПРОДАЈЕ НЕФИНАНСИЈСКЕ ИМОВИНЕ (2107 + 2114 + 2121 + 2124) | D126: =D127+D134+D141+D144 -> 6 | E126: =E127+E134+E141+E144 -> 5
A127: 2107 | B127: 810000 | C127: ПРИМАЊА ОД ПРОДАЈЕ ОСНОВНИХ СРЕДСТАВА (2108 + 2110 + 2112) | D127: =D128+D130+D132 -> 6 | E127: =E128+E130+E132 -> 5
A128: 2108 | B128: 811000 | C128: ПРИМАЊА ОД ПРОДАЈЕ НЕПОКРЕТНОСТИ (2109) | D128: =D129 -> 6 | E128: =E129 -> 5
A129: 2109 | B129: 811100 | C129: Примања од продаје непокретности | D129: 6 | E129: 5
A130: 2110 | B130: 812000 | C130: ПРИМАЊА ОД ПРОДАЈЕ ПОКРЕТНЕ ИМОВИНЕ (2111) | D130: =D131 -> 0 | E130: =E131 -> 0
A131: 2111 | B131: 812100 | C131: Примања од продаје покретне имовине
A132: 2112 | B132: 813000 | C132: ПРИМАЊА ОД ПРОДАЈЕ ОСТАЛИХ ОСНОВНИХ СРЕДСТАВА (2113) | D132: =D133 -> 0 | E132: =E133 -> 0
A133: 2113 | B133: 813100 | C133: Примања од продаје осталих основних средстава
A134: 2114 | B134: 820000 | C134: ПРИМАЊА ОД ПРОДАЈЕ ЗАЛИХА (2115 + 2117 + 2119) | D134: =D135+D137+D139 -> 0 | E134: =E135+E137+E139 -> 0
A135: 2115 | B135: 821000 | C135: ПРИМАЊА ОД ПРОДАЈЕ РОБНИХ РЕЗЕРВИ (2116) | D135: =D136 -> 0 | E135: =E136 -> 0
A136: 2116 | B136: 821100 | C136: Примања од продаје робних резерви
A137: 2117 | B137: 822000 | C137: ПРИМАЊА ОД ПРОДАЈЕ ЗАЛИХА ПРОИЗВОДЊЕ (2118) | D137: =D138 -> 0 | E137: =E138 -> 0
A138: 2118 | B138: 822100 | C138: Примања од продаје залиха производње
A139: 2119 | B139: 823000 | C139: ПРИМАЊА ОД ПРОДАЈЕ РОБЕ ЗА ДАЉУ ПРОДАЈУ (2120) | D139: =D140 -> 0 | E139: =E140 -> 0
A140: 2120 | B140: 823100 | C140: Примања од продаје робе за даљу продају
A141: 2121 | B141: 830000 | C141: ПРИМАЊА ОД ПРОДАЈЕ ДРАГОЦЕНОСТИ (2122) | D141: =D142 -> 0 | E141: =E142 -> 0
A142: 2122 | B142: 831000 | C142: ПРИМАЊА ОД ПРОДАЈЕ ДРАГОЦЕНОСТИ (2123) | D142: =D143 -> 0 | E142: =E143 -> 0
A143: 2123 | B143: 831100 | C143: Примања од продаје драгоцености
A144: 2124 | B144: 840000 | C144: ПРИМАЊА ОД ПРОДАЈЕ ПРИРОДНЕ ИМОВИНЕ (2125 + 2127 + 2129) | D144: =D145+D147+D149 -> 0 | E144: =E145+E147+E149 -> 0
A145: 2125 | B145: 841000 | C145: ПРИМАЊА ОД ПРОДАЈЕ ЗЕМЉИШТА (2126) | D145: =D146 -> 0 | E145: =E146 -> 0
A146: 2126 | B146: 841100 | C146: Примања од продаје земљишта
A147: 2127 | B147: 842000 | C147: ПРИМАЊА ОД ПРОДАЈЕ ПОДЗЕМНИХ БЛАГА (2128) | D147: =D148 -> 0 | E147: =E148 -> 0
A148: 2128 | B148: 842100 | C148: Примања од продаје подземних блага
A149: 2129 | B149: 843000 | C149: ПРИМАЊА ОД ПРОДАЈЕ ШУМА И ВОДА (2130) | D149: =D150 -> 0 | E149: =E150 -> 0
A150: 2130 | B150: 843100 | C150: Примања од продаје шума и вода
A151: 2131 | C151: ТЕКУЋИ РАСХОДИ И ИЗДАЦИ ЗА НЕФИНАНСИЈСКУ ИМОВИНУ (2132 + 2300) | D151: =D152+D320 -> 371345 | E151: =E152+E320 -> 428258
A152: 2132 | B152: 400000 | C152: ТЕКУЋИ РАСХОДИ (2133 + 2155 + 2200 + 2215 + 2239 + 2252 + 2268 + 2283) | D152: =D153+D175+D220+D235+D259+D272+D288+D303 -> 369119 | E152: =E153+E175+E220+E235+E259+E272+E288+E303 -> 418805
A153: 2133 | B153: 410000 | C153: РАСХОДИ ЗА ЗАПОСЛЕНЕ (2134 + 2136 + 2140 + 2142 + 2147 + 2149 + 2151 + 2153) | D153: =D154+D156+D160+D162+D167+D169+D171+D173 -> 295631 | E153: =E154+E156+E160+E162+E167+E169+E171+E173 -> 336746
A154: 2134 | B154: 411000 | C154: ПЛАТЕ, ДОДАЦИ И НАКНАДЕ ЗАПОСЛЕНИХ (ЗАРАДЕ) (2135) | D154: =D155 -> 245071 | E154: =E155 -> 279111
A155: 2135 | B155: 411100 | C155: Плате, додаци и накнаде запослених | D155: 245071 | E155: 279111
A156: 2136 | B156: 412000 | C156: СОЦИЈАЛНИ ДОПРИНОСИ НА ТЕРЕТ ПОСЛОДАВЦА (од 2137 до 2139) | D156: =SUM(D157:D159) -> 37173 | E156: =SUM(E157:E159) -> 42318
A157: 2137 | B157: 412100 | C157: Допринос за пензијско и инвалидско осигурање | D157: 24537 | E157: 27932
A158: 2138 | B158: 412200 | C158: Допринос за здравствено осигурање | D158: 12636 | E158: 14386
A159: 2139 | B159: 412300 | C159: Допринос за незапосленост
A160: 2140 | B160: 413000 | C160: НАКНАДЕ У НАТУРИ (2141) | D160: =D161 -> 392 | E160: =E161 -> 201
A161: 2141 | B161: 413100 | C161: Накнаде у натури | D161: 392 | E161: 201
A162: 2142 | B162: 414000 | C162: СОЦИЈАЛНА ДАВАЊА ЗАПОСЛЕНИМА (од 2143 до 2146) | D162: =SUM(D163:D166) -> 3822 | E162: =SUM(E163:E166) -> 3358
A163: 2143 | B163: 414100 | C163: Исплата накнада за време одсуствовања с посла на терет фондова | E163: 50
A164: 2144 | B164: 414200 | C164: Расходи за образовање деце запослених
A165: 2145 | B165: 414300 | C165: Отпремнине и помоћи | D165: 3172 | E165: 2478
A166: 2146 | B166: 414400 | C166: Помоћ у медицинском лечењу запосленог или чланова уже породице и друге помоћи запосленом | D166: 650 | E166: 830
A167: 2147 | B167: 415000 | C167: НАКНАДЕ ТРОШКОВА ЗА ЗАПОСЛЕНЕ (2148) | D167: =D168 -> 6552 | E167: =E168 -> 8071
A168: 2148 | B168: 415100 | C168: Накнаде трошкова за запослене | D168: 6552 | E168: 8071
A169: 2149 | B169: 416000 | C169: НАГРАДЕ ЗАПОСЛЕНИМА И ОСТАЛИ ПОСЕБНИ РАСХОДИ (2150) | D169: =D170 -> 2621 | E169: =E170 -> 3687
A170: 2150 | B170: 416100 | C170: Награде запосленима и остали посебни расходи | D170: 2621 | E170: 3687
A171: 2151 | B171: 417000 | C171: ПОСЛАНИЧКИ ДОДАТАК (2152) | D171: =D172 -> 0 | E171: =E172 -> 0
A172: 2152 | B172: 417100 | C172: Посланички додатак
A173: 2153 | B173: 418000 | C173: СУДИЈСКИ ДОДАТАК (2154) | D173: =D174 -> 0 | E173: =E174 -> 0
A174: 2154 | B174: 418100 | C174: Судијски додатак
A175: 2155 | B175: 420000 | C175: КОРИШЋЕЊЕ УСЛУГА И РОБА (2156 + 2164 + 2170 + 2179 + 2187 + 2190) | D175: =D176+D184+D190+D199+D207+D210 -> 71371 | E175: =E176+E184+E190+E199+E207+E210 -> 80106
A176: 2156 | B176: 421000 | C176: СТАЛНИ ТРОШКОВИ (од 2157 до 2163) | D176: =SUM(D177:D183) -> 12974 | E176: =SUM(E177:E183) -> 13538
A177: 2157 | B177: 421100 | C177: Трошкови платног промета и банкарских услуга | D177: 435 | E177: 454
A178: 2158 | B178: 421200 | C178: Енергетске услуге | D178: 8524 | E178: 8190
A179: 2159 | B179: 421300 | C179: Комуналне услуге | D179: 1103 | E179: 1658
A180: 2160 | B180: 421400 | C180: Услуге комуникација | D180: 1544 | E180: 1884
A181: 2161 | B181: 421500 | C181: Трошкови осигурања | D181: 1087 | E181: 1110
A182: 2162 | B182: 421600 | C182: Закуп имовине и опреме
A183: 2163 | B183: 421900 | C183: Остали трошкови | D183: 281 | E183: 242
A184: 2164 | B184: 422000 | C184: ТРОШКОВИ ПУТОВАЊА (од 2165 до 2169) | D184: =SUM(D185:D189) -> 671 | E184: =SUM(E185:E189) -> 418
A185: 2165 | B185: 422100 | C185: Трошкови службених путовања у земљи | D185: 612 | E185: 418
A186: 2166 | B186: 422200 | C186: Трошкови службених путовања у иностранство
A187: 2167 | B187: 422300 | C187: Трошкови путовања у оквиру редовног рада
A188: 2168 | B188: 422400 | C188: Трошкови путовања ученика
A189: 2169 | B189: 422900 | C189: Остали трошкови транспорта | D189: 59
A190: 2170 | B190: 423000 | C190: УСЛУГЕ ПО УГОВОРУ (од 2171 до 2178) | D190: =SUM(D191:D198) -> 8192 | E190: =SUM(E191:E198) -> 9344
A191: 2171 | B191: 423100 | C191: Административне услуге
A192: 2172 | B192: 423200 | C192: Компјутерске услуге | D192: 1834 | E192: 2470
A193: 2173 | B193: 423300 | C193: Услуге образовања и усавршавања запослених | D193: 1514 | E193: 2344
A194: 2174 | B194: 423400 | C194: Услуге информисања
A195: 2175 | B195: 423500 | C195: Стручне услуге | D195: 3527 | E195: 3514
A196: 2176 | B196: 423600 | C196: Услуге за домаћинство и угоститељство
A197: 2177 | B197: 423700 | C197: Репрезентација | D197: 275 | E197: 344
A198: 2178 | B198: 423900 | C198: Остале опште услуге | D198: 1042 | E198: 672
A199: 2179 | B199: 424000 | C199: СПЕЦИЈАЛИЗОВАНЕ УСЛУГЕ (од 2180 до 2186) | D199: =SUM(D200:D206) -> 6990 | E199: =SUM(E200:E206) -> 8692
A200: 2180 | B200: 424100 | C200: Пољопривредне услуге
A201: 2181 | B201: 424200 | C201: Услуге образовања, културе и спорта
A202: 2182 | B202: 424300 | C202: Медицинске услуге | D202: 6990 | E202: 8464
A203: 2183 | B203: 424400 | C203: Услуге одржавања аутопутева
A204: 2184 | B204: 424500 | C204: Услуге одржавања националних паркова и природних површина
A205: 2185 | B205: 424600 | C205: Услуге очувања животне средине, науке и геодетске услуге
A206: 2186 | B206: 424900 | C206: Остале специјализоване услуге | E206: 228
A207: 2187 | B207: 425000 | C207: ТЕКУЋЕ ПОПРАВКЕ И ОДРЖАВАЊЕ (2188 + 2189) | D207: =D208+D209 -> 3412 | E207: =E208+E209 -> 3917
A208: 2188 | B208: 425100 | C208: Текуће поправке и одржавање зграда и објеката | D208: 368 | E208: 965
... 176 more rows

Sheet ObrazacBS
G1: Образац БС
A7: Назив корисника буџетских средстава
A8: =NazKorisnika -> Дом здравља Уб
A9: ="Седиште: " &biop -> Седиште: Уб | E9: ="Матични број: " & MatBroj -> Матични број: 17211692
A10: ="ПИБ: " & bip -> ПИБ: 101349256 | E10: ="Број подрачуна: " & BrojPodr -> Број подрачуна: 840-407661-24
A11: Назив надлежног директног корисника буџетских средстава
A14: БИЛАНС СТАЊА
A15: на дан 31.12.2025.
G17: (У хиљадама динара)
A18: Ознака ОП | B18: Број конта | C18: Опис | D18: Износ из претходне године | E18: Износ текуће године
D19: (почетно стање) | E19: Бруто | F19: Исправка вредности | G19: Нето (5 – 6)
A21: 1 | B21: 2 | C21: 3 | D21: 4 | E21: 5 | F21: 6 | G21: 7
C22: АКТИВА
A23: 1001 | B23: 000000 | C23: НEФИНАНСИЈСКА ИМОВИНА (1002 + 1020) | D23: =D24+D42 -> 286870 | E23: =E24+E42 -> 494939 | F23: =F24+F42 -> 219378 | G23: =E23-F23 -> 275561
A24: 1002 | B24: 010000 | C24: НЕФИНАНСИЈСКА ИМОВИНА У СТАЛНИМ СРЕДСТВИМА (1003 + 1007 + 1009 + 1011 + 1015 + 1018) | D24: =D25+D29+D31+D33+D37+D40 -> 283169 | E24: =E25+E29+E31+E33+E37+E40 -> 451457 | F24: =F25+F29+F31+F33+F37+F40 -> 179354 | G24: 272103
A25: 1003 | B25: 011000 | C25: НЕКРЕТНИНЕ И ОПРЕМА (од 1004 до 1006) | D25: =SUM(D26:D28) -> 283169 | E25: =SUM(E26:E28) -> 449969 | F25: =SUM(F26:F28) -> 177866 | G25: 272103
A26: 1004 | B26: 011100 | C26: Зграде и грађевински објекти | D26: 235670 | E26: 273160 | F26: 41585 | G26: 231575
A27: 1005 | B27: 011200 | C27: Опрема | D27: 47499 | E27: 176809 | F27: 136281 | G27: 40528
A28: 1006 | B28: 011300 | C28: Остале некретнине и опрема | G28: 0
A29: 1007 | B29: 012000 | C29: КУЛТИВИСАНА ИМОВИНА (1008) | D29: =D30 -> 0 | E29: =E30 -> 0 | F29: =F30 -> 0 | G29: 0
A30: 1008 | B30: 012100 | C30: Култивисана имовина | G30: 0
A31: 1009 | B31: 013000 | C31: ДРАГОЦЕНОСТИ (1010) | D31: =D32 -> 0 | E31: =E32 -> 0 | F31: =F32 -> 0 | G31: 0
A32: 1010 | B32: 013100 | C32: Драгоцености | G32: 0
A33: 1011 | B33: 014000 | C33: ПРИРОДНА ИМОВИНА (од 1012 до 1014) | D33: =SUM(D34:D36) -> 0 | E33: =SUM(E34:E36) -> 0 | F33: =SUM(F34:F36) -> 0 | G33: 0
A34: 1012 | B34: 014100 | C34: Земљиште | G34: 0
A35: 1013 | B35: 014200 | C35: Подземна блага | G35: 0
A36: 1014 | B36: 014300 | C36: Шуме и воде | G36: 0
A37: 1015 | B37: 015000 | C37: НЕФИНАНСИЈСКА ИМОВИНА У ПРИПРЕМИ И АВАНСИ (1016 + 1017) | D37: =D38+D39 -> 0 | E37: =E38+E39 -> 0 | F37: =F38+F39 -> 0 | G37: 0
A38: 1016 | B38: 015100 | C38: Нефинансијска имовина у припреми | G38: 0
A39: 1017 | B39: 015200 | C39: Аванси за нефинансијску имовину | G39: 0
A40: 1018 | B40: 016000 | C40: НЕМАТЕРИЈАЛНА ИМОВИНА (1019) | D40: =D41 -> 0 | E40: =E41 -> 1488 | F40: =F41 -> 1488 | G40: 0
A41: 1019 | B41: 016100 | C41: Нематеријална имовина | E41: 1488 | F41: 1488 | G41: 0
A42: 1020 | B42: 020000 | C42: НЕФИНАНСИЈСКА ИМОВИНА У ЗАЛИХАМА (1021 + 1025) | D42: =D43+D51 -> 3701 | E42: =E43+E51 -> 43482 | F42: =F43+F51 -> 40024 | G42: 3458
A43: 1021 | B43: 021000 | C43: ЗАЛИХЕ (од 1022 до 1024) | D43: =SUM(D44:D50) -> 0 | E43: =SUM(E44:E50) -> 0 | F43: =SUM(F44:F50) -> 0 | G43: 0
A44: 1022 | B44: 021100 | C44: Робне резерве | G44: 0
A45: Ознака ОП | B45: Број конта | C45: Опис | D45: Износ из претходне године | E45: Износ текуће године
D46: (почетно стање) | E46: Бруто | F46: Исправка вредности | G46: Нето (5 – 6)
A48: 1 | B48: 2 | C48: 3 | D48: 4 | E48: 5 | F48: 6 | G48: 7
A49: 1023 | B49: 021200 | C49: Залихе производње | G49: 0
A50: 1024 | B50: 021300 | C50: Роба за даљу продају | G50: 0
A51: 1025 | B51: 022000 | C51: ЗАЛИХЕ СИТНОГ ИНВЕНТАРА И ПОТРОШНОГ МАТЕРИЈАЛА (1026 + 1027) | D51: =D52+D53 -> 3701 | E51: =E52+E53 -> 43482 | F51: =F52+F53 -> 40024 | G51: 3458
A52: 1026 | B52: 022100 | C52: Залихе ситног инвентара | E52: 8615 | F52: 8615 | G52: 0
A53: 1027 | B53: 022200 | C53: Залихе потрошног материјала | D53: 3701 | E53: 34867 | F53: 31409 | G53: 3458
A54: 1028 | B54: 100000 | C54: ФИНАНСИЈСКА ИМОВИНА (1029 + 1049 + 1067) | D54: =D55+D75+D97 -> 48634 | E54: =E55+E75+E97 -> 54205 | F54: =F55+F75+F97 -> 0 | G54: 54205
A55: 1029 | B55: 110000 | C55: ДУГОРОЧНА ФИНАНСИЈСКА ИМОВИНА (1030 + 1040) | D55: =D56+D66 -> 83 | E55: =E56+E66 -> 77 | F55: =F56+F66 -> 0 | G55: 77
A56: 1030 | B56: 111000 | C56: ДУГОРОЧНА ДОМАЋА ФИНАНСИЈСКА ИМОВИНА (од 1031 до 1039) | D56: =SUM(D57:D65) -> 83 | E56: =SUM(E57:E65) -> 77 | F56: =SUM(F57:F65) -> 0 | G56: 77
A57: 1031 | B57: 111100 | C57: Дугорочне домаће хартије од вредности, изузев акција | G57: 0
A58: 1032 | B58: 111200 | C58: Кредити осталим нивоима власти | G58: 0
A59: 1033 | B59: 111300 | C59: Кредити домаћим јавним финансијским институцијама | G59: 0
A60: 1034 | B60: 111400 | C60: Кредити домаћим пословним банкама | G60: 0
A61: 1035 | B61: 111500 | C61: Кредити домаћим јавним нефинансијским институцијама | G61: 0
A62: 1036 | B62: 111600 | C62: Кредити физичким лицима и домаћинствима у земљи | D62: 83 | E62: 77 | G62: 77
A63: 1037 | B63: 111700 | C63: Кредити домаћим невладиним организацијама | G63: 0
A64: 1038 | B64: 111800 | C64: Кредити домаћим нефинансијским приватним предузећима | G64: 0
A65: 1039 | B65: 111900 | C65: Домаће акције и остали капитал | G65: 0
A66: 1040 | B66: 112000 | C66: ДУГОРОЧНA СТРАНА ФИНАНСИЈСКА ИМОВИНА (од 1041 до 1048) | D66: =SUM(D67:D74) -> 0 | E66: =SUM(E67:E74) -> 0 | F66: =SUM(F67:F74) -> 0 | G66: 0
A67: 1041 | B67: 112100 | C67: Дугорочне стране хартије од вредности, изузев акција | G67: 0
A68: 1042 | B68: 112200 | C68: Кредити страним владама | G68: 0
A69: 1043 | B69: 112300 | C69: Кредити међународним организацијама | G69: 0
A70: 1044 | B70: 112400 | C70: Кредити страним пословним банкама | G70: 0
A71: 1045 | B71: 112500 | C71: Кредити страним нефинансијским институцијама | G71: 0
A72: 1046 | B72: 112600 | C72: Кредити страним невладиним организацијама | G72: 0
A73: 1047 | B73: 112700 | C73: Стране акције и остали капитал | G73: 0
A74: 1048 | B74: 112800 | C74: Страни финансијски деривати | G74: 0
A75: 1049 | B75: 120000 | C75: НОВЧАНА СРЕДСТВА, ПЛЕМЕНИТИ МЕТАЛИ, ХАРТИЈЕ ОД ВРЕДНОСТИ, ПОТРАЖИВАЊА И КРАТКОРОЧНИ ПЛАСМАНИ (1050+ 1060 + 1062) | D75: =D76+D86+D92 -> 21552 | E75: =E76+E86+E92 -> 24619 | F75: =F76+F86+F92 -> 0 | G75: 24619
A76: 1050 | B76: 121000 | C76: НОВЧАНА СРЕДСТВА, ПЛЕМЕНИТИ МЕТАЛИ, ХАРТИЈЕ ОД ВРЕДНОСТИ (од 1051 до 1059) | D76: =D77+D78+D79+D80+D81+D82+D83+D84+D85 -> 2523 | E76: =E77+E78+E79+E80+E81+E82+E83+E84+E85 -> 650 | F76: =F77+F78+F79+F80+F81+F82+F83+F84+F85 -> 0 | G76: 650
A77: 1051 | B77: 121100 | C77: Жиро и текући рачуни | D77: 2104 | E77: 650 | G77: 650
A78: 1052 | B78: 121200 | C78: Издвојена новчана средства и акредитиви | D78: 419 | G78: 0
A79: 1053 | B79: 121300 | C79: Благајна | G79: 0
A80: 1054 | B80: 121400 | C80: Девизни рачун | G80: 0
A81: 1055 | B81: 121500 | C81: Девизни акредитиви | G81: 0
A82: 1056 | B82: 121600 | C82: Девизна благајна | G82: 0
A83: 1057 | B83: 121700 | C83: Остала новчана средства | G83: 0
A84: 1058 | B84: 121800 | C84: Племенити метали | G84: 0
A85: 1059 | B85: 121900 | C85: Хартије од вредности | G85: 0
A86: 1060 | B86: 122000 | C86: КРАТКОРОЧНА ПОТРАЖИВАЊА (1061) | D86: =D91 -> 18571 | E86: =E91 -> 23960 | F86: =F91 -> 0 | G86: 23960
A87: Ознака ОП | B87: Број конта | C87: Опис | D87: Износ из претходне године | E87: Износ текуће године
D88: (почетно стање) | E88: Бруто | F88: Исправка вредности | G88: Нето (5 – 6)
A90: 1 | B90: 2 | C90: 3 | D90: 4 | E90: 5 | F90: 6 | G90: 7
A91: 1061 | B91: 122100 | C91: Потраживања по основу продаје и друга потраживања | D91: 18571 | E91: 23960 | G91: =E91-F91 -> 23960
A92: 1062 | B92: 123000 | C92: КРАТКОРОЧНИ ПЛАСМАНИ (од 1063 до 1066) | D92: =SUM(D93:D96) -> 458 | E92: =SUM(E93:E96) -> 9 | F92: =SUM(F93:F96) -> 0 | G92: 9
A93: 1063 | B93: 123100 | C93: Краткорочни кредити | G93: 0
A94: 1064 | B94: 123200 | C94: Дати аванси, депозити и кауције | D94: 458 | E94: 9 | G94: 9
A95: 1065 | B95: 123300 | C95: Хартије од вредности намењене продаји | G95: 0
A96: 1066 | B96: 123900 | C96: Остали краткорочни пласмани | G96: 0
A97: 1067 | B97: 130000 | C97: АКТИВНА ВРЕМЕНСКА РАЗГРАНИЧЕЊА (1068) | D97: =D98 -> 26999 | E97: =E98 -> 29509 | F97: =F98 -> 0 | G97: 29509
A98: 1068 | B98: 131000 | C98: АКТИВНА ВРЕМЕНСКА РАЗГРАНИЧЕЊА (од 1069 до 1071) | D98: =SUM(D99:D101) -> 26999 | E98: =SUM(E99:E101) -> 29509 | F98: =SUM(F99:F101) -> 0 | G98: 29509
A99: 1069 | B99: 131100 | C99: Разграничени расходи до једне године | G99: 0
A100: 1070 | B100: 131200 | C100: Обрачунати неплаћени расходи и издаци | D100: 26999 | E100: 29509 | G100: 29509
A101: 1071 | B101: 131300 | C101: Остала активна временска разграничења | G101: 0
A102: 1072 | C102: УКУПНА АКТИВА (1001 + 1028) | D102: =D23+D54 -> 335504 | E102: =E23+E54 -> 549144 | F102: =F23+F54 -> 219378 | G102: 329766
A103: 1073 | B103: 351000 | C103: ВАНБИЛАНСНА АКТИВА | D103: 3988 | E103: 3988 | G103: 3988
A104: Ознака ОП | B104: Број конта | C104: Опис | F104: Износ
F105: Претходна година | G105: Текућа година
A106: 1 | B106: 2 | C106: 3 | F106: 4 | G106: 5
C107: ПАСИВА
A108: 1074 | B108: 200000 | C108: ОБАВЕЗЕ (1075 + 1099 + 1118 + 1173 + 1198 + 1212) | F108: =F109+F133+F155+F213+F241+F255 -> 46028 | G108: =G109+G133+G155+G213+G241+G255 -> 53478
A109: 1075 | B109: 210000 | C109: ДУГОРОЧНЕ ОБАВЕЗЕ (1076 + 1086 + 1093 + 1095 + 1097) | F109: =F110+F120+F127+F129+F131 -> 0 | G109: =G110+G120+G127+G129+G131 -> 0
A110: 1076 | B110: 211000 | C110: ДОМАЋЕ ДУГОРОЧНЕ ОБАВЕЗЕ (од 1077 до 1085) | F110: =SUM(F111:F119) -> 0 | G110: =SUM(G111:G119) -> 0
A111: 1077 | B111: 211100 | C111: Обавезе умањене за дисконт по основу емитованих хартија од вредности, изузев акција
A112: 1078 | B112: 211200 | C112: Обавезе по основу дугорочних кредита од осталих нивоа власти
A113: 1079 | B113: 211300 | C113: Обавезе по основу дугорочних кредита од домаћих јавних финансијских институција
A114: 1080 | B114: 211400 | C114: Обавезе по основу дугорочних кредита од домаћих пословних банака
A115: 1081 | B115: 211500 | C115: Обавезе по основу дугорочних кредита од осталих домаћих кредитора
A116: 1082 | B116: 211600 | C116: Обавезе по основу дугорочних кредита од домаћинстава у земљи
A117: 1083 | B117: 211700 | C117: Дугорочне обавезе по основу домаћих финансијских деривата
A118: 1084 | B118: 211800 | C118: Дугорочне обавезе по основу домаћих меница
A119: 1085 | B119: 211900 | C119: Дугорочне обавезе за финансијске лизинге
A120: 1086 | B120: 212000 | C120: СТРАНЕ ДУГОРОЧНЕ ОБАВЕЗЕ (од 1087 до 1092) | F120: =SUM(F121:F126) -> 0 | G120: =SUM(G121:G126) -> 0
A121: 1087 | B121: 212100 | C121: Дугорочне стране обавезе умањене за дисконт по основу емитованих хартија од вредности, изузев акција
A122: 1088 | B122: 212200 | C122: Обавезе по основу дугорочних кредита од страних влада
A123: 1089 | B123: 212300 | C123: Обавезе по основу дугорочних кредита од мултилатералних институција
A124: 1090 | B124: 212400 | C124: Обавезе по основу дугорочних кредита од страних пословних банака
A125: 1091 | B125: 212500 | C125: Обавезе по основу дугорочних кредита од осталих страних кредитора
A126: 1092 | B126: 212600 | C126: Дугорочне обавезе по основу страних финансијских деривата
A127: 1093 | B127: 213000 | C127: ДУГОРОЧНЕ ОБАВЕЗЕ ПО ОСНОВУ ГАРАНЦИЈА (1094) | F127: =F128 -> 0 | G127: =G128 -> 0
A128: 1094 | B128: 213100 | C128: Дугорочне обавезе по основу гаранција
A129: 1095 | B129: 214000 | C129: ОБАВЕЗЕ ПО ОСНОВУ ОТПЛАТЕ ГЛАВНИЦЕ ЗА ФИНАНСИЈСКИ ЛИЗИНГ (1096) | F129: =F130 -> 0 | G129: =G130 -> 0
A130: 1096 | B130: 214100 | C130: Обавезе по основу отплате главнице зa финансијски лизинг
A131: 1097 | B131: 215000 | C131: ОБАВЕЗЕ ПО ОСНОВУ ОТПЛАТА ГАРАНЦИЈА ПО КОМЕРЦИЈАЛНИМ ТРАНСАКЦИЈАМА (1098) | F131: =F132 -> 0 | G131: =G132 -> 0
A132: 1098 | B132: 215100 | C132: Обавезе по основу отплата гаранција по комерцијалним трансакцијама
A133: 1099 | B133: 220000 | C133: КРАТКОРОЧНЕ ОБАВЕЗЕ (1100 + 1109 + 1116) | F133: =F134+F146+F153 -> 0 | G133: =G134+G146+G153 -> 0
A134: 1100 | B134: 221000 | C134: КРАТКОРОЧНЕ ДОМАЋЕ ОБАВЕЗЕ (од 1101 до 1108) | D134: КРАТКОРОЧНЕ ДОМАЋЕ ОБАВЕЗЕ (од 1101 до 1108) | E134: КРАТКОРОЧНЕ ДОМАЋЕ ОБАВЕЗЕ (од 1101 до 1108) | F134: =SUM(F135:F142) -> 0 | G134: =SUM(G135:G142) -> 0
A135: 1101 | B135: 221100 | C135: Краткорочне домаће обавезе умањене за дисконт по основу емитованих хартија од вредности, изузев акција | D135: Краткорочне домаће обавезе по основу емитованих хартија од вредности, изузев акција | E135: Краткорочне домаће обавезе по основу емитованих хартија од вредности, изузев акција
A136: 1102 | B136: 221200 | C136: Обавезе по основу краткорочних кредита од осталих нивоа власти | D136: Обавезе по основу краткорочних кредита од осталих нивоа власти | E136: Обавезе по основу краткорочних кредита од осталих нивоа власти
A137: 1103 | B137: 221300 | C137: Обавезе по основу краткорочних кредита од домаћих јавних финансијских институција | D137: Обавезе по основу краткорочних кредита од домаћих јавних финансијских институција | E137: Обавезе по основу краткорочних кредита од домаћих јавних финансијских институција
A138: 1104 | B138: 221400 | C138: Обавезе по основу краткорочних кредита од домаћих пословних банака | D138: Обавезе по основу краткорочних кредита од домаћих пословних банака | E138: Обавезе по основу краткорочних кредита од домаћих пословних банака
A139: 1105 | B139: 221500 | C139: Обавезе по основу краткорочних кредита од осталих домаћих кредитора | D139: Обавезе по основу краткорочних кредита од осталих домаћих кредитора | E139: Обавезе по основу краткорочних кредита од осталих домаћих кредитора
A140: 1106 | B140: 221600 | C140: Обавезе по основу краткорочних кредита од домаћинстава у земљи | D140: Обавезе по основу краткорочних кредита од домаћинстава у земљи | E140: Обавезе по основу краткорочних кредита од домаћинстава у земљи
A141: 1107 | B141: 221700 | C141: Краткорочне обавезе по основу домаћих финансијских деривата | D141: Краткорочне обавезе по основу домаћих финансијских деривата | E141: Краткорочне обавезе по основу домаћих финансијских деривата
A142: 1108 | B142: 221800 | C142: Краткорочне обавезе по основу домаћих меница | D142: Краткорочне обавезе по основу домаћих меница | E142: Краткорочне обавезе по основу домаћих меница
A143: Ознака ОП | B143: Број конта | C143: Опис | F143: Износ
F144: Претходна година | G144: Текућа година
A145: 1 | B145: 2 | C145: 3 | F145: 4 | G145: 5
A146: 1109 | B146: 222000 | C146: КРАТКОРОЧНЕ СТРАНЕ ОБАВЕЗЕ (од 1110 до 1115) | D146: КРАТКОРОЧНЕ СТРАНЕ ОБАВЕЗЕ (од 1110 до 1115) | E146: КРАТКОРОЧНЕ СТРАНЕ ОБАВЕЗЕ (од 1110 до 1115) | F146: =F147+F148+F149+F150+F151+F152 -> 0 | G146: =G147+G148+G149+G150+G151+G152 -> 0
A147: 1110 | B147: 222100 | C147: Краткорочне стране обавезе умањене за дисконт по основу емитованих хартија од вредности, изузев акција | D147: Краткорочне стране обавезе по основу емитованих хартија од вредности, изузев акција | E147: Краткорочне стране обавезе по основу емитованих хартија од вредности, изузев акција
A148: 1111 | B148: 222200 | C148: Обавезе по основу краткорочних кредита од страних влада
A149: 1112 | B149: 222300 | C149: Обавезе по основу краткорочних кредита од мултилатералних институција
A150: 1113 | B150: 222400 | C150: Обавезе по основу краткорочних кредита од страних пословних банака
A151: 1114 | B151: 222500 | C151: Обавезе по основу краткорочних кредита од осталих страних кредитора
A152: 1115 | B152: 222600 | C152: Краткорочне обавезе по основу страних финансијских деривата
A153: 1116 | B153: 223000 | C153: КРАТКОРОЧНЕ ОБАВЕЗЕ ПО ОСНОВУ ГАРАНЦИЈА (1117) | F153: =F154 -> 0 | G153: =G154 -> 0
A154: 1117 | B154: 223100 | C154: Краткорочне обавезе по основу гаранција
A155: 1118 | B155: 230000 | C155: ОБАВЕЗЕ ПО ОСНОВУ РАСХОДА ЗА ЗАПОСЛЕНЕ (1119 + 1125 + 1131 + 1137 + 1141+ 1147 + 1153 + 1161 + 1167) | F155: =F156+F162+F168+F174+F178+F187+F193+F201+F207 -> 15713 | G155: =G156+G162+G168+G174+G178+G187+G193+G201+G207 -> 16147
A156: 1119 | B156: 231000 | C156: ОБАВЕЗЕ ЗА ПЛАТЕ И ДОДАТКЕ (од 1120 до 1124) | F156: =SUM(F157:F161) -> 12103 | G156: =SUM(G157:G161) -> 12966
A157: 1120 | B157: 231100 | C157: Обавезе за нето плате и додатке | F157: 8740 | G157: 9391
A158: 1121 | B158: 231200 | C158: Обавезе по основу пореза на плате и додатке | F158: 960 | G158: 1000
A159: 1122 | B159: 231300 | C159: Обавезе по основу доприноса за пензијско и инвалидско осигурање на плате и додатке | F159: 1694 | G159: 1815
A160: 1123 | B160: 231400 | C160: Обавезе по основу доприноса за здравствено осигурање на плате и додатке | F160: 623 | G160: 668
A161: 1124 | B161: 231500 | C161: Обавезе по основу доприноса за незапосленост на плате и додатке | F161: 86 | G161: 92
A162: 1125 | B162: 232000 | C162: ОБАВЕЗЕ ПО ОСНОВУ НАКНАДА ЗАПОСЛЕНИМА (од 1126 до 1130) | F162: =SUM(F163:F167) -> 704 | G162: =SUM(G163:G167) -> 70
A163: 1126 | B163: 232100 | C163: Обавезе по основу нето накнада запосленима | F163: 636 | G163: 66
A164: 1127 | B164: 232200 | C164: Обавезе по основу пореза за накнаде запосленима | F164: 68 | G164: 4
A165: 1128 | B165: 232300 | C165: Обавезе по основу доприноса за пензијско и инвалидско осигурање за накнаде запосленима
A166: 1129 | B166: 232400 | C166: Обавезе по основу доприноса за здравствено осигурање за накнаде запосленима
A167: 1130 | B167: 232500 | C167: Обавезе по основу доприноса за незапосленост за накнаде запосленима
A168: 1131 | B168: 233000 | C168: ОБАВЕЗЕ ЗА НАГРАДЕ И ОСТАЛЕ ПОСЕБНЕ РАСХОДЕ (од 1132 до 1136) | F168: =SUM(F169:F173) -> 0 | G168: =SUM(G169:G173) -> 0
A169: 1132 | B169: 233100 | C169: Обавезе по основу нето исплата награда и осталих посебних расхода
A170: 1133 | B170: 233200 | C170: Обавезе по основу пореза на награде и остале посебне расходе
A171: 1134 | B171: 233300 | C171: Обавезе по основу доприноса за пензијско и инвалидско осигурање за награде и остале посебне расходе
A172: 1135 | B172: 233400 | C172: Обавезе по основу доприноса за здравствено осигурање за награде и остале посебне расходе
A173: 1136 | B173: 233500 | C173: Обавезе по основу доприноса за случај незапослености за награде и остале посебне расходе
A174: 1137 | B174: 234000 | C174: ОБАВЕЗЕ ПО ОСНОВУ СОЦИЈАЛНИХ ДОПРИНОСА НА ТЕРЕТ ПОСЛОДАВЦА (од 1138 до 1140) | F174: =SUM(F175:F177) -> 1833 | G174: =SUM(G175:G177) -> 1964
A175: 1138 | B175: 234100 | C175: Обавезе по основу доприноса за пензијско и инвалидско осигурање на терет послодавца | F175: 1210 | G175: 1296
A176: 1139 | B176: 234200 | C176: Обавезе по основу доприноса за здравствено осигурање на терет послодавца | F176: 623 | G176: 668
A177: 1140 | B177: 234300 | C177: Обавезе по основу доприноса за случај незапослености на терет послодавца
A178: 1141 | B178: 235000 | C178: ОБАВЕЗЕ ПО ОСНОВУ НАКНАДА У НАТУРИ (од 1142 до 1146) | F178: =F182+F183+F184+F185+F186 -> 0 | G178: =G182+G183+G184+G185+G186 -> 0
A179: Ознака ОП | B179: Број конта | C179: Опис | F179: Износ
F180: Претходна година | G180: Текућа година
A181: 1 | B181: 2 | C181: 3 | F181: 4 | G181: 5
A182: 1142 | B182: 235100 | C182: Обавезе по основу нето накнада у натури
A183: 1143 | B183: 235200 | C183: Обавезе по основу пореза на накнаде у натури
A184: 1144 | B184: 235300 | C184: Обавезе по основу доприноса за пензијско и инвалидско осигурање за накнаде у натури
A185: 1145 | B185: 235400 | C185: Обавезе по основу доприноса за здравствено осигурање за накнаде у натури
A186: 1146 | B186: 235500 | C186: Обавезе по основу доприноса за случај незапослености за накнаде у натури
A187: 1147 | B187: 236000 | C187: ОБАВЕЗЕ ПО ОСНОВУ СОЦИЈАЛНЕ ПОМОЋИ ЗАПОСЛЕНИМА (од 1148 до 1152) | F187: =SUM(F188:F192) -> 298 | G187: =SUM(G188:G192) -> 337
A188: 1148 | B188: 236100 | C188: Обавезе по основу нето исплата социјалне помоћи запосленима | F188: 187 | G188: 215
A189: 1149 | B189: 236200 | C189: Обавезе по основу пореза на социјалну помоћ запосленима | F189: 20 | G189: 20
A190: 1150 | B190: 236300 | C190: Обавезе по основу доприноса за пензијско и инвалидско осигурање за социјалну помоћ запосленима | F190: 62 | G190: 70
A191: 1151 | B191: 236400 | C191: Обавезе по основу доприноса за здравствено осигурање за социјалну помоћ запосленима | F191: 27 | G191: 30
A192: 1152 | B192: 236500 | C192: Обавезе по основу доприноса за случај незапослености за социјалну помоћ запосленима | F192: 2 | G192: 2
A193: 1153 | B193: 237000 | C193: СЛУЖБЕНА ПУТОВАЊА И УСЛУГЕ ПО УГОВОРУ (од 1154 до 1160) | F193: =SUM(F194:F200) -> 775 | G193: =SUM(G194:G200) -> 810
A194: 1154 | B194: 237100 | C194: Обавезе по основу нето исплата за службена путовања
A195: 1155 | B195: 237200 | C195: Обавезе по основу пореза на исплате за службена путовања
A196: 1156 | B196: 237300 | C196: Обавезе по основу нето исплата за услуге по уговору | F196: 508 | G196: 539
A197: 1157 | B197: 237400 | C197: Обавезе по основу пореза на исплате за услуге по уговору | F197: 89 | G197: 107
A198: 1158 | B198: 237500 | C198: Обавезе по основу доприноса за пензијско и инвалидско осигурање за услуге по уговору | F198: 160 | G198: 164
A199: 1159 | B199: 237600 | C199: Обавезе по основу доприноса за здравствено осигурање за услуге по уговору | F199: 17
A200: 1160 | B200: 237700 | C200: Обавезе по основу доприноса за случај незапослености за услуге по уговору | F200: 1
A201: 1161 | B201: 238000 | C201: ОБАВЕЗЕ ПО ОСНОВУ ПОСЛАНИЧКИХ ДОДАТАКА (од 1162 до 1166) | F201: =SUM(F202:F206) -> 0 | G201: =SUM(G202:G206) -> 0
A202: 1162 | B202: 238100 | C202: Обавезе за нето исплаћени посланички додатак
A203: 1163 | B203: 238200 | C203: Обавезе по основу пореза на исплаћени посланички додатак
A204: 1164 | B204: 238300 | C204: Обавезе по основу доприноса за пензијско и инвалидско осигурање за посланички додатак
A205: 1165 | B205: 238400 | C205: Обавезе по основу доприноса за здравствено осигурање за посланички додатак
A206: 1166 | B206: 238500 | C206: Обавезе по основу доприноса за случај незапослености за посланички додатак
A207: 1167 | B207: 239000 | C207: ОБАВЕЗЕ ПО ОСНОВУ СУДИЈСКИХ ДОДАТАКА (од 1168 до 1172) | F207: =SUM(F208:F212) -> 0 | G207: =SUM(G208:G212) -> 0
A208: 1168 | B208: 239100 | C208: Обавезе за нето исплаћени судијски додатак
A209: 1169 | B209: 239200 | C209: Обавезе по основу пореза на исплаћени судијски додатак
A210: 1170 | B210: 239300 | C210: Обавезе по основу доприноса за пензијско и инвалидско осигурање за судијски додатак
A211: 1171 | B211: 239400 | C211: Обавезе по основу доприноса за здравствено осигурање за судијски додатак
... 78 more rows

Sheet ObrazacNT
F1: Образац НТ
A7: Назив корисника буџетских средстава
A8: =NazKorisnika -> Дом здравља Уб
A9: ="Седиште: " &biop -> Седиште: Уб | E9: ="Матични број: " & MatBroj -> Матични број: 17211692
A10: ="ПИБ: " & bip -> ПИБ: 101349256 | E10: ="Број подрачуна: " & BrojPodr -> Број подрачуна: 840-407661-24
A11: Назив надлежног директног корисника буџетских средстава
A14: ИЗВЕШТАЈ О НОВЧАНИМ ТОКОВИМА
A15: у периоду 01.01.2025. - 31.12.2025.
F17: (У хиљадама динара)
A18: Ознака ОП | B18: Број конта | C18: Опис | D18: Напоемна | E18: Претходна година | F18: Текућа година
A20: 1 | B20: 2 | C20: 3 | D20: 4 | E20: 5 | F20: 6
C21: ПОСЛОВНЕ АКТИВНОСТИ
A22: 4001 | B22: 700000 | C22: ПРИЛИВИ ГОТОВИНЕ ИЗ ПОСЛОВНИХ АКТИВНОСТИ (4002+4011+4014+4018+4024+4027+4029) | E22: =E23+E32+E35+E39+E45+E48+E50 -> 371936 | F22: =F23+F32+F35+F39+F45+F48+F50 -> 426839
A23: 4002 | B23: 710000 | C23: ПРИЛИВИ ПО ОСНОВУ ПОРЕЗА (4003 до 4010) | E23: =E24+E25+E26+E27+E28+E29+E30+E31 -> 0 | F23: =F24+F25+F26+F27+F28+F29+F30+F31 -> 0
A24: 4003 | B24: 711000 | C24: ПРИЛИВИ ОД ПОРЕЗА НА ДОХОДАК, ДОБИТ И КАПИТАЛНЕ ДОБИТКЕ
A25: 4004 | B25: 712000 | C25: ПРИЛИВИ ОД ПОРЕЗА НА ФОНД ЗАРАДА
A26: 4005 | B26: 713000 | C26: ПРИЛИВИ ОД ПОРЕЗА ОД ИМОВИНУ
A27: 4006 | B27: 714000 | C27: ПРИЛИВИ ОД ПОРЕЗА НА ДОБРА И УСЛУГЕ
A28: 4007 | B28: 715000 | C28: ПРИЛИВИ ОД ПОРЕЗА НА МЕЂУНАРОДНУ ТРГОВИНУ И ТРАНСАКЦИЈЕ
A29: 4008 | B29: 716000 | C29: ПРИЛИВИ ОД ДРУГИХ ПОРЕЗА
A30: 4009 | B30: 717000 | C30: ПРИЛИВИ ОД АКЦИЗА
A31: 4010 | B31: 719000 | C31: ПРИЛИВИ ОД ЈЕДНОКРАТНИХ ПОРЕЗА НА ЕКСТРА ПРОФИТ И ЕКСТРА ИМОВИНУ СТЕЧЕНУ КОРИШЋЕЊЕМ ПОСЕБНИХ ПОГОДНОСТИ
A32: 4011 | B32: 720000 | C32: ПРИЛИВИ ОД СОЦИЈАЛНИХ ДОПРИНОСА (4012+4013) | E32: =E33+E34 -> 0 | F32: =F33+F34 -> 0
A33: 4012 | B33: 721000 | C33: ПРИЛИВИ ОД ДОПРИНОСА ЗА СОЦИЈАЛНО ОСИГУРАЊЕ
A34: 4013 | B34: 722000 | C34: ПРИЛИВИ ОД ОСТАЛИХ СОЦИЈАЛНИХ ДОПРИНОСА
A35: 4014 | B35: 730000 | C35: ПРИЛИВИ ОД ДОНАЦИЈА, ПОМОЋИ И ТРАНСФЕРА (од 4015 до 4017) | E35: =E36+E37+E38 -> 18247 | F35: =F36+F37+F38 -> 18412
A36: 4015 | B36: 731000 | C36: ПРИЛИВИ ОД ДОНАЦИЈА ОД ИНОСТРАНИХ ДРЖАВА
A37: 4016 | B37: 732000 | C37: ПРИЛИВИ ОД ДОНАЦИЈА И ПОМОЋИ ОД МЕЂУНАРОДНИХ ОРГАНИЗАЦИЈА
A38: 4017 | B38: 733000 | C38: ПРИЛИВИ ОД ТРАНСФЕРА ОД ДРУГИХ НИВОА ВЛАСТИ | E38: 18247 | F38: 18412
A39: 4018 | B39: 740000 | C39: ПРИЛИВИ ОД ДРУГИХ ПРИХОДА (од 4019 до 4023) | E39: =E40+E41+E42+E43+E44 -> 6747 | F39: =F40+F41+F42+F43+F44 -> 6579
A40: 4019 | B40: 741000 | C40: ПРИЛИВИ ОД ИМОВИНЕ | E40: 120 | F40: 296
A41: 4020 | B41: 742000 | C41: ПРИЛИВИ ОД ПРОДАЈЕ ДОБАРА И УСЛУГА | D41: 2 | E41: 6513 | F41: 6267
A42: 4021 | B42: 743000 | C42: ПРИЛИВИ ОД НОВЧАНИХ КАЗНИ И ОДУЗЕТЕ ИМОВИНСКЕ КОРИСТИ
A43: 4022 | B43: 744000 | C43: ПРИЛИВИ ОД ДОБРОВОЉНИХ ТРАНСФЕРА ОД ФИЗИЧКИХ И ПРАВНИХ ЛИЦА
A44: 4023 | B44: 745000 | C44: ПРИЛИВИ ОД МЕШОВИТИХ И НЕОДРЕЂЕНИХ ПРИХОДА | E44: 114 | F44: 16
A45: 4024 | B45: 770000 | C45: ПРИЛИВИ ОД МЕМОРАНДУМСКИХ СТАВКИ ЗА РЕФУНДАЦИЈУ РАСХОДА (4025+4026) | E45: =E46+E47 -> 0 | F45: =F46+F47 -> 0
A46: 4025 | B46: 771000 | C46: ПРИЛИВИ ОД МЕМОРАНДУМСКИХ СТАВКИ ЗА РЕФУНДАЦИЈУ РАСХОДА
A47: 4026 | B47: 772000 | C47: ПРИЛИВИ ОД МЕМОРАНДУМСКИХ СТАВКИ ЗА РЕФУНДАЦИЈУ РАСХОДА ИЗ ПРЕТХОДНЕ ГОДИНЕ
A48: 4027 | B48: 780000 | C48: ПРИЛИВИ ОД ТРАНСФЕРА ИЗМЕЂУ КОРИСНИКА НА ИСТОМ НИВОУ (4028) | E48: =E49 -> 346942 | F48: =F49 -> 401848
A49: 4028 | B49: 781000 | C49: ПРИЛИВИ ОД ТРАНСФЕРА ИЗМЕЂУ КОРИСНИКА НА ИСТОМ НИВОУ | E49: 346942 | F49: 401848
A50: 4029 | B50: 790000 | C50: ПРИЛИВИ ИЗ БУЏЕТА (4030) | E50: =E51 -> 0 | F50: =F51 -> 0
A51: 4030 | B51: 791000 | C51: ПРИЛИВИ ИЗ БУЏЕТА
A52: 4031 | B52: 400000 | C52: ОДЛИВИ ГОТОВИНЕ ИЗ ПОСЛОВНЕ АКТИВНОСТИ (4032+4041+4048+4053+4058+4064+4067) | E52: =E53+E62+E69+E74+E79+E85+E88 -> 369136 | F52: =F53+F62+F69+F74+F79+F85+F88 -> 419264
A53: 4032 | B53: 410000 | C53: ОДЛИВИ ПО ОСНОВУ РАСХОДА ЗА ЗАПОСЛЕНЕ (од 4033 до 4040) | E53: =E54+E55+E56+E57+E58+E59+E60+E61 -> 295631 | F53: =F54+F55+F56+F57+F58+F59+F60+F61 -> 336746
A54: 4033 | B54: 411000 | C54: ОДЛИВИ ЗА ПЛАТЕ, ДОДАТКЕ И НАКНАДЕ ЗАПОСЛЕНИХ (ЗАРАДЕ) | E54: 245071 | F54: 279111
A55: 4034 | B55: 412000 | C55: ОДЛИВИ ЗА СОЦИЈАЛНИ ДОПРИНОСИ НА ТЕРЕТ ПОСЛОДАВЦА | E55: 37173 | F55: 42318
A56: 4035 | B56: 413000 | C56: ОДЛИВИ ЗА НАКНАДЕ У НАТУРИ | E56: 392 | F56: 201
A57: 4036 | B57: 414000 | C57: ОДЛИВИ ЗА СОЦИЈАЛНА ДАВАЊА ЗАПОСЛЕНИМА | E57: 3822 | F57: 3358
A58: 4037 | B58: 415000 | C58: ОДЛИВИ ЗА НАКНАДЕ ТРОШКОВА ЗА ЗАПОСЛЕНЕ | E58: 6552 | F58: 8071
A59: 4038 | B59: 416000 | C59: ОДЛИВИ ЗА НАГРАДЕ ЗАПОСЛЕНИМА И ОСТАЛИ ПОСЕБНИ РАСХОДИ | E59: 2621 | F59: 3687
A60: 4039 | B60: 417000 | C60: ОДЛИВИ ЗА ПОСЛАНИЧКИ ДОДАТАК
A61: 4040 | B61: 418000 | C61: ОДЛИВИ ЗА СУДИЈСКИ ДОДАТАК
A62: 4041 | B62: 420000 | C62: ОДЛИВИ ПО ОСНОВУ КОРИШЋЕЊA УСЛУГА И РОБА (од 4042 до 4047) | E62: =E63+E64+E65+E66+E67+E68 -> 71371 | F62: =F63+F64+F65+F66+F67+F68 -> 80106
A63: 4042 | B63: 421000 | C63: ОДЛИВИ ЗА СТАЛНЕ ТРОШКОВЕ | E63: 12974 | F63: 13538
A64: 4043 | B64: 422000 | C64: ОДЛИВИ ЗА ТРОШКОВЕ ПУТОВАЊА | E64: 671 | F64: 418
A65: 4044 | B65: 423000 | C65: ОДЛИВИ ЗА УСЛУГЕ ПО УГОВОРУ | E65: 8192 | F65: 9344
A66: 4045 | B66: 424000 | C66: ОДЛИВИ ЗА СПЕЦИЈАЛИЗОВАНЕ УСЛУГЕ | E66: 6990 | F66: 8692
A67: 4046 | B67: 425000 | C67: ОДЛИВИ ЗА ТЕКУЋЕ ПОПРАВКЕ И ОДРЖАВАЊЕ | E67: 3412 | F67: 3917
A68: 4047 | B68: 426000 | C68: ОДЛИВИ ЗА МАТЕРИЈАЛ | E68: 39132 | F68: 44197
A69: 4048 | B69: 440000 | C69: ОДЛИВИ ПО ОСНОВУ ОТПЛАТЕ КАМАТА И ПРАТЕЋИХ ТРОШКОВА ЗАДУЖИВАЊА (од 4049 до 4052) | E69: =E70+E71+E72+E73 -> 0 | F69: =F70+F71+F72+F73 -> 0
A70: 4049 | B70: 441000 | C70: ОДЛИВИ ЗА ОТПЛАТЕ ДОМАЋИХ КАМАТА
A71: 4050 | B71: 442000 | C71: ОДЛИВИ ЗА ОТПЛАТЕ СТРАНИХ КАМАТА
A72: 4051 | B72: 443000 | C72: ОДЛИВИ ЗА ОТПЛАТЕ КАМАТА ПО ГАРАНЦИЈАМА
A73: 4052 | B73: 444000 | C73: ОДЛИВИ ЗА ПРАТЕЋЕ ТРОШКОВЕ ЗАДУЖИВАЊА
A74: 4053 | B74: 450000 | C74: ОДЛИВИ ЗА СУБВЕНЦИЈЕ (од 4054 до 4057) | E74: =E75+E76+E77+E78 -> 0 | F74: =F75+F76+F77+F78 -> 0
A75: 4054 | B75: 451000 | C75: ОДЛИВИ ЗА СУБВЕНЦИЈЕ ЈАВНИМ НЕФИНАНСИЈСКИМ ПРЕДУЗЕЋИМА И ОРГАНИЗАЦИЈАМА
A76: 4055 | B76: 452000 | C76: ОДЛИВИ ЗА СУБВЕНЦИЈЕ ПРИВАТНИМ ФИНАНСИЈСКИМ ИНСТИТУЦИЈАМА
A77: 4056 | B77: 453000 | C77: ОДЛИВИ ЗА СУБВЕНЦИЈЕ ЈАВНИМ ФИНАНСИЈСКИМ ИНСТИТУЦИЈАМА
A78: 4057 | B78: 454000 | C78: ОДЛИВИ ЗА СУБВЕНЦИЈЕ ПРИВАТНИМ ПРЕДУЗЕЋИМА
A79: 4058 | B79: 460000 | C79: ОДЛИВИ ЗА ДОНАЦИЈЕ, ДОТАЦИЈЕ И ТРАНСФЕРЕ (од 4059 до 4063) | E79: =E80+E81+E82+E83+E84 -> 1575 | F79: =F80+F81+F82+F83+F84 -> 1759
A80: 4059 | B80: 461000 | C80: ОДЛИВИ ЗА ДОНАЦИЈЕ СТРАНИМ ВЛАДАМА
A81: 4060 | B81: 462000 | C81: ОДЛИВИ ЗА ДОТАЦИЈЕ МЕЂУНАРОДНИМ ОРГАНИЗАЦИЈАМА
A82: 4061 | B82: 463000 | C82: ОДЛИВИ ЗА ТРАНСФЕРЕ ОСТАЛИМ НИВОИМА ВЛАСТИ
A83: 4062 | B83: 464000 | C83: ОДЛИВИ ЗА ДОТАЦИЈЕ ОРГАНИЗАЦИЈАМА ЗА ОБАВЕЗНО СОЦИЈАЛНО ОСИГУРАЊЕ
A84: 4063 | B84: 465000 | C84: ОДЛИВИ ЗА ОСТАЛЕ ДОТАЦИЈЕ И ТРАНСФЕРЕ | E84: 1575 | F84: 1759
A85: 4064 | B85: 470000 | C85: ОДЛИВИ ЗА СОЦИЈАЛНО ОСИГУРАЊЕ И СОЦИЈАЛНУ ЗАШТИТУ (4065+4066) | E85: =E86+E87 -> 0 | F85: =F86+F87 -> 0
A86: 4065 | B86: 471000 | C86: ОДЛИВИ ПО ОСНОВУ ПРАВА ИЗ СОЦИЈАЛНОГ ОСИГУРАЊА (ОРГАНИЗАЦИЈЕ ЗА ОБАВЕЗНО СОЦИЈАЛНО ОСИГУРАЊЕ)
A87: 4066 | B87: 472000 | C87: ОДЛИВИ ЗА НАКНАДЕ ЗА СОЦИЈАЛНУ ЗАШТИТУ ИЗ БУЏЕТА
A88: 4067 | B88: 480000 | C88: ОДЛИВИ ЗА ОСТАЛЕ РАСХОДЕ (од 4068 до 4073) | E88: =E89+E90+E91+E92+E93+E94 -> 559 | F88: =F89+F90+F91+F92+F93+F94 -> 653
A89: 4068 | B89: 481000 | C89: ОДЛИВИ ЗА ДОТАЦИЈЕ НЕВЛАДИНИМ ОРГАНИЗАЦИЈАМА
A90: 4069 | B90: 482000 | C90: ОДЛИВИ ЗА ПОРЕЗЕ, ОБАВЕЗНЕ ТАКСЕ, КАЗНЕ, ПЕНАЛИ И КАМАТЕ | D90: 2 | E90: 559 | F90: 653
A91: 4070 | B91: 483000 | C91: ОДЛИВИ ЗА НОВЧАНЕ КАЗНЕ И ПЕНАЛИ ПО РЕШЕЊУ СУДОВА
A92: 4071 | B92: 484000 | C92: ОДЛИВИ ЗА НАКНАДЕ ШТЕТЕ ЗА ПОВРЕДЕ ИЛИ ШТЕТУ НАСТАЛУ УСЛЕД ЕЛЕМЕНТАРНИХ НЕПОГОДА ИЛИ ДРУГИХ ПРИРОДНИХ УЗРОКА
A93: 4072 | B93: 485000 | C93: ОДЛИВИ ЗА НАКНАДЕ ШТЕТЕ ЗА ПОВРЕДЕ ИЛИ ШТЕТУ НАНЕТУ ОД СТРАНЕ ДРЖАВНИХ ОРГАНА
A94: 4073 | B94: 489000 | C94: ОДЛИВИ ЗА РАСХОДЕ КОЈИ СЕ ФИНАНСИРАЈУ ИЗ СРЕДСТАВА ЗА РЕАЛИЗАЦИЈУ НАЦИОНАЛНОГ ИНВЕСТИЦИОНОГ ПЛАНА
A95: 4074 | C95: НЕТО ГОТОВИНСКИ ТОК ИЗ ПОСЛОВНИХ АКТИВНОСТИ (4001-4031) | E95: =+E22-E52 -> 2800 | F95: =+F22-F52 -> 7575
C96: АКТИВНОСТИ ИНВЕСТИРАЊА
A97: 4075 | C97: ПРИЛИВИ ГОТОВИНЕ ИЗ АКТИВНОСТИ ИНВЕСТИРАЊА (4076+4091) | E97: =+E98+E113 -> 6 | F97: =+F98+F113 -> 5
A98: 4076 | B98: 800000 | C98: ПРИЛИВИ ОД ПРОДАЈЕ НЕФИНАНСИЈСКЕ ИМОВИНЕ (4077+4081+4085+4087) | E98: =E99+E103+E107+E109 -> 6 | F98: =F99+F103+F107+F109 -> 5
A99: 4077 | B99: 810000 | C99: ПРИЛИВИ ОД ПРОДАЈЕ ОСНОВНИХ СРЕДСТАВА (од 4078 до 4080) | E99: =E100+E101+E102 -> 6 | F99: =F100+F101+F102 -> 5
A100: 4078 | B100: 811000 | C100: ПРИЛИВИ ОД ПРОДАЈЕ НЕПОКРЕТНОСТИ | E100: 6 | F100: 5
A101: 4079 | B101: 812000 | C101: ПРИЛИВИ ОД ПРОДАЈЕ ПОКРЕТНЕ ИМОВИНЕ
A102: 4080 | B102: 813000 | C102: ПРИЛИВИ ОД ПРОДАЈЕ ОСТАЛИХ ОСНОВНИХ СРЕДСТАВА
A103: 4081 | B103: 820000 | C103: ПРИЛИВИ ОД ПРОДАЈЕ ЗАЛИХА (од 4082 до 4084) | E103: =E104+E105+E106 -> 0 | F103: =F104+F105+F106 -> 0
A104: 4082 | B104: 821000 | C104: ПРИЛИВИ ОД ПРОДАЈЕ РОБНИХ РЕЗЕРВИ
A105: 4083 | B105: 822000 | C105: ПРИЛИВИ ОД ПРОДАЈЕ ЗАЛИХА ПРОИЗВОДЊЕ
A106: 4084 | B106: 823000 | C106: ПРИЛИВИ ОД ПРОДАЈЕ РОБЕ ЗА ДАЉУ ПРОДАЈУ
A107: 4085 | B107: 830000 | C107: ПРИЛИВИ ОД ПРОДАЈЕ ДРАГОЦЕНОСТИ (4086) | E107: =E108 -> 0 | F107: =F108 -> 0
A108: 4086 | B108: 831000 | C108: ПРИЛИВИ ОД ПРОДАЈЕ ДРАГОЦЕНОСТИ
A109: 4087 | B109: 840000 | C109: ПРИЛИВИ ОД ПРОДАЈЕ ПРИРОДНЕ ИМОВИНЕ (од 4088 до 4090) | E109: =E110+E111+E112 -> 0 | F109: =F110+F111+F112 -> 0
A110: 4088 | B110: 841000 | C110: ПРИЛИВИ ОД ПРОДАЈЕ ЗЕМЉИШТА
A111: 4089 | B111: 842000 | C111: ПРИЛИВИ ОД ПРОДАЈЕ ПОДЗЕМНИХ БЛАГА
A112: 4090 | B112: 843000 | C112: ПРИЛИВИ ОД ПРОДАЈЕ ШУМА И ВОДА
A113: 4091 | B113: 920000 | C113: ПРИЛИВИ ОД ПРОДАЈЕ ФИНАНСИЈСКЕ ИМОВИНЕ (4092+4093) | E113: =E114+E115 -> 0 | F113: =F114+F115 -> 0
A114: 4092 | B114: 921000 | C114: ПРИЛИВИ ОД ПРОДАЈЕ ДОМАЋЕ ФИНАНСИЈСКЕ ИМОВИНЕ
A115: 4093 | B115: 922000 | C115: ПРИЛИВИ ОД ПРОДАЈЕ СТРАНЕ ФИНАНСИЈСКЕ ИМОВИНЕ
A116: 4094 | C116: ОДЛИВИ ГОТОВИНЕ ИЗ АКТИВНОСТИ ИНВЕСТИРАЊА (4095+4114) | E116: =+E117+E136 -> 2226 | F116: =+F117+F136 -> 9453
A117: 4095 | B117: 500000 | C117: ОДЛИВИ ЗА НЕФИНАНСИЈСКУ ИМОВИНУ (4096+4102+4106+4108+4112) | E117: =E118+E124+E128+E130+E134 -> 2226 | F117: =F118+F124+F128+F130+F134 -> 9453
A118: 4096 | B118: 510000 | C118: ОДЛИВИ ЗА ОСНОВНА СРЕДСТВА (од 4097 до 4101) | E118: =E119+E120+E121+E122+E123 -> 2226 | F118: =F119+F120+F121+F122+F123 -> 9453
A119: 4097 | B119: 511000 | C119: ОДЛИВИ ЗА ЗГРАДЕ И ГРАЂЕВИНСКЕ ОБЈЕКТЕ
A120: 4098 | B120: 512000 | C120: ОДЛИВИ ЗА МАШИНЕ И ОПРЕМУ | E120: 2226 | F120: 9173
A121: 4099 | B121: 513000 | C121: ОДЛИВИ ЗА ОСТАЛЕ НЕКРЕТНИНЕ И ОПРЕМУ | F121: 280
A122: 4100 | B122: 514000 | C122: ОДЛИВИ ЗА КУЛТИВИСАНУ ИМОВИНУ
A123: 4101 | B123: 515000 | C123: ОДЛИВИ ЗА НЕМАТЕРИЈАЛНУ ИМОВИНУ
A124: 4102 | B124: 520000 | C124: ОДЛИВИ ЗА ЗАЛИХЕ (од 4103 до 4105) | E124: =E125+E126+E127 -> 0 | F124: =F125+F126+F127 -> 0
A125: 4103 | B125: 521000 | C125: ОДЛИВИ ЗА РОБНЕ РЕЗЕРВЕ
A126: 4104 | B126: 522000 | C126: ОДЛИВИ ЗА ЗАЛИХЕ ПРОИЗВОДЊЕ
A127: 4105 | B127: 523000 | C127: ОДЛИВИ ЗА ЗАЛИХЕ РОБЕ ЗА ДАЉУ ПРОДАЈУ
A128: 4106 | B128: 530000 | C128: ОДЛИВИ ЗА ДРАГОЦЕНОСТИ (4107) | E128: =E129 -> 0 | F128: =F129 -> 0
A129: 4107 | B129: 531000 | C129: ОДЛИВИ ЗА ДРАГОЦЕНОСТИ
A130: 4108 | B130: 540000 | C130: ОДЛИВИ ЗА ПРИРОДНУ ИМОВИНУ (од 4109 до 4111) | E130: =E131+E132+E133 -> 0 | F130: =F131+F132+F133 -> 0
A131: 4109 | B131: 541000 | C131: ОДЛИВИ ЗА ЗЕМЉИШТЕ
A132: 4110 | B132: 542000 | C132: ОДЛИВИ ЗА РУДНА БОГАТСТВА
A133: 4111 | B133: 543000 | C133: ОДЛИВИ ЗА ШУМЕ И ВОДЕ
A134: 4112 | B134: 550000 | C134: ОДЛИВИ ЗА НЕФИНАНСИЈСКУ ИМОВИНУ КОЈА СЕ ФИНАНСИРА ИЗ СРЕДСТАВА ЗА РЕАЛИЗАЦИЈУ НАЦИОНАЛНОГ ИНВЕСТИЦИОНОГ ПЛАНА (4113) | E134: =E135 -> 0 | F134: =F135 -> 0
A135: 4113 | B135: 551000 | C135: ОДЛИВИ ЗА НЕФИНАНСИЈСКУ ИМОВИНУ КОЈА СЕ ФИНАНСИРА ИЗ СРЕДСТАВА ЗА РЕАЛИЗАЦИЈУ НАЦИОНАЛНОГ ИНВЕСТИЦИОНОГ ПЛАНА
A136: 4114 | B136: 620000 | C136: ОДЛИВИ ЗА НАБАВКУ ФИНАНСИЈСКЕ ИМОВИНЕ (од 4115 до 4117) | E136: =E137+E138+E139 -> 0 | F136: =F137+F138+F139 -> 0
A137: 4115 | B137: 621000 | C137: ОДЛИВИ ЗА НАБАВКУ ДОМАЋЕ ФИНАНСИЈСКЕ ИМОВИНЕ
A138: 4116 | B138: 622000 | C138: ОДЛИВИ ЗА НАБАВКУ СТРАНЕ ФИНАНСИЈСКЕ ИМОВИНЕ
A139: 4117 | B139: 623000 | C139: ОДЛИВИ ЗА НАБАВКУ ФИНАНСИЈСКЕ ИМОВИНЕ КОЈА СЕ ФИНАНСИРА ИЗ СРЕДСТАВА ЗА РЕАЛИЗАЦИЈУ НАЦИОНАЛНОГ ИНВЕСТИЦИОНОГ ПЛАНА
A140: 4118 | C140: НЕТО ГОТОВИНСКИ ТОК ИЗ АКТИВНОСТИ ИНВЕСТИРАЊА (4075-4094) | E140: =+E97-E116 -> -2220 | F140: =+F97-F116 -> -9448
A141: 4119 | C141: НЕТО ГОТОВИНСКИ ТОК ИЗ ПОСЛОВНИХ И АКТИВНОСТИ ИНВЕСТИРАЊА (4074+4118) | E141: =+E95+E140 -> 580 | F141: =+F95+F140 -> -1873
C142: АКТИВНОСТИ ФИНАНСИРАЊА
A143: 4120 | C143: ПРИЛИВИ ГОТОВИНЕ ОД АКТИВНОСТИ ФИНАНСИРАЊА (4121) | E143: =+E144 -> 0 | F143: =+F144 -> 0
A144: 4121 | B144: 910000 | C144: ПРИЛИВИ ОД ЗАДУЖИВАЊА (4122+4123) | E144: =+E145+E146 -> 0 | F144: =+F145+F146 -> 0
A145: 4122 | B145: 911000 | C145: ПРИЛИВИ ОД ДОМАЋИХ ЗАДУЖИВАЊА
A146: 4123 | B146: 912000 | C146: ПРИЛИВИ ОД ИНОСТРАНОГ ЗАДУЖИВАЊА
A147: 4124 | C147: ОДЛИВИ ПО ОСНОВУ АКТИВНОСТИ ФИНАНСИРАЊА (4125) | E147: =+E148 -> 0 | F147: =+F148 -> 0
A148: 4125 | B148: 610000 | C148: ОДЛИВИ ПО ОСНОВУ ОТПЛАТЕ ГЛАВНИЦЕ (од 4126 до 4130) | E148: =+E149+E150+E151+E152+E153 -> 0 | F148: =+F149+F150+F151+F152+F153 -> 0
A149: 4126 | B149: 611000 | C149: ОДЛИВИ ПО ОСНОВУ ОТПЛАТЕ ГЛАВНИЦЕ ДОМАЋИМ КРЕДИТОРИМА
A150: 4127 | B150: 612000 | C150: ОДЛИВИ ПО ОСНОВУ ОТПЛАТЕ ГЛАВНИЦЕ СТРАНИМ КРЕДИТОРИМА
A151: 4128 | B151: 613000 | C151: ОДЛИВИ ПО ОСНОВУ ОТПЛАТЕ ГЛАВНИЦЕ ПО ГАРАНЦИЈАМА
A152: 4129 | B152: 614000 | C152: ОДЛИВИ ПО ОСНОВУ ОТПЛАТЕ ГЛАВНИЦЕ ЗА ФИНАНСИЈСКИ ЛИЗИНГ
A153: 4130 | B153: 615000 | C153: ОДЛИВИ ПО ОСНОВУ ОТПЛАТЕ ГАРАНЦИЈА ПО КОМЕРЦИЈАЛНИМ ТРАНСАКЦИЈАМА
A154: 4131 | C154: НЕТО ГОТОВИНСКИ ТОК ИЗ АКТИВНОСТИ ФИНАНСИРАЊА (4120-4124) | E154: =+E143-E147 -> 0 | F154: =+F143-F147 -> 0
A155: 4132 | C155: УКУПНИ ПРИЛИВИ ГОТОВИНЕ (4001+4075+4120) | E155: =+E22+E97+E143 -> 371942 | F155: =+F22+F97+F143 -> 426844
A156: 4133 | C156: УКУПНИ ОДЛИВИ ГОТОВИНЕ (4031+4094+4124) | E156: =+E52+E116+E147 -> 371362 | F156: =+F52+F116+F147 -> 428717
A157: 4134 | C157: НЕТО ГОТОВИНСКИ ТОК (4132-4133) | E157: =+E155-E156 -> 580 | F157: =+F155-F156 -> -1873
A158: 4135 | C158: САЛДО ГОТОВИНЕ И ГОТОВИНСКИХ ЕКВИВАЛЕНАТА НА ПОЧЕТКУ ГОДИНЕ | D158: 3 | E158: 1943 | F158: 2523
A159: 4136 | C159: Ефекти курсних разлика на салдо готовине у девизама (и друге промене)
A160: 4137 | C160: САЛДО ГОТОВИНЕ И ГОТОВИНСКИХ ЕКВИВАЛЕНАТА НА КРАЈУ ГОДИНЕ (4134+4135+4136) | E160: =+E157+E158+E159 -> 2523 | F160: =+F157+F158+F159 -> 650
A162: Датум | D162: Лице одговорно за | E162: Наредбодавац
D163: попуњавање обрасца

Sheet ObrazacUS
A1: РЕПУБЛИЧКИ ФОНД ЗА ЗДРАВСТВЕНО | D1: Образац УС
A2: ОСИГУРАЊЕ - БЕОГРАД
A3: Јована Мариновића 2
A5: УСКЛАЂИВАЊЕ ПРИХОДА И ПРИМАЊА И РАСХОДА И ИЗДАТАКА (ОБРАЗАЦ ИБ) И ПРИЛИВА И ОДЛИВА (ОБРАЗАЦ НТ)
A6: у периоду од 01.01.2025. - 31.12.2025. године
A7: ="ФИЛИЈАЛА: " & Filijala -> ФИЛИЈАЛА: 09 ВАЉЕВО
A8: ="ЗДРАВСТВЕНА УСТАНОВА: " & ZU -> ЗДРАВСТВЕНА УСТАНОВА: 100209001 ДЗ УБ
D10: у хиљадама (000) динара
A11: Ред. бр. | B11: Опис | C11: Укупни приходи и примања /приливи | D11: Укупни расходи и издаци /одливи
A12: 1 | B12: 2 | C12: 3 | D12: 4
A13: 1. | B13: Извештај о извршењу буџета | C13: 426484 | D13: 428258
A14: 2. | B14: Разлике у основама извештавања | C14: 360 | D14: 459
A15: 3. | B15: Разлике у периоду извештавања
A16: 4. | B16: Разлике у обухватању извештајних ентитета
A17: 5. | B17: Извештај о новчаним токовима | C17: 426844 | D17: 428717
B19: =+IF(C26=0,"","Грешка, подаци нису сложени са подацима у Обрасцу ИБ!!!") -> 
B20: =+IF(C27=0,"","Грешка, подаци нису сложени са подацима у Обрасцу ИБ!!!") -> 
B21: =+IF(C28=0,"","Грешка, подаци нису сложени са подацима у Обрасцу НТ!!!") -> 
B22: =+IF(C29=0,"","Грешка, подаци нису сложени са подацима у Обрасцу НТ!!!") -> 
C26: =+C13-ObrazacIB!E224 -> 0
C27: =+D13-ObrazacIB!E536 -> 0
C28: =+C17-ObrazacNT!F155 -> 0
C29: =+D17-ObrazacNT!F156 -> 0

Sheet ObrazacOB
A1: РЕПУБЛИЧКИ ФОНД ЗА ЗДРАВСТВЕНО | F1: Образац ОБ
A2: ОСИГУРАЊЕ - БЕОГРАД
A3: Јована Мариновића 2
A4: СТАЊЕ НЕИЗМИРЕНИХ ОБАВЕЗА ПРЕМА ДОБАВЉАЧИМА (252000) НА ДАН 31.12.2025.
A5: ="ФИЛИЈАЛА: " & Fili -> ФИЛИЈАЛА: 09 ВАЉЕВО
A6: ="ЗДРАВСТВЕНА УСТАНОВА: " & ZDU -> ЗДРАВСТВЕНА УСТАНОВА: 100209001 ДЗ УБ
F7: (У хиљадама динара)
A8: Ред. Бр. | C8: НАЗИВ ОБАВЕЗЕ | D8: Стање дуга на дан 31.12.2025. | E8: Доспели дуг на дан 31.12.2025. | F8: Недоспели дуг на дан 31.12.2025.
A9: 1 | C9: 2 | D9: 3=4+5 | E9: 4 | F9: 5
A10: 1. | C10: ЗА ЛЕКОВЕ И ПОМАГАЛА НА НАЛОГ У АПОТЕКАМА | D10: =SUM(D11:D12) -> 0 | E10: =SUM(E11:E12) -> 0 | F10: =SUM(F11:F12) -> 0
A11: 1.1. | C11: ЗА ЛЕКОВЕ НА РЕЦЕПТ | D11: =E11+F11 -> 0
A12: 1.2. | C12: ЗА ПОМАГАЛА НА НАЛОГ | D12: =E12+F12 -> 0
A13: 2. | C13: ЛЕКОВИ | D13: =SUM(D14:D18) -> 2342 | E13: =SUM(E14:E18) -> 15 | F13: =SUM(F14:F18) -> 2327
A14: 2.1. | C14: ЛЕКОВИ У ЗУ | D14: =E14+F14 -> 2342 | E14: 15 | F14: 2327
A15: 2.2. | C15: ЦИТОСТАТИЦИ СА ЛИСТЕ ЛЕКОВА | D15: =E15+F15 -> 0
A16: 2.3. | C16: ЛЕКОВИ СА Ц ЛИСТЕ ПО ТЕНДЕРУ РФЗО | D16: 0
A17: 2.4. | C17: ЛЕКОВИ ЗА ХЕМОФИЛИЈУ | D17: 0
A18: 2.5. | C18: ОСТАЛИ ЛЕКОВИ (ВАН ЛИСТЕ) | D18: 0
A19: 3. | C19: КРВ И ПРОДУКТИ ОД КРВИ | D19: 0
A20: 4. | C20: УГРАДНИ МАТЕРИЈАЛ | D20: =SUM(D21:D27) -> 0 | E20: =SUM(E21:E27) -> 0 | F20: =SUM(F21:F27) -> 0
A21: 4.1. | C21: ОСТАЛИ УГРАДНИ МАТЕРИЈАЛ У ОРТОПЕДИЈИ | D21: 0
A22: 4.2. | C22: ОРТОПЕДИЈА - ЕНДОПРОТЕЗЕ | D22: 0
A23: 4.3. | C23: УГРАДНИ МАТЕРИЈАЛ У КАРДИОХИРУРГИЈИ | D23: 0
A24: 4.4. | C24: ПЕЈСМЕЈКЕРИ И ЕЛЕКТРОДЕ | D24: 0
A25: 4.5. | C25: СТЕНТОВИ | D25: 0
A26: 4.6. | C26: ГРАФТОВИ | D26: 0
A27: 4.7. | C27: ОСТАЛИ УГРАДНИ МАТЕРИЈАЛ | D27: 0
A28: 5. | C28: САНИТЕТСКИ И МЕДИЦИНСКИ ПОТРОШНИ МАТЕРИЈАЛ | D28: 1792 | E28: 338 | F28: 1454
A29: 6. | C29: РЕАГЕНСИ | D29: 1008 | F29: 1008
A30: 7. | C30: МАТЕРИЈАЛ ЗА ДИЈАЛИЗУ СА ЛЕКОВИМА (РЕКОРМОН И ЕПРЕКС) | D30: 0
A31: 8. | C31: ИСХРАНА (НАМИРНИЦЕ И УСЛУГЕ) | D31: 0
A32: 9. | C32: ЕНЕРГЕНТИ | D32: =SUM(D33:D37) -> 4412 | E32: =SUM(E33:E37) -> 311 | F32: =SUM(F33:F37) -> 4101
A33: 9.1. | C33: ДАЉИНСКО ГРЕЈАЊЕ | D33: 0
A34: 9.2. | C34: ГАС | D34: 0
A35: 9.3. | C35: ОБАВЕЗЕ ПРЕМА НИС-У | D35: 0
A36: 9.4. | C36: ЕЛЕКТРОПРИВРЕДА | D36: 1456 | F36: 1456
A37: 9.5. | C37: ОБАВЕЗЕ ЗА ОСТАЛЕ ЕНЕРГЕНТЕ | D37: 2956 | E37: 311 | F37: 2645
A38: 10. | C38: ЈАВНО КОМУНАЛНО ПРЕДУЗЕЋЕ | D38: =SUM(D39:D41) -> 283 | E38: =SUM(E39:E41) -> 161 | F38: =SUM(F39:F41) -> 122
A39: 10.1. | C39: ОБАВЕЗЕ ЗА ВОДУ | D39: 213 | E39: 114 | F39: 99
A40: 10.2. | C40: ОБАВЕЗЕ ПРЕМА ПТТ-У | D40: 70 | E40: 47 | F40: 23
A41: 10.3. | C41: ОБАВЕЗЕ ПРЕМА ОСТАЛИМ ЈКП | D41: 0
A42: 11. | C42: ОСТАЛЕ ОБАВЕЗЕ | D42: 3432 | E42: 963 | F42: 2469
A43: 12. | C43: УКУПНЕ ОБАВЕЗЕ - 252000 (1+2+3+4+5+6+7+8+9+10+11) | D43: =+D10+D13+D19+D20+D28+D29+D30+D31+D32+D38+D42 -> 13269 | E43: =+E10+E13+E19+E20+E28+E29+E30+E31+E32+E38+E42 -> 1788 | F43: =+F10+F13+F19+F20+F28+F29+F30+F31+F32+F38+F42 -> 11481 | G43: =+IF(C46=0,"","Грешка, подаци нису сложени са подацима у Билансу стања!!!") -> 
A45: Напомена: Подаци у овом обрасцу морају бити сложени са подацима у БИЛАНСУ СТАЊА
C46: =+D43-ObrazacBS!G246 -> 0
C48: ОБРАЗАЦ ПОПУНИО: | F48: ОДГОВОРНО ЛИЦЕ:
C49: __________________________ | F49: ___________________
C50: Телефон:__________________________

Sheet ObrazacPO
A1: РЕПУБЛИЧКИ ФОНД ЗА ЗДРАВСТВЕНО | G1: Образац ПО
A2: ОСИГУРАЊЕ - БЕОГРАД
A3: Јована Мариновића 2
A4: НЕНАПЛАЋЕНА ПОТРАЖИВАЊА ЗДРАВСТВЕНЕ УСТАНОВЕ НА ДАН 31.12.2025. ГОДИНЕ
A5: ="ФИЛИЈАЛА: " & Fili -> ФИЛИЈАЛА: 09 ВАЉЕВО
A6: ="ЗДРАВСТВЕНА УСТАНОВА: " & ZDU -> ЗДРАВСТВЕНА УСТАНОВА: 100209001 ДЗ УБ
G7: (У хиљадама динара)
A8: Ред. бр. | C8: Конто | D8: НАЗИВ | G8: 31.12.2025.
A9: 1 | C9: 2 | D9: 3 | G9: 4
A10: I | C10: 122100 | D10: Потраживања по основу продаје и друга потраживања (1+2+3+4+5+6+7) | G10: =SUM(G11:G17) -> 23960 | J10: =+IF(G10=ObrazacBS!G91,"","Грешка, подаци нису сложени са подацима у Билансу стања!!!") -> 
A11: 1 | C11: део 122100 | D11: Од РФЗО | G11: 22858
A12: 2 | C12: део 122100 | D12: Од Фонда за социјално осигурање војних осигураника
A13: 3 | C13: део 122100 | D13: Од Фонда здравства Црне Горе
A14: 4 | C14: део 122100 | D14: Од Фонда здравства Републике Српске
A15: 5 | C15: део 122100 | D15: Од Дистрикта Брчко
A16: 6 | C16: део 122100 | D16: Од других здравствених установа
A17: 7 | C17: део 122100 | D17: Остала потраживања | G17: 1102
A19: Напомена: Подаци у овом обрасцу морају бити сложени са подацима у БИЛАНСУ СТАЊА
A22: ПОДАЦИ О УКУПНОМ БРОЈУ ЗАПОСЛЕНИХ РАДНИКА
A24: Период | D24: Укупан број запослених радника | G24: Укупан број запослених на бази остварених часова рада
D25: На одређено | E25: На неодређено | F25: Укупно
A26: 1 | D26: 2 | E26: 3 | F26: 4=2+3 | G26: 5
A27: 31.12.2024. | D27: 19 | E27: 140 | F27: =SUM(D27:E27) -> 159 | G27: 159
A28: 31.12.2025. | D28: 17 | E28: 138 | F28: =SUM(D28:E28) -> 155 | G28: 168
A32: ОБРАЗАЦ ПОПУНИО: | G32: ОДГОВОРНО ЛИЦЕ:
A33: ______________________ | G33: __________________________
A34: Телефон: | C34: ____________

Sheet ObrazacZA
A1: РЕПУБЛИЧКИ ФОНД ЗА ЗДРАВСТВЕНО | E1: Образац ЗА
A2: ОСИГУРАЊЕ - БЕОГРАД
A3: Јована Мариновића 2
A4: СТАЊЕ ЗАЛИХА НА ДАН 31.12.2025.
A5: ="ФИЛИЈАЛА: " & Fili -> ФИЛИЈАЛА: 09 ВАЉЕВО
A6: ="ЗДРАВСТВЕНА УСТАНОВА: " & ZDU -> ЗДРАВСТВЕНА УСТАНОВА: 100209001 ДЗ УБ
E7: (У хиљадама динара)
A8: Ред. Бр. | C8: Конто | D8: Залихе | E8: 31.12.2025.
A9: 1 | C9: 2 | D9: 3 | E9: 4
A10: I | C10: 020000 | D10: ЗАЛИХЕ (II+III+IV+V) | E10: =E11+E12+E13+E14 -> 3458 | F10: =+IF(E10=ObrazacBS!G42,"","Грешка, подаци нису сложени са подацима у Билансу стања!!!") -> 
A11: II | C11: 021200 | D11: Залихе производње
A12: III | C12: 021300 | D12: Залихе робе за даљу продају (лекови и помагала у апотекама)
A13: IV | C13: 022100 | D13: Ситан инвентар
A14: V | C14: 022200 | D14: Потрошни материјал (1+2+3+4) | E14: =+E15+E16+E17+E42 -> 3458
A15: 1 | C15: 022210 | D15: Материјал за сталне трошкове (грејање) | E15: 626
A16: 2 | C16: 022220 | D16: Материјал за поправке и одржавање
A17: 3 | C17: 022230 | D17: Материјал за обављање делатности | E17: =E18+E19+E40+E41 -> 2832
A18: 3.1 | C18: 022231 | D18: Административни материјал
A19: 3.2 | C19: 022237 | D19: Медицински и лабораторијски материјал | E19: =E20+E28+E29+E37+E38+E39 -> 2816
A20: 3.2.1 | D20: Лекови (3.2.1.1+3.2.1.2+3.2.1.3+3.2.1.4+3.2.1.5+3.2.1.6+3.2.1.7) | E20: =SUM(E21:E27) -> 1351
A21: 3.2.1.1 | D21: Лекови у ЗУ | E21: 1351
A22: 3.2.1.2 | D22: Вакцине
A23: 3.2.1.3 | D23: Цитостатици са листе лекова
A24: 3.2.1.4 | D24: Лекови са Ц листе по тендеру РФЗО
A25: 3.2.1.5 | D25: Лекови за хемофилију
A26: 3.2.1.6 | D26: Лекови за лечење ретких болести
A27: 3.2.1.7 | D27: Лекови ван листе лекова (без лекова за лечење ретких болести)
A28: 3.2.2 | D28: Крв и лабилни продукти од крви
A29: 3.2.3 | D29: Уградни материјал (3.2.3.1+3.2.3.2+3.2.3.3+3.2.3.4+3.2.3.5+3.2.3.6+3.2.3.7) | E29: =SUM(E30:E36) -> 0
A30: 3.2.3.1 | D30: Уградни материјал у ортопедији
A31: 3.2.3.2 | D31: Имплантанти у ортопедији
A32: 3.2.3.3 | D32: Уградни материјал у кардиохирургији
A33: 3.2.3.4 | D33: Пејсмекери и електроде
A34: 3.2.3.5 | D34: Стентови
A35: 3.2.3.6 | D35: Графтови
A36: 3.2.3.7 | D36: Остали уградни материјал
A37: 3.2.4 | D37: Санитетски и медицински потрошни материјал | E37: 962
A38: 3.2.5 | D38: Реагенси | E38: 503
A39: 3.2.6 | D39: Материјал за дијализу
A40: 3.3 | C40: 022238 | D40: Материјал за домаћинство и угоститељство
A41: 3.4 | D41: Остали материјал за обављање делатности | E41: 16
A42: 4. | C42: 022240 | D42: Залихе лекова на рецепт и помагала у апотекама
A44: Напомена: Подаци у овом обрасцу морају бити сложени са подацима у БИЛАНСУ СТАЊА
A46: ОБРАЗАЦ ПОПУНИО: | E46: ОДГОВОРНО ЛИЦЕ:
A47: ______________________ | E47: ___________________
A48: Телефон: | C48: ____________

Sheet K9OOSO
A1: РЕПУБЛИЧКИ ФОНД ЗА ЗДРАВСТВЕНО | E1: К9ООСО
A2: ОСИГУРАЊЕ - БЕОГРАД
A3: Јована Мариновића 2
C5: ОДСТУПАЊА ОД НОВЧАНОГ ТОКА У ПЕРИОДУ 01.01.- 31.12.2025. ГОДИНЕ
A7: ="ФИЛИЈАЛА: " & Filijala -> ФИЛИЈАЛА: 09 ВАЉЕВО
A8: ="ЗДРАВСТВЕНА УСТАНОВА: " & ZU -> ЗДРАВСТВЕНА УСТАНОВА: 100209001 ДЗ УБ
E10: у хиљадама (000) динара
A11: Р. Бр. | C11: ОПИС | D11: КОЛОНА УКУПНО | E11: КОЛОНА 9 ООСО
A12: 1 | B12: 2 | C12: 3 | D12: 4 | E12: 5
A13: 1. | C13: ПОЧЕТНО СТАЊЕ СРЕДСТАВА НА ДАН 01.01.2025.Г. | D13: =D14+D15 -> 2523 | E13: =E14+E15 -> 969
B14: 1.1. | C14: Почетно стање средстава на подрачунима (група 121000) | D14: 2523 | E14: 969
B15: 1.2. | C15: Почетно стање средстава у благајни (група 121000)
A16: 2. | C16: НОВЧАНИ ПРИЛИВИ У ПЕРИОДУ 01.01.-31.12.2025.Г. | D16: =D17+D18+D19 -> 426844 | E16: =E17+E18+E19 -> 394453
B17: 2.1. | C17: Приходи и примања који се исказују у обрасцу бр. 5.(класе 700000, 800000 и 900000) | D17: 426484 | E17: 394453
B18: 2.2. | C18: Новчани приливи по основу наплаћеног ПДВ-а | D18: 360
B19: 2.3. | C19: Остали новчани приливи који нису исказани на класама у обрасцу бр. 5.
A20: 3. | C20: НОВЧАНИ ОДЛИВИ У ПЕРИОДУ 01.01.-31.12.2025.Г. | D20: =D21+D22+D23 -> 428717 | E20: =E21+E22+E23 -> 395161
B21: 3.1. | C21: Расходи и издаци који се исказују у обрасцу бр.5. (класе 400000, 500000 и 600000) | D21: 428258 | E21: 395161
B22: 3.2. | C22: Новчани одливи по основу плаћеног ПДВ-а | D22: 385
B23: 3.3. | C23: Остали новчани одливи који нису исказани на класама у обрасцу бр. 5. | D23: 74
A24: 4. | C24: САЛДО СРЕДСТАВА НА ДАН 31.12.2025.г. (4 = (1+ 2- 3) = (4.1 + 4.2)) | D24: =D13+D16-D20 -> 650 | E24: =E13+E16-E20 -> 261
B25: 4.1. | C25: Салдо средстава на подрачунима (група 121000) | D25: 650 | E25: 261
B26: 4.2. | C26: Салдо средстава у благајни (група 121000)
C28: =+IF(D25+D26=D24,"","Грешка, збир 4.1 и 4.2 није једнак салду средстава у колони 4") -> 
C29: =+IF(E25+E26=E24,"","Грешка, збир 4.1 и 4.2 није једнак салду средстава у колони 5") -> 
C30: =+IF((ObrazacIB!E23+ObrazacIB!E147+ObrazacIB!E176)=K9OOSO!D17," ","Грешка, подаци о приходима и примањима у колони 4 нису усклађени са Обрасцем ИБ !!!") -> 
C31: =+IF((ObrazacIB!I23+ObrazacIB!I147+ObrazacIB!I176)=K9OOSO!E17," ","Грешка, подаци о приходима и примањима у колони 5 нису усклађени са Обрасцем ИБ !!!") -> 
C32: =+IF((ObrazacIB!E234+ObrazacIB!E430+ObrazacIB!E480-ObrazacIB!E310)=K9OOSO!D21," ","Грешка, подаци о расходима и издацима у колони 4 нису усклађени са Обрасцем ИБ !!!") -> 
C33: =+IF((ObrazacIB!I234+ObrazacIB!I430+ObrazacIB!I480)=K9OOSO!E21," ","Грешка, подаци о расходима и издацима у колони 5 нису усклађени са Обрасцем ИБ !!!") -> 

Sheet OZPR
A1: РЕПУБЛИЧКИ ФОНД ЗА ЗДРАВСТВЕНО | J1: ОЗПР
A2: ОСИГУРАЊЕ - БЕОГРАД
A3: Јована Мариновића 2
A7: ="ФИЛИЈАЛА: " & Filijala -> ФИЛИЈАЛА: 09 ВАЉЕВО
A8: ="ЗДРАВСТВЕНА УСТАНОВА: " & ZU -> ЗДРАВСТВЕНА УСТАНОВА: 100209001 ДЗ УБ
A14: ОБРАЗАЦ ЗА ПАРТИЦИПАЦИЈУ И РЕФУНДАЦИЈЕ
A15: у периоду од 01.01.2025. - 31.12.2025. године
A16: I. УКУПНИ ПРИХОДИ И ПРИМАЊА
J17: у хиљадама (000) динара
A18: Ознака ОП | B18: Број конта | C18: Опис | D18: Приходи по основу партиципације за услуге здравствене заштите и рефундација | E18: Приходи по основу партиципације за лекове издате на рецепт и помагала издатa на налог и рефундација | F18: Приходи по основу укупне партиципације и рефундација | G18: Приход од НСЗ | H18: Приход од Фонда ПИО | I18: Приход од Фонда СОВО | J18: УКУПНО
A21: 1 | B21: 2 | C21: 3 | D21: 4 | E21: 5 | F21: 6=4+5 | G21: 7 | H21: 8 | I21: 9 | J21: 10=6+7+8+9
A22: 5001 | C22: ТЕКУЋИ ПРИХОДИ И ПРИМАЊА ОД ПРОДАЈЕ НЕФИНАНСИЈСКЕ ИМОВИНЕ (5002) | D22: =D23 -> 724 | E22: =E23 -> 0 | F22: =D22+E22 -> 724 | G22: =G23 -> 0 | H22: =H23 -> 0 | I22: =I23 -> 0 | J22: =+F22+G22+H22+I22 -> 724
A23: 5002 | B23: 700000 | C23: ТЕКУЋИ ПРИХОДИ (5003 + 5047 + 5057 + 5069 + 5094 + 5099 + 5103) | D23: =D24+D29 -> 724 | E23: =E24+E29 -> 0 | F23: 724 | G23: =G24+G29 -> 0 | H23: =H24+H29 -> 0 | I23: =I24+I29 -> 0 | J23: 724
A24: 5094 | B24: 770000 | C24: МЕМОРАНДУМСКЕ СТАВКЕ ЗА РЕФУНДАЦИЈУ РАСХОДА (5095 + 5097) | D24: =D25+D27 -> 0 | E24: =E25+E27 -> 0 | F24: 0 | G24: =G25+G27 -> 0 | H24: =H25+H27 -> 0 | I24: =I25+I27 -> 0 | J24: 0
A25: 5095 | B25: 771000 | C25: МЕМОРАНДУМСКЕ СТАВКЕ ЗА РЕФУНДАЦИЈУ РАСХОДА (5096) | D25: =D26 -> 0 | E25: =E26 -> 0 | F25: 0 | G25: =+G26 -> 0 | H25: =H26 -> 0 | I25: =I26 -> 0 | J25: 0
A26: 5096 | B26: 771100 | C26: Меморандумске ставке за рефундацију расхода | F26: 0 | J26: 0
A27: 5097 | B27: 772000 | C27: МЕМОРАНДУМСКЕ СТАВКЕ ЗА РЕФУНДАЦИЈУ РАСХОДА ИЗ ПРЕТХОДНЕ ГОДИНЕ (5098) | D27: =D28 -> 0 | E27: =E28 -> 0 | F27: 0 | G27: =G28 -> 0 | H27: =H28 -> 0 | I27: =I28 -> 0 | J27: 0
A28: 5098 | B28: 772100 | C28: Меморандумске ставке за рефундацију расхода из претходне године | F28: 0 | J28: 0
A29: 5099 | B29: 780000 | C29: ТРАНСФЕРИ ИЗМЕЂУ БУЏЕТСКИХ КОРИСНИКА НА ИСТОМ НИВОУ (5100) | D29: =D30 -> 724 | E29: =E30 -> 0 | F29: 724 | G29: =G30 -> 0 | H29: 0 | I29: 0 | J29: 724
A30: 5100 | B30: 781000 | C30: ТРАНСФЕРИ ИЗМЕЂУ БУЏЕТСКИХ КОРИСНИКА НА ИСТОМ НИВОУ (5101 + 5102) | D30: =D31 -> 724 | E30: =E31 -> 0 | F30: 724 | G30: 0 | H30: 0 | I30: 0 | J30: 724
A31: 5101 | B31: 781100 | C31: Трансфери између буџетских корисника на истом нивоу | D31: 724 | F31: 724 | J31: 724
A32: 5171 | C32: УКУПНИ ПРИХОДИ И ПРИМАЊА (5001) | D32: =D22 -> 724 | E32: =E22 -> 0 | F32: 724 | G32: =G22 -> 0 | H32: =H22 -> 0 | I32: =I22 -> 0 | J32: 724
A35: II. УКУПНИ РАСХОДИ И ИЗДАЦИ
J36: у хиљадама (000) динара
A37: Ознака ОП | B37: Број конта | C37: Опис | D37: Расходи из партиципације за услуге здравствене заштите и рефундација | E37: Расходи из партиципације за лекове издате на рецепт и помагала издатa на налог и рефундација | F37: Расходи из укупне партиципације и рефундација | G37: Расход од НСЗ | H37: Расход од Фонда ПИО | I37: Приход од Фонда СОВО | J37: УКУПНО
A40: 1 | B40: 2 | C40: 3 | D40: 4 | E40: 5 | F40: 6=4+5 | G40: 7 | H40: 8 | I40: 9 | J40: 10=6+7+8+9
A41: 5172 | C41: ТЕКУЋИ РАСХОДИ И ИЗДАЦИ ЗА НЕФИНАНСИЈСКЕ ИМОВИНЕ (5173 + 5341) | D41: =D42+D210 -> 743 | E41: 0 | F41: =D41+E41 -> 743 | G41: 0 | H41: 0 | I41: 0 | J41: =+F41+G41+H41+I41 -> 743
A42: 5173 | B42: 400000 | C42: ТЕКУЋИ РАСХОДИ (5174 + 5196 + 5241 + 5256 + 5280 + 5293 + 5309 + 5324) | D42: =D43+D65+D110+D125+D149+D162+D178+D193 -> 743 | E42: 0 | F42: 743 | G42: 0 | H42: 0 | I42: 0 | J42: 743
A43: 5174 | B43: 410000 | C43: РАСХОДИ ЗА ЗАПОСЛЕНЕ (5175 + 5177 + 5181 + 5183 + 5188 + 5190 + 5192 + 5194) | D43: =D44+D46+D50+D52+D57+D59+D61+D63 -> 0 | E43: 0 | F43: 0 | G43: 0 | H43: 0 | I43: 0 | J43: 0
A44: 5175 | B44: 411000 | C44: ПЛАТЕ, ДОДАЦИ И НАКНАДЕ ЗАПОСЛЕНИХ (ЗАРАДЕ) (5176) | D44: =D45 -> 0 | E44: 0 | F44: 0 | G44: 0 | H44: 0 | I44: 0 | J44: 0
A45: 5176 | B45: 411100 | C45: Плате, додаци и накнаде запослених | F45: 0 | J45: 0
A46: 5177 | B46: 412000 | C46: СОЦИЈАЛНИ ДОПРИНОСИ НА ТЕРЕТ ПОСЛОДАВЦА (од 5178 до 5180) | D46: =SUM(D47:D49) -> 0 | E46: 0 | F46: 0 | G46: 0 | H46: 0 | I46: 0 | J46: 0
A47: 5178 | B47: 412100 | C47: Допринос за пензијско и инвалидско осигурање | F47: 0 | J47: 0
A48: 5179 | B48: 412200 | C48: Допринос за здравствено осигурање | F48: 0 | J48: 0
A49: 5180 | B49: 412300 | C49: Допринос за незапосленост | F49: 0 | J49: 0
A50: 5181 | B50: 413000 | C50: НАКНАДЕ У НАТУРИ (5182) | D50: =D51 -> 0 | E50: 0 | F50: 0 | G50: 0 | H50: 0 | I50: 0 | J50: 0
A51: 5182 | B51: 413100 | C51: Накнаде у натури | F51: 0 | J51: 0
A52: 5183 | B52: 414000 | C52: СОЦИЈАЛНА ДАВАЊА ЗАПОСЛЕНИМА (од 5184 до 5187) | D52: =SUM(D53:D56) -> 0 | E52: 0 | F52: 0 | G52: 0 | H52: 0 | I52: 0 | J52: 0
A53: 5184 | B53: 414100 | C53: Исплата накнада за време одсуствовања с посла на терет фондова | F53: 0 | J53: 0
A54: 5185 | B54: 414200 | C54: Расходи за образовање деце запослених | F54: 0 | J54: 0
A55: 5186 | B55: 414300 | C55: Отпремнине и помоћи | F55: 0 | J55: 0
A56: 5187 | B56: 414400 | C56: Помоћ у медицинском лечењу запосленог или чланова уже породице и друге помоћи запосленом | F56: 0 | J56: 0
A57: 5188 | B57: 415000 | C57: НАКНАДА ТРОШКОВА ЗА ЗАПОСЛЕНЕ (5189) | D57: =D58 -> 0 | E57: 0 | F57: 0 | G57: 0 | H57: 0 | I57: 0 | J57: 0
A58: 5189 | B58: 415100 | C58: Накнаде трошкова за запослене | F58: 0 | J58: 0
A59: 5190 | B59: 416000 | C59: НАГРАДЕ ЗАПОСЛЕНИМА И ОСТАЛИ ПОСЕБНИ РАСХОДИ (5191) | D59: =D60 -> 0 | E59: 0 | F59: 0 | G59: 0 | H59: 0 | I59: 0 | J59: 0
A60: 5191 | B60: 416100 | C60: Награде запосленима и остали посебни расходи | F60: 0 | J60: 0
A61: 5192 | B61: 417000 | C61: ПОСЛАНИЧКИ ДОДАТАК (5193) | D61: =D62 -> 0 | E61: 0 | F61: 0 | G61: 0 | H61: 0 | I61: 0 | J61: 0
A62: 5193 | B62: 417100 | C62: Посланички додатак | F62: 0 | J62: 0
A63: 5194 | B63: 418000 | C63: СУДИЈСКИ ДОДАТАК (5195) | D63: =D64 -> 0 | E63: 0 | F63: 0 | G63: 0 | H63: 0 | I63: 0 | J63: 0
A64: 5195 | B64: 418100 | C64: Судијски додатак | F64: 0 | J64: 0
A65: 5196 | B65: 420000 | C65: КОРИШЋЕЊЕ УСЛУГА И РОБА (5197 + 5205 + 5211 + 5220 + 5228 + 5231) | D65: =D66+D74+D80+D89+D97+D100 -> 724 | E65: 0 | F65: 724 | G65: 0 | H65: 0 | I65: 0 | J65: 724
A66: 5197 | B66: 421000 | C66: СТАЛНИ ТРОШКОВИ (од 5198 до 5204) | D66: =SUM(D67:D73) -> 282 | E66: 0 | F66: 282 | G66: 0 | H66: 0 | I66: 0 | J66: 282
A67: 5198 | B67: 421100 | C67: Трошкови платног промета и банкарских услуга | D67: 3 | F67: 3 | J67: 3
A68: 5199 | B68: 421200 | C68: Енергетске услуге | F68: 0 | J68: 0
A69: 5200 | B69: 421300 | C69: Комуналне услуге | D69: 179 | F69: 179 | J69: 179
A70: 5201 | B70: 421400 | C70: Услуге комуникација | D70: 34 | F70: 34 | J70: 34
A71: 5202 | B71: 421500 | C71: Трошкови осигурања | D71: 66 | F71: 66 | J71: 66
A72: 5203 | B72: 421600 | C72: Закуп имовине и опреме | F72: 0 | J72: 0
A73: 5204 | B73: 421900 | C73: Остали трошкови | F73: 0 | J73: 0
A74: 5205 | B74: 422000 | C74: ТРОШКОВИ ПУТОВАЊА (од 5206 до 5210) | D74: =SUM(D75:D79) -> 0 | E74: 0 | F74: 0 | G74: 0 | H74: 0 | I74: 0 | J74: 0
A75: 5206 | B75: 422100 | C75: Трошкови службених путовања у земљи | F75: 0 | J75: 0
A76: 5207 | B76: 422200 | C76: Трошкови службених путовања у иностранство | F76: 0 | J76: 0
A77: 5208 | B77: 422300 | C77: Трошкови путовања у оквиру редовног рада | F77: 0 | J77: 0
A78: 5209 | B78: 422400 | C78: Трошкови путовања ученика | F78: 0 | J78: 0
A79: 5210 | B79: 422900 | C79: Остали трошкови транспорта | F79: 0 | J79: 0
A80: 5211 | B80: 423000 | C80: УСЛУГЕ ПО УГОВОРУ (од 5212 до 5219) | D80: =SUM(D81:D88) -> 92 | E80: 0 | F80: 92 | G80: 0 | H80: 0 | I80: 0 | J80: 92
A81: 5212 | B81: 423100 | C81: Административне услуге | F81: 0 | J81: 0
A82: 5213 | B82: 423200 | C82: Компјутерске услуге | D82: 92 | F82: 92 | J82: 92
A83: 5214 | B83: 423300 | C83: Услуге образовања и усавршавања запослених | F83: 0 | J83: 0
A84: 5215 | B84: 423400 | C84: Услуге информисања | F84: 0 | J84: 0
A85: 5216 | B85: 423500 | C85: Стручне услуге | F85: 0 | J85: 0
A86: 5217 | B86: 423600 | C86: Услуге за домаћинство и угоститељство | F86: 0 | J86: 0
A87: 5218 | B87: 423700 | C87: Репрезентација | F87: 0 | J87: 0
A88: 5219 | B88: 423900 | C88: Остале опште услуге | F88: 0 | J88: 0
A89: 5220 | B89: 424000 | C89: СПЕЦИЈАЛИЗОВАНЕ УСЛУГЕ (од 5221 до 5227) | D89: =SUM(D90:D96) -> 11 | E89: 0 | F89: 11 | G89: 0 | H89: 0 | I89: 0 | J89: 11
A90: 5221 | B90: 424100 | C90: Пољопривредне услуге | F90: 0 | J90: 0
A91: 5222 | B91: 424200 | C91: Услуге образовања, културе и спорта | F91: 0 | J91: 0
A92: 5223 | B92: 424300 | C92: Медицинске услуге | D92: 11 | F92: 11 | J92: 11
A93: 5224 | B93: 424400 | C93: Услуге одржавања аутопутева | F93: 0 | J93: 0
A94: 5225 | B94: 424500 | C94: Услуге одржавања националних паркова и природних површина | F94: 0 | J94: 0
A95: 5226 | B95: 424600 | C95: Услуге очувања животне средине, науке и геодетске услуге | F95: 0 | J95: 0
A96: 5227 | B96: 424900 | C96: Остале специјализоване услуге | F96: 0 | J96: 0
A97: 5228 | B97: 425000 | C97: ТЕКУЋЕ ПОПРАВКЕ И ОДРЖАВАЊЕ (5229 + 5230) | D97: =D98+D99 -> 166 | E97: 0 | F97: 166 | G97: 0 | H97: 0 | I97: 0 | J97: 166
A98: 5229 | B98: 425100 | C98: Текуће поправке и одржавање зграда и објеката | D98: 55 | F98: 55 | J98: 55
A99: 5230 | B99: 425200 | C99: Текуће поправке и одржавање опреме | D99: 111 | F99: 111 | J99: 111
A100: 5231 | B100: 426000 | C100: МАТЕРИЈАЛ (од 5232 до 5240) | D100: =SUM(D101:D109) -> 173 | E100: 0 | F100: 173 | G100: 0 | H100: 0 | I100: 0 | J100: 173
A101: 5232 | B101: 426100 | C101: Административни материјал | D101: 32 | F101: 32 | J101: 32
A102: 5233 | B102: 426200 | C102: Материјали за пољопривреду | F102: 0 | J102: 0
A103: 5234 | B103: 426300 | C103: Материјали за образовање и усавршавање запослених | F103: 0 | J103: 0
A104: 5235 | B104: 426400 | C104: Материјали за саобраћај | D104: 1 | F104: 1 | J104: 1
A105: 5236 | B105: 426500 | C105: Материјали за очување животне средине и науку | F105: =D105+E105 -> 0 | J105: =+F105+G105+H105+I105 -> 0
A106: 5237 | B106: 426600 | C106: Материјали за образовање, културу и спорт | F106: 0 | J106: 0
A107: 5238 | B107: 426700 | C107: Медицински и лабораторијски материјали | F107: 0 | J107: 0
A108: 5239 | B108: 426800 | C108: Материјали за одржавање хигијене и угоститељство | F108: 0 | J108: 0
A109: 5240 | B109: 426900 | C109: Материјали за посебне намене | D109: 140 | F109: 140 | J109: 140
A110: 5241 | B110: 430000 | C110: АМОРТИЗАЦИЈА И УПОТРЕБА СРЕДСТАВА ЗА РАД (5242 + 5246 + 5248 + 5250 + 5254) | D110: =D111+D115+D117+D119+D123 -> 0 | E110: 0 | F110: 0 | G110: 0 | H110: 0 | I110: 0 | J110: 0
A111: 5242 | B111: 431000 | C111: АМОРТИЗАЦИЈА НЕКРЕТНИНА И ОПРЕМЕ (од 5243 до 5245) | D111: =SUM(D112:D114) -> 0 | E111: 0 | F111: 0 | G111: 0 | H111: 0 | I111: 0 | J111: 0
A112: 5243 | B112: 431100 | C112: Амортизација зграда и грађевинскиx објеката | F112: 0 | J112: 0
A113: 5244 | B113: 431200 | C113: Амортизација опреме | F113: 0 | J113: 0
A114: 5245 | B114: 431300 | C114: Амортизација осталих некретнина и опреме | F114: 0 | J114: 0
A115: 5246 | B115: 432000 | C115: АМОРТИЗАЦИЈА КУЛТИВИСАНЕ ИМОВИНЕ (5247) | D115: =D116 -> 0 | E115: 0 | F115: 0 | G115: 0 | H115: 0 | I115: 0 | J115: 0
A116: 5247 | B116: 432100 | C116: Амортизација култивисане опреме | F116: 0 | J116: 0
A117: 5248 | B117: 433000 | C117: УПОТРЕБА ДРАГОЦЕНОСТИ (5249) | D117: =D118 -> 0 | E117: 0 | F117: 0 | G117: 0 | H117: 0 | I117: 0 | J117: 0
A118: 5249 | B118: 433100 | C118: Употреба драгоцености | F118: 0 | J118: 0
A119: 5250 | B119: 434000 | C119: УПОТРЕБА ПРИРОДНЕ ИМОВИНЕ (од 5251 до 5253) | D119: =SUM(D120:D122) -> 0 | E119: 0 | F119: 0 | G119: 0 | H119: 0 | I119: 0 | J119: 0
A120: 5251 | B120: 434100 | C120: Употреба земљишта | F120: 0 | J120: 0
A121: 5252 | B121: 434200 | C121: Употреба подземног блага | F121: 0 | J121: 0
A122: 5253 | B122: 434300 | C122: Употреба шума и вода | F122: 0 | J122: 0
A123: 5254 | B123: 435000 | C123: АМОРТИЗАЦИЈА НЕМАТЕРИЈАЛНЕ ИМОВИНЕ (5255) | D123: =D124 -> 0 | E123: 0 | F123: 0 | G123: 0 | H123: 0 | I123: 0 | J123: 0
A124: 5255 | B124: 435100 | C124: Амортизација нематеријалне имовине | F124: 0 | J124: 0
A125: 5256 | B125: 440000 | C125: ОТПЛАТА КАМАТА И ПРАТЕЋИ ТРОШКОВИ ЗАДУЖИВАЊА (5257 + 5267 + 5274 + 5276) | D125: =D126+D136+D143+D145 -> 0 | E125: 0 | F125: 0 | G125: 0 | H125: 0 | I125: 0 | J125: 0
A126: 5257 | B126: 441000 | C126: ОТПЛАТЕ ДОМАЋИХ КАМАТА (од 5258 до 5266) | D126: =SUM(D127:D135) -> 0 | E126: 0 | F126: 0 | G126: 0 | H126: 0 | I126: 0 | J126: 0
A127: 5258 | B127: 441100 | C127: Отплата камата на домаће хартије од вредности | F127: 0 | J127: 0
A128: 5259 | B128: 441200 | C128: Отплата камата осталим нивоима власти | F128: 0 | J128: 0
A129: 5260 | B129: 441300 | C129: Отплата камата домаћим јавним финансијским институцијама | F129: 0 | J129: 0
A130: 5261 | B130: 441400 | C130: Отплата камата домаћим пословним банкама | F130: 0 | J130: 0
A131: 5262 | B131: 441500 | C131: Отплата камата осталим домаћим кредиторима | F131: 0 | J131: 0
A132: 5263 | B132: 441600 | C132: Отплата камата домаћинствима у земљи | F132: 0 | J132: 0
A133: 5264 | B133: 441700 | C133: Отплата камата на домаће финансијске деривате | F133: 0 | J133: 0
A134: 5265 | B134: 441800 | C134: Отплата камата на домаће менице | F134: 0 | J134: 0
A135: 5266 | B135: 441900 | C135: Финансијске промене на финансијским лизинзима | F135: 0 | J135: 0
A136: 5267 | B136: 442000 | C136: ОТПЛАТА СТРАНИХ КАМАТА (од 5268 до 5273) | D136: =SUM(D137:D142) -> 0 | E136: 0 | F136: 0 | G136: 0 | H136: 0 | I136: 0 | J136: 0
A137: 5268 | B137: 442100 | C137: Отплата камата на хартије од вредности емитоване на иностраном финансијском тржишту | F137: 0 | J137: 0
A138: 5269 | B138: 442200 | C138: Отплата камата страним владама | F138: 0 | J138: 0
A139: 5270 | B139: 442300 | C139: Отплата камата мултилатералним институцијама | F139: 0 | J139: 0
A140: 5271 | B140: 442400 | C140: Отплата камата страним пословним банкама | F140: 0 | J140: 0
A141: 5272 | B141: 442500 | C141: Отплата камата осталим страним кредиторима | F141: 0 | J141: 0
A142: 5273 | B142: 442600 | C142: Отплата камата на стране финансијске деривате | F142: 0 | J142: 0
A143: 5274 | B143: 443000 | C143: ОТПЛАТА КАМАТА ПО ГАРАНЦИЈАМА (5275) | D143: =D144 -> 0 | E143: 0 | F143: 0 | G143: 0 | H143: 0 | I143: 0 | J143: 0
A144: 5275 | B144: 443100 | C144: Отплата камата по гаранцијама | F144: 0 | J144: 0
A145: 5276 | B145: 444000 | C145: ПРАТЕЋИ ТРОШКОВИ ЗАДУЖИВАЊА (од 5277 до 5279) | D145: =SUM(D146:D148) -> 0 | E145: 0 | F145: 0 | G145: 0 | H145: 0 | I145: 0 | J145: 0
A146: 5277 | B146: 444100 | C146: Негативне курсне разлике | F146: 0 | J146: 0
A147: 5278 | B147: 444200 | C147: Казне за кашњење | F147: 0 | J147: 0
A148: 5279 | B148: 444300 | C148: Остали пратећи трошкови задуживања | F148: 0 | J148: 0
A149: 5280 | B149: 450000 | C149: СУБВЕНЦИЈЕ (5281 + 5284 + 5287 + 5290) | D149: =D150+D153+D156+D159 -> 0 | E149: 0 | F149: 0 | G149: 0 | H149: 0 | I149: 0 | J149: 0
A150: 5281 | B150: 451000 | C150: СУБВЕНЦИЈЕ ЈАВНИМ НЕФИНАНСИЈСКИМ ПРЕДУЗЕЋИМА И ОРГАНИЗАЦИЈАМА (5282 + 5283) | D150: =D151+D152 -> 0 | E150: 0 | F150: 0 | G150: 0 | H150: 0 | I150: 0 | J150: 0
A151: 5282 | B151: 451100 | C151: Текуће субвенције јавним нефинансијским предузећима и организацијама | F151: 0 | J151: 0
A152: 5283 | B152: 451200 | C152: Капиталне субвенције јавним нефинансијским предузећима и организацијама | F152: 0 | J152: 0
A153: 5284 | B153: 452000 | C153: СУБВЕНЦИЈЕ ПРИВАТНИМ ФИНАНСИЈСКИМ ИНСТИТУЦИЈАМА (5285 + 5286) | D153: =D154+D155 -> 0 | E153: 0 | F153: 0 | G153: 0 | H153: 0 | I153: 0 | J153: 0
A154: 5285 | B154: 452100 | C154: Текуће субвенције приватним финансијским институцијама | F154: 0 | J154: 0
A155: 5286 | B155: 452200 | C155: Капиталне субвенције приватним финансијским институцијама | F155: 0 | J155: 0
A156: 5287 | B156: 453000 | C156: СУБВЕНЦИЈЕ ЈАВНИМ ФИНАНСИЈСКИМ ИНСТИТУЦИЈАМА (5288 + 5289) | D156: =D157+D158 -> 0 | E156: 0 | F156: 0 | G156: 0 | H156: 0 | I156: 0 | J156: 0
A157: 5288 | B157: 453100 | C157: Текуће субвенције јавним финансијским институцијама | F157: 0 | J157: 0
A158: 5289 | B158: 453200 | C158: Капиталне субвенције јавним финансијским институцијама | F158: 0 | J158: 0
A159: 5290 | B159: 454000 | C159: СУБВЕНЦИЈЕ ПРИВАТНИМ ПРЕДУЗЕЋИМА (5291 + 5292) | D159: =D160+D161 -> 0 | E159: 0 | F159: 0 | G159: 0 | H159: 0 | I159: 0 | J159: 0
A160: 5291 | B160: 454100 | C160: Текуће субвенције приватним предузећима | F160: 0 | J160: 0
A161: 5292 | B161: 454200 | C161: Капиталне субвенције приватним предузећима | F161: 0 | J161: 0
A162: 5293 | B162: 460000 | C162: ДОНАЦИЈЕ, ДОТАЦИЈЕ И ТРАНСФЕРИ (5294 + 5297 + 5300 + 5303 + 5306) | D162: =D163+D166+D169+D172+D175 -> 0 | E162: 0 | F162: 0 | G162: 0 | H162: 0 | I162: 0 | J162: 0
A163: 5294 | B163: 461000 | C163: ДОНАЦИЈЕ СТРАНИМ ВЛАДАМА (5295 + 5296) | D163: =D164+D165 -> 0 | E163: 0 | F163: 0 | G163: 0 | H163: 0 | I163: 0 | J163: 0
A164: 5295 | B164: 461100 | C164: Текуће донације страним владама | F164: 0 | J164: 0
A165: 5296 | B165: 461200 | C165: Капиталне донације страним владама | F165: 0 | J165: 0
A166: 5297 | B166: 462000 | C166: ДОТАЦИЈЕ МЕЂУНАРОДНИМ ОРГАНИЗАЦИЈАМА (5298 + 5299) | D166: =D167+D168 -> 0 | E166: 0 | F166: 0 | G166: 0 | H166: 0 | I166: 0 | J166: 0
A167: 5298 | B167: 462100 | C167: Текуће дотације међународним организацијама | F167: 0 | J167: 0
A168: 5299 | B168: 462200 | C168: Капиталне дотације међународним организацијама | F168: 0 | J168: 0
A169: 5300 | B169: 463000 | C169: ТРАНСФЕРИ ОСТАЛИМ НИВОИМА ВЛАСТИ (5301 + 5302) | D169: =D170+D171 -> 0 | E169: 0 | F169: =D169+E169 -> 0 | G169: 0 | H169: 0 | I169: 0 | J169: =+F169+G169+H169+I169 -> 0
A170: 5301 | B170: 463100 | C170: Текући трансфери осталим нивоима власти | F170: 0 | J170: 0
A171: 5302 | B171: 463200 | C171: Капитални трансфери осталим нивоима власти | F171: 0 | J171: 0
A172: 5303 | B172: 464000 | C172: ДОТАЦИЈЕ ОРГАНИЗАЦИЈАМА ОБАВЕЗНОГ СОЦИЈАЛНОГ ОСИГУРАЊА (5304 + 5305) | D172: =D173+D174 -> 0 | E172: 0 | F172: 0 | G172: 0 | H172: 0 | I172: 0 | J172: 0
A173: 5304 | B173: 464100 | C173: Текуће дотације организацијама обавезног социјалног осигурања | F173: 0 | J173: 0
A174: 5305 | B174: 464200 | C174: Капиталне дотације организацијама обавезног социјалног осигурања | F174: 0 | J174: 0
A175: 5306 | B175: 465000 | C175: ОСТАЛЕ ДОТАЦИЈЕ И ТРАНСФЕРИ (5307 + 5308) | D175: =D176+D177 -> 0 | E175: 0 | F175: 0 | G175: 0 | H175: 0 | I175: 0 | J175: 0
A176: 5307 | B176: 465100 | C176: Остале текуће дотације и трансфери | F176: 0 | J176: 0
A177: 5308 | B177: 465200 | C177: Остале капиталне дотације и трансфери | F177: 0 | J177: 0
A178: 5309 | B178: 470000 | C178: СОЦИЈАЛНО ОСИГУРАЊЕ И СОЦИЈАЛНА ЗАШТИТА (5310 + 5314) | D178: =D179+D183 -> 0 | E178: 0 | F178: 0 | G178: 0 | H178: 0 | I178: 0 | J178: 0
A179: 5310 | B179: 471000 | C179: ПРАВА ИЗ СОЦИЈАЛНОГ ОСИГУРАЊА (ОРГАНИЗАЦИЈЕ ОБАВЕЗНОГ СОЦИЈАЛНОГ ОСИГУРАЊА) (од 5311 до 5313) | D179: =SUM(D180:D182) -> 0 | E179: 0 | F179: 0 | G179: 0 | H179: 0 | I179: 0 | J179: 0
A180: 5311 | B180: 471100 | C180: Права из социјалног осигурања која се исплаћују непосредно домаћинствима | F180: 0 | J180: 0
A181: 5312 | B181: 471200 | C181: Права из социјалног осигурања која се исплаћују непосредно пружаоцима услуга | F181: 0 | J181: 0
A182: 5313 | B182: 471900 | C182: Трансфери другим организацијама обавезног социјалног осигурања за доприносе за осигурање | F182: 0 | J182: 0
A183: 5314 | B183: 472000 | C183: НАКНАДЕ ЗА СОЦИЈАЛНУ ЗАШТИТУ ИЗ БУЏЕТА (од 5315 до 5323) | D183: =SUM(D184:D192) -> 0 | E183: 0 | F183: 0 | G183: 0 | H183: 0 | I183: 0 | J183: 0
A184: 5315 | B184: 472100 | C184: Накнаде из буџета у случају болести и инвалидности | F184: 0 | J184: 0
A185: 5316 | B185: 472200 | C185: Накнаде из буџета за породиљско одсуство | F185: 0 | J185: 0
A186: 5317 | B186: 472300 | C186: Накнаде из буџета за децу и породицу | F186: 0 | J186: 0
A187: 5318 | B187: 472400 | C187: Накнаде из буџета за случај незапослености | F187: 0 | J187: 0
A188: 5319 | B188: 472500 | C188: Старосне и породичне пензије из буџета | F188: 0 | J188: 0
A189: 5320 | B189: 472600 | C189: Накнаде из буџета у случају смрти | F189: 0 | J189: 0
A190: 5321 | B190: 472700 | C190: Накнаде из буџета за образовање, културу, науку и спорт | F190: 0 | J190: 0
A191: 5322 | B191: 472800 | C191: Накнаде из буџета за становање и живот | F191: 0 | J191: 0
A192: 5323 | B192: 472900 | C192: Остале накнаде из буџета | F192: 0 | J192: 0
A193: 5324 | B193: 480000 | C193: ОСТАЛИ РАСХОДИ (5325 + 5328 + 5332 + 5334 + 5337 + 5339) | D193: =D194+D197+D201+D203+D206+D208 -> 19 | E193: 0 | F193: 19 | G193: 0 | H193: 0 | I193: 0 | J193: 19
A194: 5325 | B194: 481000 | C194: ДОТАЦИЈЕ НЕВЛАДИНИМ ОРГАНИЗАЦИЈАМА (5326 + 5327) | D194: =D195+D196 -> 0 | E194: 0 | F194: 0 | G194: 0 | H194: 0 | I194: 0 | J194: 0
A195: 5326 | B195: 481100 | C195: Дотације непрофитним организацијама које пружају помоћ домаћинствима | F195: 0 | J195: 0
A196: 5327 | B196: 481900 | C196: Дотације осталим непрофитним институцијама | F196: 0 | J196: 0
A197: 5328 | B197: 482000 | C197: ПОРЕЗИ, ОБАВЕЗНЕ ТАКСЕ, КАЗНЕ, ПЕНАЛИ И КАМАТЕ (од 5329 до 5331) | D197: =SUM(D198:D200) -> 19 | E197: 0 | F197: 19 | G197: 0 | H197: 0 | I197: 0 | J197: 19
A198: 5329 | B198: 482100 | C198: Остали порези | D198: 19 | F198: 19 | J198: 19
A199: 5330 | B199: 482200 | C199: Обавезне таксе | F199: 0 | J199: 0
A200: 5331 | B200: 482300 | C200: Новчане казне, пенали и камате | F200: 0 | J200: 0
A201: 5332 | B201: 483000 | C201: НОВЧАНЕ КАЗНЕ И ПЕНАЛИ ПО РЕШЕЊУ СУДОВА (5333) | D201: =D202 -> 0 | E201: 0 | F201: 0 | G201: 0 | H201: 0 | I201: 0 | J201: 0
A202: 5333 | B202: 483100 | C202: Новчане казне и пенали по решењу судова | F202: 0 | J202: 0
A203: 5334 | B203: 484000 | C203: НАКНАДА ШТЕТЕ ЗА ПОВРЕДЕ ИЛИ ШТЕТУ НАСТАЛУ УСЛЕД ЕЛЕМЕНТАРНИХ НЕПОГОДА ИЛИ ДРУГИХ ПРИРОДНИХ УЗРОКА (5335 + 5336) | D203: =D204+D205 -> 0 | E203: 0 | F203: 0 | G203: 0 | H203: 0 | I203: 0 | J203: 0
A204: 5335 | B204: 484100 | C204: Накнада штете за повреде или штету насталу услед елементарних непогода | F204: 0 | J204: 0
A205: 5336 | B205: 484200 | C205: Накнада штете од дивљачи | F205: 0 | J205: 0
A206: 5337 | B206: 485000 | C206: НАКНАДА ШТЕТЕ ЗА ПОВРЕДЕ ИЛИ ШТЕТУ НАНЕТУ ОД СТРАНЕ ДРЖАВНИХ ОРГАНА (5338) | D206: =D207 -> 0 | E206: 0 | F206: 0 | G206: 0 | H206: 0 | I206: 0 | J206: 0
A207: 5338 | B207: 485100 | C207: Накнада штете за повреде или штету нанетих од стране државних органа | F207: 0 | J207: 0
A208: 5339 | B208: 489000 | C208: РАСХОДИ КОЈИ СЕ ФИНАНСИРАЈУ ИЗ СРЕДСТАВА ЗА РЕАЛИЗАЦИЈУ НАЦИОНАЛНОГ ИНВЕСТИЦИОНОГ ПЛАНА (5340) | D208: =D209 -> 0 | E208: 0 | F208: 0 | G208: 0 | H208: 0 | I208: 0 | J208: 0
A209: 5340 | B209: 489100 | C209: Расходи који се финансирају из средстава за реализацију националног инвестиционог плана | F209: 0 | J209: 0
A210: 5341 | B210: 500000 | C210: ИЗДАЦИ ЗА НЕФИНАНСИЈСКУ ИМОВИНУ (5342 + 5364 + 5373 + 5376 + 5384) | D210: =D211+D233+D242+D245+D253 -> 0 | E210: 0 | F210: 0 | G210: 0 | H210: 0 | I210: 0 | J210: 0
A211: 5342 | B211: 510000 | C211: ОСНОВНА СРЕДСТВА (5343 + 5348 + 5358 + 5360 + 5362) | D211: =D212+D217+D227+D229+D231 -> 0 | E211: 0 | F211: 0 | G211: 0 | H211: 0 | I211: 0 | J211: 0
A212: 5343 | B212: 511000 | C212: ЗГРАДЕ И ГРАЂЕВИНСКИ ОБЈЕКТИ (од 5344 до 5347) | D212: =SUM(D213:D216) -> 0 | E212: 0 | F212: 0 | G212: 0 | H212: 0 | I212: 0 | J212: 0
A213: 5344 | B213: 511100 | C213: Куповина зграда и објеката | F213: 0 | J213: 0
A214: 5345 | B214: 511200 | C214: Изградња зграда и објеката | F214: 0 | J214: 0
... 92 more rows

Sheet Transferi
A1: РЕПУБЛИЧКИ ФОНД ЗА ЗДРАВСТВЕНО | F1: ТР
A2: ОСИГУРАЊЕ - БЕОГРАД
A3: Јована Мариновића 2
A7: ="ФИЛИЈАЛА: " & Filijala -> ФИЛИЈАЛА: 09 ВАЉЕВО
A8: ="ЗДРАВСТВЕНА УСТАНОВА: " & ZU -> ЗДРАВСТВЕНА УСТАНОВА: 100209001 ДЗ УБ
A9: ТРАНСФЕРИ ИЗМЕЂУ БУЏЕТСКИХ КОРИСНИКА НА ИСТОМ НИВОУ - конто 781100 (ООСО) у периоду од 01.01.2025. - 31.12.2025. године
F10: у хиљадама (000) динара
A11: Р. бр. | B11: Назив | C11: Трансфери за услуге здравствене заштите | D11: Трансфери за лекове издате на рецепт | E11: Трансфери за помагала издата на налог | F11: УКУПНО
B12: 0 | C12: 1 | D12: 2 | E12: 3 | F12: 4=1+2+3
A13: 1 | B13: 781100 - Трансфери између буџетских корисника на истом нивоу (ООСО) | F13: =C13+D13+E13 -> 0
A15: Напомена: 1. Износ исказан у колони 4 - УКУПНО увећан за укупну партиципацију из обрасца ОЗПР (колона 6) мора бити једнак износу на ОП 5101 у колони 9 Обрасца 5.
A16: 2. У колону 1 - Трансфери за услуге здравствене заштите уноси се износ трансфера за здравствене услуге примарне и стоматолошке здравствене заштите у здравственим установама које имају апотеку у саставу.
A18: РАСХОДИ ЗА ЛЕКОВЕ ИЗДАТЕ НА РЕЦЕПТ И ПОМАГАЛА ИЗДАТА НА НАЛОГ у периоду од 01.01.2025. - 31.12.2025. године
C20: у хиљадама (000) динара
A21: Р. бр. | B21: Назив | C21: Лекови издати на рецепт и помагала издата на налог
B22: 0 | C22: 1
A23: 1 | B23: 426751 - Лекови на рецепт
A26: Напомена: Образац ТР попуњавају само апотеке и здравствене установе које у свом саставу имају апотеку.

Sheet TransferiFP
A1: РЕПУБЛИЧКИ ФОНД ЗА ЗДРАВСТВЕНО | I1: ТР-ФП
A2: ОСИГУРАЊЕ - БЕОГРАД
A3: Јована Мариновића 2
A7: ="ФИЛИЈАЛА: " & Filijala -> ФИЛИЈАЛА: 09 ВАЉЕВО
A8: ="ЗДРАВСТВЕНА УСТАНОВА: " & ZU -> ЗДРАВСТВЕНА УСТАНОВА: 100209001 ДЗ УБ
B10: ИЗНОС ПЛАНИРАНИХ ТРАНСФЕРА ИЗМЕЂУ БУЏЕТСКИХ КОРИСНИКА НА ИСТОМ НИВОУ
I11: у хиљадама (000) динара
A12: Р. бр. | B12: Назив | C12: Укупно | D12: Приходи и примања из буџета | H12: Из донација и помоћи | I12: Из осталих извора
D13: Републике | E13: Аутономне покрајине | F13: Општине / града | G13: ООСО
B14: 0 | C14: 1 | D14: 2 | E14: 3 | F14: 4 | G14: 5 | H14: 6 | I14: 7
A15: 1 | B15: 781100 - Трансфери између буџетских корисника на истом нивоу | C15: =SUM(D15:I15) -> 408950 | D15: 7700 | G15: 401250
B17: Напомена: Податак исказан у колони 1 мора да буде једнак податку исказаном на ОП позицији 5101 у колони 4 Обрасца ИБ
B19: =+IF(C15=ObrazacIB!D138,"","Грешка, износ у колони 1 није усклађен са Обрасцем ИБ!!!") -> 

Sheet BO
A1: РЕПУБЛИЧКИ ФОНД ЗА ЗДРАВСТВЕНО | H1: БО
A2: ОСИГУРАЊЕ - БЕОГРАД
A3: Јована Мариновића 2
A5: ОБРАЗАЦ БО - ИСПЛАЋЕНА И РЕФУНДИРАНА СРЕДСТВА КОЈА СЕ ОДНОСЕ НА НАКНАДЕ КОЈЕ СЕ ЕВИДЕНТИРАЈУ У ОКВИРУ ГРУПЕ 414100
D6: у периоду од 01.01.2025. - 31.12.2025. године
A7: ="ФИЛИЈАЛА: " & Filijala -> ФИЛИЈАЛА: 09 ВАЉЕВО
A8: ="ЗДРАВСТВЕНА УСТАНОВА: " & ZU -> ЗДРАВСТВЕНА УСТАНОВА: 100209001 ДЗ УБ
H10: у хиљадама (000) динара
A11: Р. бр. | B11: Извор финансирања | C11: 771100 исказан у обрасцу 5ГО | D11: Пренета средства за накнаде које нису исказане у приходима (сторниран расход извршен у текућој години) | E11: Укупно пренета средства за накнаде | F11: Исплате накнада исказаних у обрасцу 5ГО на 414100 | G11: Исплате накнада које нису исказане у расходима | H11: Укупно исплаћене накнаде
B12: 0 | C12: 1 | D12: 2 | E12: 3=1+2 | F12: 4 | G12: 5 | H12: 6=4+5
A13: 1 | B13: УКУПНА СРЕДСТВА (1.1-1.5) | C13: =C14+C15+C16+C17+C18 -> 0 | D13: 2168 | E13: 2168 | F13: 50 | G13: 2168 | H13: 2218
A14: 1.1 | B14: РФЗО | D14: 2168 | E14: =C14+D14 -> 2168 | G14: 2168 | H14: =F14+G14 -> 2168
A15: 1.2 | B15: ФОНД ПИО | E15: =C15+D15 -> 0 | H15: =F15+G15 -> 0
A16: 1.3 | B16: СЕКРЕТАРИЈАТ ЗА СОЦИЈАЛНУ И ДЕЧИЈУ ЗАШТИТУ | E16: =C16+D16 -> 0 | H16: =F16+G16 -> 0
A17: 1.4 | B17: ОПШТИНА / ГРАД | E17: =C17+D17 -> 0 | H17: =F17+G17 -> 0
A18: 1.5 | B18: ОСТАЛО | E18: =C18+D18 -> 0 | F18: 50 | H18: =F18+G18 -> 50
A20: Напомена: Овим обрасцем обухваћена су средства за:
A21: * накнаде за боловање преко 30 дана које рефундира РФЗО
A22: * накнаде за породиљско одсуство које рефундира Секретаријат за социјалну и дечију заштиту
A23: * накнаде за инвалиде II категорије које рефундира Фонд ПИО
A24: * накнаде за 35% за трудничко боловање

Sheet Krv1
A1: РЕПУБЛИЧКИ ФОНД ЗА ЗДРАВСТВЕНО | I1: КРВ 1
A2: ОСИГУРАЊЕ - БЕОГРАД
A3: Јована Мариновића 2
A7: ="ФИЛИЈАЛА: " & Filijala -> ФИЛИЈАЛА: 09 ВАЉЕВО
A8: ="ЗДРАВСТВЕНА УСТАНОВА: " & ZU -> ЗДРАВСТВЕНА УСТАНОВА: 100209001 ДЗ УБ
A9: ТРАНСФЕРИ РЕПУБЛИЧКОГ ФОНДА ЗА КРВ И ЛАБИЛНЕ ПРОДУКТЕ ОД КРВИ ЗДРАВСТВЕНИМ УСТАНОВАМА ЗА ОСИГУРАНА ЛИЦА РЕПУБЛИЧКОГ ФОНДА- конто 781100 (ООСО) у периоду од 01.01.2025. - 31.12.2025. године
C10: у хиљадама (000) динара
A11: Р. бр. | B11: Назив | C11: Трансфери за крв и лабилне продукте од крви
B12: 0 | C12: 1
A13: 1 | B13: 781100 - Трансфери за крв и лабилне продукте од крви за осигурана лица Републичког фонда
A18: РАСХОДИ ЗА КРВ И ЛАБИЛНЕ ПРОДУКТЕ ОД КРВИ ЗА ОСИГУРАНА ЛИЦА РЕПУБЛИЧКОГ ФОНДА у периоду од 01.01.2025. - 31.12.2025. године
I19: у хиљадама (000) динара
A20: Р. бр. | B20: Назив | C20: Институт за трансфузију крви Београд | D20: Завод за трансфузију крви Нови Сад | E20: Завод за трансфузију крви Ниш | F20: Остали | I20: Укупно
F21: ЗУ од којих је набављена крв | G21: Остали добављачи | H21: Укупно остали
B22: 0 | C22: 1 | D22: 2 | E22: 3 | F22: 4 | G22: 5 | H22: 6=4+5 | I22: 7 = 1+2+3+6
A23: 1 | B23: 426700 - Крв и лабилни продукти од крви | H23: =F23+G23 -> 0 | I23: =C23+D23+E23+H23 -> 0
A26: Напомена 1: Средства за КПП 076 и за испоручену крв за осигурана лица Републичког фонда приликом пружања услуга ван уговорене накнаде
A27: Напомена 2: Уз образац Крв 1 здравствена установа треба да достави и обавештење на које се установе и у ком износу односи податак исказан у колонама 4 и 5

Sheet Krv2a
A1: РЕПУБЛИЧКИ ФОНД ЗА ЗДРАВСТВЕНО | D1: КРВ 2а
A2: ОСИГУРАЊЕ - БЕОГРАД
A3: Јована Мариновића 2
A7: ="ФИЛИЈАЛА: " & Filijala -> ФИЛИЈАЛА: 09 ВАЉЕВО
A8: ="ЗДРАВСТВЕНА УСТАНОВА: " & ZU -> ЗДРАВСТВЕНА УСТАНОВА: 100209001 ДЗ УБ
A9: ОСТВАРЕНИ ПРИХОДИ ОД ЗДРАВСТВЕНИХ УСТАНОВА ИЗ ПЛАНА МРЕЖЕ ПО ОСНОВУ ПРОДАЈЕ КРВИ И ЛАБИЛНИХ ПРОДУКАТА ОД КРВИ ЗА ОСИГУРАНА ЛИЦА РЕПУБЛИЧКОГ ФОНДА у периоду од 01.01.2025. - 31.12.2025. године
D10: у хиљадама (000) динара
B11: Р. бр. | C11: 781100 - Остварени приходи од здравствених установа из плана мреже по основу продаје крви и лабилних продуката од крви за осигурана лица Републичког фонда | D11: Износ
C12: 1 | D12: 2
B13: 1 | C13: 100201001 Дом здравља "Др Јанош Хаџи", Бачка Топола
B14: 2 | C14: 100201002 Дом здравља "Др Мартон Шандор", Мали Иђош
B15: 3 | C15: 100201004 Завод за јавно здравље Суботица
B16: 4 | C16: 100201005 Апотека Суботица
B17: 5 | C17: 100201006 Дом здравља Суботица
B18: 6 | C18: 100201007 Општа болница Суботица
B19: 7 | C19: 100202001 Дом здравља Житиште
B20: 8 | C20: 100202003 Дом здравља Нови Бечеј
B21: 9 | C21: 100202004 Дом здравља Сечањ
B22: 10 | C22: 100202005 Дом здравља Нова Црња
B23: 11 | C23: 100202007 Специјална болница "Русанда" Меленци
B24: 12 | C24: 100202008 Специјална болница за плућне болести "Др Васа Савић", Зрењанин
B25: 13 | C25: 100202009 Завод за јавно здравље Зрењанин
B26: 14 | C26: 100202010 Апотека Зрењанин
B27: 15 | C27: 100202011 Дом здравља "Др Бошко Вребалов" Зрењанин
B28: 16 | C28: 100202012 Општа болница "Ђ. Јовановић" Зрењанин
B29: 17 | C29: 100203001 Дом здравља Ада
B30: 18 | C30: 100203002 Дом здравља Кањижа
B31: 19 | C31: 100203003 Дом здравља Нови Кнежевац
B32: 20 | C32: 100203004 Дом здравља Чока
B33: 21 | C33: 100203007 Специјална болница "Свети Врачеви", Нови Кнежевац
B34: 22 | C34: 100203008 Специјална болница за рехабилитацију " Бања Кањижа "
B35: 23 | C35: 100203009 Завод за јавно здравље Кикинда
B36: 24 | C36: 100203010 Апотека Кикинда
B37: 25 | C37: 100203011 Дом здравља Кикинда
B38: 26 | C38: 100203012 Општа болница Кикинда
B39: 27 | C39: 100203013 Дом здравља Сента
B40: 28 | C40: 100203014 Општа болница Сента
B41: 29 | C41: 100203015 Апотека Сента
B42: 30 | C42: 100204001 Дом здравља Алибунар
B43: 31 | C43: 100204002 Дом здравља Бела Црква
B44: 32 | C44: 100204003 Дом здравља Ковачица
B45: 33 | C45: 100204004 Дом здравља "Ковин", Ковин
B46: 34 | C46: 100204005 Дом здравља Опово
B47: 35 | C47: 100204006 Дом здравља "1.Октобар", Пландиште
B48: 36 | C48: 100204009 Специјална болница за плућне болести "Др Будислав Бабић" Бела Црква
B49: 37 | C49: 100204010 Специјална болница за психијатријске болести "Др Славољуб Бакаловић" Вршац
B50: 38 | C50: 100204011 Неуропсихијатријска болница "Ковин", Ковин
B51: 39 | C51: 100204012 Завод за јавно здравље Панчево
B52: 40 | C52: 100204014 Апотека Вршац
B53: 41 | C53: 100204015 Дом здравља Вршац
B54: 42 | C54: 100204016 Општа болница Вршац
B55: 43 | C55: 100204017 Дом здравља Панчево
B56: 44 | C56: 100204018 Општа болница Панчево
B57: 45 | C57: 100205001 Дом здравља Апатин
B58: 46 | C58: 100205002 Дом здравља Кула
B59: 47 | C59: 100205003 Дом здравља "Каменко Гагрчин", Оџаци
B60: 48 | C60: 100205005 Завод за јавно здравље Сомбор
B61: 49 | C61: 100205006 Апотека Сомбор
B62: 50 | C62: 100205007 Дом здравља "Др Ђорђе Лазић" Сомбор
B63: 51 | C63: 100205008 Општа болница "Др Радивој Симоновић" Сомбор
B64: 52 | C64: 100205009 Специјална болница за рехабилитацију"Јунаковић"Апатин
B65: 53 | C65: 100206001 Дом здравља Бач
B66: 54 | C66: 100206002 Дом здравља "Др Младен Стојановић", Бачка Паланка
B67: 55 | C67: 100206003 Дом здравља Бачки Петровац
B68: 56 | C68: 100206004 Дом здравља "Др Душан Савић-Дода" Беочин
B69: 57 | C69: 100206005 Дом здравља Бечеј
B70: 58 | C70: 100206006 Дом здравља Жабаљ
B71: 59 | C71: 100206007 Дом здравља "Др Ђорђе Бастић", Србобран
B72: 60 | C72: 100206008 Дом здравља Темерин
B73: 61 | C73: 100206009 Дом здравља Тител
B74: 62 | C74: 100206010 Дом здравља "Нови Сад"
B75: 63 | C75: 100206012 Завод за трансфузију крви Војводине
B76: 64 | C76: 100206013 Специјална болница за реуматске болести Нови Сад
B77: 65 | C77: 100206014 Институт за јавно здравље Војводине
B78: 66 | C78: 100206015 Институт за онкологију Војводине, Сремска Каменица
B79: 67 | C79: 100206016 Институт за плућне болести Војводине, Сремска Каменица
B80: 68 | C80: 100206017 Институт за кардиоваскуларне болести Војводине, Сремска Каменица
B81: 69 | C81: 100206018 Институт за здравствену заштиту деце и омладине Војводине, Нови Сад
B82: 70 | C82: 100206019 Клиника за стоматологију Војводине, Нови Сад
B83: 71 | C83: 100206020 Универзитетски клинички центар Војводине Нови Сад
B84: 72 | C84: 100206021 Завод за здравствену заштиту радника Нови Сад
B85: 73 | C85: 100206022 Завод за здравствену заштиту студената Нови Сад
B86: 74 | C86: 100206023 Пастеров завод Нови Сад
B87: 75 | C87: 100206024 Апотека Нови Сад
B88: 76 | C88: 100206025 Завод за ургентну медицину, Нови Сад
B89: 77 | C89: 100206026 Дом здравља "Вељко Влаховић" Врбас
B90: 78 | C90: 100206027 Општа болница "Врбас" Врбас
B91: 79 | C91: 100206028 Апотека Врбас
B92: 80 | C92: 100206029 Војномедицински центар Нови Сад
B93: 81 | C93: 100207001 Дом здравља "Милорад Мика Павловић", Инђија
B94: 82 | C94: 100207002 Дом здравља "Др Драган Фундук", Пећинци
B95: 83 | C95: 100207003 Дом здравља Рума
B96: 84 | C96: 100207004 Дом здравља "Јован Јовановић-Змај", Стара Пазова
B97: 85 | C97: 100207005 Дом здравља Шид
B98: 86 | C98: 100207007 Специјална болница "Др Боривоје Гњатић"
B99: 87 | C99: 100207008 Завод за јавно здравље Сремска Митровица
B100: 88 | C100: 100207009 Специјална болница за рехабилитацију Термал Врдник
B101: 89 | C101: 100207010 Апотека Сремска Митровица
B102: 90 | C102: 100207011 Дом здравља Ириг
B103: 91 | C103: 100207012 Дом здравља Сремска Митровица
B104: 92 | C104: 100207013 Општа болница Сремска Митровица
B105: 93 | C105: 100208001 Дом здравља Богатић
B106: 94 | C106: 100208002 Дом здравља Љубовија
B107: 95 | C107: 100208005 Специјална болница за рехабилитацију Бања Ковиљача
B108: 96 | C108: 100208006 Завод за јавно здравље Шабац
B109: 97 | C109: 100208007 Здравствена установа "Апотека Лозница"
B110: 98 | C110: 100208009 Општа болница Шабац
B111: 99 | C111: 100208010 Дом здравља Шабац
B112: 100 | C112: 100208011 Дом здравља Владимирци
B113: 101 | C113: 100208012 Дом здравља "Др Даринка Лукић" Коцељева
B114: 102 | C114: 100208014 Дом здравља Крупањ
B115: 103 | C115: 100208015 Дом здравља Мали Зворник
B116: 104 | C116: 100208017 Здравствени центар Лозница
B117: 105 | C117: 100208018 Здравствени центар Шабац
B118: 106 | C118: 100209001 Дом здравља Уб
B119: 107 | C119: 100209003 Здравствена установа Апотека Ваљево
B120: 108 | C120: 100209004 Дом здравља Лајковац
B121: 109 | C121: 100209005 Завод за јавно здравље Ваљево
B122: 110 | C122: 100209008 Дом здравља Осечина
B123: 111 | C123: 100209009 Дом здравља Љиг
B124: 112 | C124: 100209010 Дом здравља Мионица
B125: 113 | C125: 100209012 Здравствени центар Ваљево
B126: 114 | C126: 100210002 Општа болница "Стефан Високи", Смедеревска Паланка
B127: 115 | C127: 100210003 СЗУ Апотека Здравље
B128: 116 | C128: 100210004 Апотека Смедерево
B129: 117 | C129: 100210005 Дом здравља Велика Плана
B130: 118 | C130: 100210006 Дом здравља Смедеревска Паланка
B131: 119 | C131: 100210007 Апотека "Медица" Велика Плана
B132: 120 | C132: 100210008 Општа болница Свети Лука, Смедерево
B133: 121 | C133: 100210009 Дом здравља Смедерево
B134: 122 | C134: 100210010 Здравствени центар Свети Лука, Смедерево
B135: 123 | C135: 100211001 Дом здравља Велико Градиште
B136: 124 | C136: 100211002 Дом здравља Жагубица
B137: 125 | C137: 100211005 Завод за јавно здравље Пожаревац
B138: 126 | C138: 100211006 Здравствена установа Апотека Пожаревац
B139: 127 | C139: 100211007 Дом здравља Жабари
B140: 128 | C140: 100211008 Дом здравља Голубац
B141: 129 | C141: 100211009 Дом здравља Кучево
B142: 130 | C142: 100211010 Дом здравља Мало Црниће
B143: 131 | C143: 100211011 Дом здравља Пожаревац
B144: 132 | C144: 100211012 Општа болница Пожаревац
B145: 133 | C145: 100211013 Дом здравља Петровац на Млави
B146: 134 | C146: 100211014 Општа болница Петровац на Млави
B147: 135 | C147: 100212001 Дом здравља Крагујевац
B148: 136 | C148: 100212002 Дом здравља Баточина
B149: 137 | C149: 100212003 Дом здравља "Даница и Коста Шамановић", Кнић
B150: 138 | C150: 100212004 Дом здравља Лапово
B151: 139 | C151: 100212005 Дом здравља "Милоје Хаџић - Шуле", Рача
B152: 140 | C152: 100212006 Дом здравља "Свети Ђорђе", Топола
B153: 141 | C153: 100212007 Здравствени центар Аранђеловац
B154: 142 | C154: 100212008 Завод за денталну медицину Крагујевац
B155: 143 | C155: 100212009 Специјална болница за рехабилитацију Буковицка бања Аранђеловац
B156: 144 | C156: 100212010 Универзитетски клинички центар Крагујевац
B157: 145 | C157: 100212011 Институт за јавно здравље Крагујевац
B158: 146 | C158: 100212012 Апотека Крагујевац
B159: 147 | C159: 100212013 Апотека "Шумадија" Аранђеловац
B160: 148 | C160: 100212014 Завод за ургентну медецину Крагујевац
B161: 149 | C161: 100213001 Дом здравља Деспотовац
B162: 150 | C162: 100213002 Дом здравља Свилајнац
B163: 151 | C163: 100213005 Завод за јавно здравље Ћуприја "Поморавље"
B164: 152 | C164: 100213007 Дом здравља Рековац
B165: 153 | C165: 100213008 Дом здравља Јагодина
B166: 154 | C166: 100213009 Општа болница Јагодина
B167: 155 | C167: 100213010 Здравствена установа апотека Јагодина
B168: 156 | C168: 100213011 Дом здравља Ћуприја
B169: 157 | C169: 100213012 Општа болница Ћуприја
B170: 158 | C170: 100213014 Дом здравља Параћин
B171: 159 | C171: 100213015 Апотека Параћин
B172: 160 | C172: 100213016 Општа болница Параћин
B173: 161 | C173: 100214002 Здравствени центар Неготин
B174: 162 | C174: 100214003 Здравствени центар Кладово
B175: 163 | C175: 100214006 Дом здравља Др Верољуб Цакић Мајданпек
B176: 164 | C176: 100214007 Општа болница Мајданпек
B177: 165 | C177: 100214008 Дом здравља Бор
B178: 166 | C178: 100214009 Општа болница Бор
B179: 167 | C179: 100214010 Здравствени центар Бор
B180: 168 | C180: 100215001 Дом здравља Бољевац
B181: 169 | C181: 100215002 Здравствени центар Књажевац
B182: 170 | C182: 100215003 Здравствени центар Зајечар
B183: 171 | C183: 100215004 Специјална болница за рехабилитацију Гамзиград
B184: 172 | C184: 100215005 Завод за јавно здравље "Тимок" Зајечар
B185: 173 | C185: 100215006 Апотека Зајечар
B186: 174 | C186: 100216001 Здравствени центар Ужице
B187: 175 | C187: 100216003 Спец. болница за болести штитасте жлезде и болести метаболизма "Златибор"
B188: 176 | C188: 100216004 Завод за јавно здравље Ужице
B189: 177 | C189: 100216005 Апотека Ужице
B190: 178 | C190: 100217003 Специјална болница за рехабилитацију Ивањица
B191: 179 | C191: 100217004 Завод за јавно здравље Чачак
B192: 180 | C192: 100217005 Апотека Чачак
B193: 181 | C193: 100217007 Дом здравља Горњи Милановац
B194: 182 | C194: 100217008 Општа болница Горњи Милановац
B195: 183 | C195: 100217009 Дом здравља "Чачак", Чачак
B196: 184 | C196: 100217010 Дом здравља Ивањица
B197: 185 | C197: 100217011 Дом здравља Лучани
B198: 186 | C198: 100217012 Општа болница Чачак
B199: 187 | C199: 100217013 Здравствени центар Горњи Милановац
B200: 188 | C200: 100218001 Дом здравља Рашка
B201: 189 | C201: 100218004 Завод за јавно здравље Краљево
B202: 190 | C202: 100218005 Специјална болница "Новопазарска Бања"
B203: 191 | C203: 100218006 Завод за специјалну рехабилитацију Врњачка Бања
... 162 more rows

Sheet Krv2b
A1: РЕПУБЛИЧКИ ФОНД ЗА ЗДРАВСТВЕНО | D1: КРВ 2б
A2: ОСИГУРАЊЕ - БЕОГРАД
A3: Јована Мариновића 2
A7: ="ФИЛИЈАЛА: " & Filijala -> ФИЛИЈАЛА: 09 ВАЉЕВО
A8: ="ЗДРАВСТВЕНА УСТАНОВА: " & ZU -> ЗДРАВСТВЕНА УСТАНОВА: 100209001 ДЗ УБ
A10: ИЗВРШЕНИ РАСХОДИ ИЗ ОСТВАРЕНИХ ПРИХОДА ОД ПРОДАЈЕ КРВИ И ЛАБИЛНИХ ПРОДУКАТА ОД КРВИ у периоду од 01.01.2025. - 31.12.2025. године
D12: у хиљадама (000) динара
A13: Ознака ОП | B13: Број конта | C13: Опис | D13: Износ
A16: 1 | B16: 2 | C16: 3 | D16: 4
A17: 5172 | C17: ТЕКУЋИ РАСХОДИ И ИЗДАЦИ ЗА НЕФИНАНСИЈСКЕ ИМОВИНЕ (5173 + 5341) | D17: =D18+D186 -> 0
A18: 5173 | B18: 400000 | C18: ТЕКУЋИ РАСХОДИ (5174 + 5196 + 5241 + 5256 + 5280 + 5293 + 5309 + 5324) | D18: =D19+D41+D86+D101+D125+D138+D154+D169 -> 0
A19: 5174 | B19: 410000 | C19: РАСХОДИ ЗА ЗАПОСЛЕНЕ (5175 + 5177 + 5181 + 5183 + 5188 + 5190 + 5192 + 5194) | D19: =D20+D22+D26+D28+D33+D35+D37+D39 -> 0
A20: 5175 | B20: 411000 | C20: ПЛАТЕ, ДОДАЦИ И НАКНАДЕ ЗАПОСЛЕНИХ (ЗАРАДЕ) (5176) | D20: =D21 -> 0
A21: 5176 | B21: 411100 | C21: Плате, додаци и накнаде запослених
A22: 5177 | B22: 412000 | C22: СОЦИЈАЛНИ ДОПРИНОСИ НА ТЕРЕТ ПОСЛОДАВЦА (од 5178 до 5180) | D22: =SUM(D23:D25) -> 0
A23: 5178 | B23: 412100 | C23: Допринос за пензијско и инвалидско осигурање
A24: 5179 | B24: 412200 | C24: Допринос за здравствено осигурање
A25: 5180 | B25: 412300 | C25: Допринос за незапосленост
A26: 5181 | B26: 413000 | C26: НАКНАДЕ У НАТУРИ (5182) | D26: =D27 -> 0
A27: 5182 | B27: 413100 | C27: Накнаде у натури
A28: 5183 | B28: 414000 | C28: СОЦИЈАЛНА ДАВАЊА ЗАПОСЛЕНИМА (од 5184 до 5187) | D28: =SUM(D29:D32) -> 0
A29: 5184 | B29: 414100 | C29: Исплата накнада за време одсуствовања с посла на терет фондова
A30: 5185 | B30: 414200 | C30: Расходи за образовање деце запослених
A31: 5186 | B31: 414300 | C31: Отпремнине и помоћи
A32: 5187 | B32: 414400 | C32: Помоћ у медицинском лечењу запосленог или чланова уже породице и друге помоћи запосленом
A33: 5188 | B33: 415000 | C33: НАКНАДА ТРОШКОВА ЗА ЗАПОСЛЕНЕ (5189) | D33: =D34 -> 0
A34: 5189 | B34: 415100 | C34: Накнаде трошкова за запослене
A35: 5190 | B35: 416000 | C35: НАГРАДЕ ЗАПОСЛЕНИМА И ОСТАЛИ ПОСЕБНИ РАСХОДИ (5191) | D35: =D36 -> 0
A36: 5191 | B36: 416100 | C36: Награде запосленима и остали посебни расходи
A37: 5192 | B37: 417000 | C37: ПОСЛАНИЧКИ ДОДАТАК (5193) | D37: =D38 -> 0
A38: 5193 | B38: 417100 | C38: Посланички додатак
A39: 5194 | B39: 418000 | C39: СУДИЈСКИ ДОДАТАК (5195) | D39: =D40 -> 0
A40: 5195 | B40: 418100 | C40: Судијски додатак
A41: 5196 | B41: 420000 | C41: КОРИШЋЕЊЕ УСЛУГА И РОБА (5197 + 5205 + 5211 + 5220 + 5228 + 5231) | D41: =D42+D50+D56+D65+D73+D76 -> 0
A42: 5197 | B42: 421000 | C42: СТАЛНИ ТРОШКОВИ (од 5198 до 5204) | D42: =SUM(D43:D49) -> 0
A43: 5198 | B43: 421100 | C43: Трошкови платног промета и банкарских услуга
A44: 5199 | B44: 421200 | C44: Енергетске услуге
A45: 5200 | B45: 421300 | C45: Комуналне услуге
A46: 5201 | B46: 421400 | C46: Услуге комуникација
A47: 5202 | B47: 421500 | C47: Трошкови осигурања
A48: 5203 | B48: 421600 | C48: Закуп имовине и опреме
A49: 5204 | B49: 421900 | C49: Остали трошкови
A50: 5205 | B50: 422000 | C50: ТРОШКОВИ ПУТОВАЊА (од 5206 до 5210) | D50: =SUM(D51:D55) -> 0
A51: 5206 | B51: 422100 | C51: Трошкови службених путовања у земљи
A52: 5207 | B52: 422200 | C52: Трошкови службених путовања у иностранство
A53: 5208 | B53: 422300 | C53: Трошкови путовања у оквиру редовног рада
A54: 5209 | B54: 422400 | C54: Трошкови путовања ученика
A55: 5210 | B55: 422900 | C55: Остали трошкови транспорта
A56: 5211 | B56: 423000 | C56: УСЛУГЕ ПО УГОВОРУ (од 5212 до 5219) | D56: =SUM(D57:D64) -> 0
A57: 5212 | B57: 423100 | C57: Административне услуге
A58: 5213 | B58: 423200 | C58: Компјутерске услуге
A59: 5214 | B59: 423300 | C59: Услуге образовања и усавршавања запослених
A60: 5215 | B60: 423400 | C60: Услуге информисања
A61: 5216 | B61: 423500 | C61: Стручне услуге
A62: 5217 | B62: 423600 | C62: Услуге за домаћинство и угоститељство
A63: 5218 | B63: 423700 | C63: Репрезентација
A64: 5219 | B64: 423900 | C64: Остале опште услуге
A65: 5220 | B65: 424000 | C65: СПЕЦИЈАЛИЗОВАНЕ УСЛУГЕ (од 5221 до 5227) | D65: =SUM(D66:D72) -> 0
A66: 5221 | B66: 424100 | C66: Пољопривредне услуге
A67: 5222 | B67: 424200 | C67: Услуге образовања, културе и спорта
A68: 5223 | B68: 424300 | C68: Медицинске услуге
A69: 5224 | B69: 424400 | C69: Услуге одржавања аутопутева
A70: 5225 | B70: 424500 | C70: Услуге одржавања националних паркова и природних површина
A71: 5226 | B71: 424600 | C71: Услуге очувања животне средине, науке и геодетске услуге
A72: 5227 | B72: 424900 | C72: Остале специјализоване услуге
A73: 5228 | B73: 425000 | C73: ТЕКУЋЕ ПОПРАВКЕ И ОДРЖАВАЊЕ (5229 + 5230) | D73: =D74+D75 -> 0
A74: 5229 | B74: 425100 | C74: Текуће поправке и одржавање зграда и објеката
A75: 5230 | B75: 425200 | C75: Текуће поправке и одржавање опреме
A76: 5231 | B76: 426000 | C76: МАТЕРИЈАЛ (од 5232 до 5240) | D76: =SUM(D77:D85) -> 0
A77: 5232 | B77: 426100 | C77: Административни материјал
A78: 5233 | B78: 426200 | C78: Материјали за пољопривреду
A79: 5234 | B79: 426300 | C79: Материјали за образовање и усавршавање запослених
A80: 5235 | B80: 426400 | C80: Материјали за саобраћај
A81: 5236 | B81: 426500 | C81: Материјали за очување животне средине и науку
A82: 5237 | B82: 426600 | C82: Материјали за образовање, културу и спорт
A83: 5238 | B83: 426700 | C83: Медицински и лабораторијски материјали
A84: 5239 | B84: 426800 | C84: Материјали за одржавање хигијене и угоститељство
A85: 5240 | B85: 426900 | C85: Материјали за посебне намене
A86: 5241 | B86: 430000 | C86: АМОРТИЗАЦИЈА И УПОТРЕБА СРЕДСТАВА ЗА РАД (5242 + 5246 + 5248 + 5250 + 5254) | D86: =D87+D91+D93+D95+D99 -> 0
A87: 5242 | B87: 431000 | C87: АМОРТИЗАЦИЈА НЕКРЕТНИНА И ОПРЕМЕ (од 5243 до 5245) | D87: =SUM(D88:D90) -> 0
A88: 5243 | B88: 431100 | C88: Амортизација зграда и грађевинскиx објеката
A89: 5244 | B89: 431200 | C89: Амортизација опреме
A90: 5245 | B90: 431300 | C90: Амортизација осталих некретнина и опреме
A91: 5246 | B91: 432000 | C91: АМОРТИЗАЦИЈА КУЛТИВИСАНЕ ИМОВИНЕ (5247) | D91: =D92 -> 0
A92: 5247 | B92: 432100 | C92: Амортизација култивисане опреме
A93: 5248 | B93: 433000 | C93: УПОТРЕБА ДРАГОЦЕНОСТИ (5249) | D93: =D94 -> 0
A94: 5249 | B94: 433100 | C94: Употреба драгоцености
A95: 5250 | B95: 434000 | C95: УПОТРЕБА ПРИРОДНЕ ИМОВИНЕ (од 5251 до 5253) | D95: =SUM(D96:D98) -> 0
A96: 5251 | B96: 434100 | C96: Употреба земљишта
A97: 5252 | B97: 434200 | C97: Употреба подземног блага
A98: 5253 | B98: 434300 | C98: Употреба шума и вода
A99: 5254 | B99: 435000 | C99: АМОРТИЗАЦИЈА НЕМАТЕРИЈАЛНЕ ИМОВИНЕ (5255) | D99: =D100 -> 0
A100: 5255 | B100: 435100 | C100: Амортизација нематеријалне имовине
A101: 5256 | B101: 440000 | C101: ОТПЛАТА КАМАТА И ПРАТЕЋИ ТРОШКОВИ ЗАДУЖИВАЊА (5257 + 5267 + 5274 + 5276) | D101: =D102+D112+D119+D121 -> 0
A102: 5257 | B102: 441000 | C102: ОТПЛАТЕ ДОМАЋИХ КАМАТА (од 5258 до 5266) | D102: =SUM(D103:D111) -> 0
A103: 5258 | B103: 441100 | C103: Отплата камата на домаће хартије од вредности
A104: 5259 | B104: 441200 | C104: Отплата камата осталим нивоима власти
A105: 5260 | B105: 441300 | C105: Отплата камата домаћим јавним финансијским институцијама
A106: 5261 | B106: 441400 | C106: Отплата камата домаћим пословним банкама
A107: 5262 | B107: 441500 | C107: Отплата камата осталим домаћим кредиторима
A108: 5263 | B108: 441600 | C108: Отплата камата домаћинствима у земљи
A109: 5264 | B109: 441700 | C109: Отплата камата на домаће финансијске деривате
A110: 5265 | B110: 441800 | C110: Отплата камата на домаће менице
A111: 5266 | B111: 441900 | C111: Финансијске промене на финансијским лизинзима
A112: 5267 | B112: 442000 | C112: ОТПЛАТА СТРАНИХ КАМАТА (од 5268 до 5273) | D112: =SUM(D113:D118) -> 0
A113: 5268 | B113: 442100 | C113: Отплата камата на хартије од вредности емитоване на иностраном финансијском тржишту
A114: 5269 | B114: 442200 | C114: Отплата камата страним владама
A115: 5270 | B115: 442300 | C115: Отплата камата мултилатералним институцијама
A116: 5271 | B116: 442400 | C116: Отплата камата страним пословним банкама
A117: 5272 | B117: 442500 | C117: Отплата камата осталим страним кредиторима
A118: 5273 | B118: 442600 | C118: Отплата камата на стране финансијске деривате
A119: 5274 | B119: 443000 | C119: ОТПЛАТА КАМАТА ПО ГАРАНЦИЈАМА (5275) | D119: =D120 -> 0
A120: 5275 | B120: 443100 | C120: Отплата камата по гаранцијама
A121: 5276 | B121: 444000 | C121: ПРАТЕЋИ ТРОШКОВИ ЗАДУЖИВАЊА (од 5277 до 5279) | D121: =SUM(D122:D124) -> 0
A122: 5277 | B122: 444100 | C122: Негативне курсне разлике
A123: 5278 | B123: 444200 | C123: Казне за кашњење
A124: 5279 | B124: 444300 | C124: Остали пратећи трошкови задуживања
A125: 5280 | B125: 450000 | C125: СУБВЕНЦИЈЕ (5281 + 5284 + 5287 + 5290) | D125: =D126+D129+D132+D135 -> 0
A126: 5281 | B126: 451000 | C126: СУБВЕНЦИЈЕ ЈАВНИМ НЕФИНАНСИЈСКИМ ПРЕДУЗЕЋИМА И ОРГАНИЗАЦИЈАМА (5282 + 5283) | D126: =D127+D128 -> 0
A127: 5282 | B127: 451100 | C127: Текуће субвенције јавним нефинансијским предузећима и организацијама
A128: 5283 | B128: 451200 | C128: Капиталне субвенције јавним нефинансијским предузећима и организацијама
A129: 5284 | B129: 452000 | C129: СУБВЕНЦИЈЕ ПРИВАТНИМ ФИНАНСИЈСКИМ ИНСТИТУЦИЈАМА (5285 + 5286) | D129: =D130+D131 -> 0
A130: 5285 | B130: 452100 | C130: Текуће субвенције приватним финансијским институцијама
A131: 5286 | B131: 452200 | C131: Капиталне субвенције приватним финансијским институцијама
A132: 5287 | B132: 453000 | C132: СУБВЕНЦИЈЕ ЈАВНИМ ФИНАНСИЈСКИМ ИНСТИТУЦИЈАМА (5288 + 5289) | D132: =D133+D134 -> 0
A133: 5288 | B133: 453100 | C133: Текуће субвенције јавним финансијским институцијама
A134: 5289 | B134: 453200 | C134: Капиталне субвенције јавним финансијским институцијама
A135: 5290 | B135: 454000 | C135: СУБВЕНЦИЈЕ ПРИВАТНИМ ПРЕДУЗЕЋИМА (5291 + 5292) | D135: =D136+D137 -> 0
A136: 5291 | B136: 454100 | C136: Текуће субвенције приватним предузећима
A137: 5292 | B137: 454200 | C137: Капиталне субвенције приватним предузећима
A138: 5293 | B138: 460000 | C138: ДОНАЦИЈЕ, ДОТАЦИЈЕ И ТРАНСФЕРИ (5294 + 5297 + 5300 + 5303 + 5306) | D138: =D139+D142+D145+D148+D151 -> 0
A139: 5294 | B139: 461000 | C139: ДОНАЦИЈЕ СТРАНИМ ВЛАДАМА (5295 + 5296) | D139: =D140+D141 -> 0
A140: 5295 | B140: 461100 | C140: Текуће донације страним владама
A141: 5296 | B141: 461200 | C141: Капиталне донације страним владама
A142: 5297 | B142: 462000 | C142: ДОТАЦИЈЕ МЕЂУНАРОДНИМ ОРГАНИЗАЦИЈАМА (5298 + 5299) | D142: =D143+D144 -> 0
A143: 5298 | B143: 462100 | C143: Текуће дотације међународним организацијама
A144: 5299 | B144: 462200 | C144: Капиталне дотације међународним организацијама
A145: 5300 | B145: 463000 | C145: ТРАНСФЕРИ ОСТАЛИМ НИВОИМА ВЛАСТИ (5301 + 5302) | D145: =D146+D147 -> 0
A146: 5301 | B146: 463100 | C146: Текући трансфери осталим нивоима власти
A147: 5302 | B147: 463200 | C147: Капитални трансфери осталим нивоима власти
A148: 5303 | B148: 464000 | C148: ДОТАЦИЈЕ ОРГАНИЗАЦИЈАМА ОБАВЕЗНОГ СОЦИЈАЛНОГ ОСИГУРАЊА (5304 + 5305) | D148: =D149+D150 -> 0
A149: 5304 | B149: 464100 | C149: Текуће дотације организацијама обавезног социјалног осигурања
A150: 5305 | B150: 464200 | C150: Капиталне дотације организацијама обавезног социјалног осигурања
A151: 5306 | B151: 465000 | C151: ОСТАЛЕ ДОТАЦИЈЕ И ТРАНСФЕРИ (5307 + 5308) | D151: =D152+D153 -> 0
A152: 5307 | B152: 465100 | C152: Остале текуће дотације и трансфери
A153: 5308 | B153: 465200 | C153: Остале капиталне дотације и трансфери
A154: 5309 | B154: 470000 | C154: СОЦИЈАЛНО ОСИГУРАЊЕ И СОЦИЈАЛНА ЗАШТИТА (5310 + 5314) | D154: =D155+D159 -> 0
A155: 5310 | B155: 471000 | C155: ПРАВА ИЗ СОЦИЈАЛНОГ ОСИГУРАЊА (ОРГАНИЗАЦИЈЕ ОБАВЕЗНОГ СОЦИЈАЛНОГ ОСИГУРАЊА) (од 5311 до 5313) | D155: =SUM(D156:D158) -> 0
A156: 5311 | B156: 471100 | C156: Права из социјалног осигурања која се исплаћују непосредно домаћинствима
A157: 5312 | B157: 471200 | C157: Права из социјалног осигурања која се исплаћују непосредно пружаоцима услуга
A158: 5313 | B158: 471900 | C158: Трансфери другим организацијама обавезног социјалног осигурања за доприносе за осигурање
A159: 5314 | B159: 472000 | C159: НАКНАДЕ ЗА СОЦИЈАЛНУ ЗАШТИТУ ИЗ БУЏЕТА (од 5315 до 5323) | D159: =SUM(D160:D168) -> 0
A160: 5315 | B160: 472100 | C160: Накнаде из буџета у случају болести и инвалидности
A161: 5316 | B161: 472200 | C161: Накнаде из буџета за породиљско одсуство
A162: 5317 | B162: 472300 | C162: Накнаде из буџета за децу и породицу
A163: 5318 | B163: 472400 | C163: Накнаде из буџета за случај незапослености
A164: 5319 | B164: 472500 | C164: Старосне и породичне пензије из буџета
A165: 5320 | B165: 472600 | C165: Накнаде из буџета у случају смрти
A166: 5321 | B166: 472700 | C166: Накнаде из буџета за образовање, културу, науку и спорт
A167: 5322 | B167: 472800 | C167: Накнаде из буџета за становање и живот
A168: 5323 | B168: 472900 | C168: Остале накнаде из буџета
A169: 5324 | B169: 480000 | C169: ОСТАЛИ РАСХОДИ (5325 + 5328 + 5332 + 5334 + 5337 + 5339) | D169: =D170+D173+D177+D179+D182+D184 -> 0
A170: 5325 | B170: 481000 | C170: ДОТАЦИЈЕ НЕВЛАДИНИМ ОРГАНИЗАЦИЈАМА (5326 + 5327) | D170: =D171+D172 -> 0
A171: 5326 | B171: 481100 | C171: Дотације непрофитним организацијама које пружају помоћ домаћинствима
A172: 5327 | B172: 481900 | C172: Дотације осталим непрофитним институцијама
A173: 5328 | B173: 482000 | C173: ПОРЕЗИ, ОБАВЕЗНЕ ТАКСЕ И КАЗНЕ (од 5329 до 5331) | D173: =SUM(D174:D176) -> 0
A174: 5329 | B174: 482100 | C174: Остали порези
A175: 5330 | B175: 482200 | C175: Обавезне таксе
A176: 5331 | B176: 482300 | C176: Новчане казне и пенали
A177: 5332 | B177: 483000 | C177: НОВЧАНЕ КАЗНЕ И ПЕНАЛИ ПО РЕШЕЊУ СУДОВА (5333) | D177: =D178 -> 0
A178: 5333 | B178: 483100 | C178: Новчане казне и пенали по решењу судова
A179: 5334 | B179: 484000 | C179: НАКНАДА ШТЕТЕ ЗА ПОВРЕДЕ ИЛИ ШТЕТУ НАСТАЛУ УСЛЕД ЕЛЕМЕНТАРНИХ НЕПОГОДА ИЛИ ДРУГИХ ПРИРОДНИХ УЗРОКА (5335 + 5336) | D179: =D180+D181 -> 0
A180: 5335 | B180: 484100 | C180: Накнада штете за повреде или штету насталу услед елементарних непогода
A181: 5336 | B181: 484200 | C181: Накнада штете од дивљачи
A182: 5337 | B182: 485000 | C182: НАКНАДА ШТЕТЕ ЗА ПОВРЕДЕ ИЛИ ШТЕТУ НАНЕТУ ОД СТРАНЕ ДРЖАВНИХ ОРГАНА (5338) | D182: =D183 -> 0
A183: 5338 | B183: 485100 | C183: Накнада штете за повреде или штету нанетих од стране државних органа
A184: 5339 | B184: 489000 | C184: РАСХОДИ КОЈИ СЕ ФИНАНСИРАЈУ ИЗ СРЕДСТАВА ЗА РЕАЛИЗАЦИЈУ НАЦИОНАЛНОГ ИНВЕСТИЦИОНОГ ПЛАНА (5340) | D184: =D185 -> 0
A185: 5340 | B185: 489100 | C185: Расходи који се финансирају из средстава за реализацију националног инвестиционог плана
A186: 5341 | B186: 500000 | C186: ИЗДАЦИ ЗА НЕФИНАНСИЈСКУ ИМОВИНУ (5342 + 5364 + 5373 + 5376 + 5384) | D186: =D187+D209+D218+D221+D229 -> 0
A187: 5342 | B187: 510000 | C187: ОСНОВНА СРЕДСТВА (5343 + 5348 + 5358 + 5360 + 5362) | D187: =D188+D193+D203+D205+D207 -> 0
A188: 5343 | B188: 511000 | C188: ЗГРАДЕ И ГРАЂЕВИНСКИ ОБЈЕКТИ (од 5344 до 5347) | D188: =SUM(D189:D192) -> 0
A189: 5344 | B189: 511100 | C189: Куповина зграда и објеката
A190: 5345 | B190: 511200 | C190: Изградња зграда и објеката
A191: 5346 | B191: 511300 | C191: Капитално одржавање зграда и објеката
A192: 5347 | B192: 511400 | C192: Пројектно планирање
A193: 5348 | B193: 512000 | C193: МАШИНЕ И ОПРЕМА (од 5349 до 5357) | D193: =SUM(D194:D202) -> 0
A194: 5349 | B194: 512100 | C194: Опрема за саобраћај
A195: 5350 | B195: 512200 | C195: Административна опрема
A196: 5351 | B196: 512300 | C196: Опрема за пољопривреду
A197: 5352 | B197: 512400 | C197: Опрема за заштиту животне средине
A198: 5353 | B198: 512500 | C198: Медицинска и лабораторијска опрема
A199: 5354 | B199: 512600 | C199: Опрема за образовање, културу и спорт
A200: 5355 | B200: 512700 | C200: Опрема за војску
A201: 5356 | B201: 512800 | C201: Опрема за јавну безбедност
A202: 5357 | B202: 512900 | C202: Опрема за производњу, моторна, непокретна и немоторна опрема
A203: 5358 | B203: 513000 | C203: ОСТАЛЕ НЕКРЕТНИНЕ И ОПРЕМА (5359) | D203: =D204 -> 0
A204: 5359 | B204: 513100 | C204: Остале некретнине и опрема
A205: 5360 | B205: 514000 | C205: КУЛТИВИСАНА ИМОВИНА (5361) | D205: =D206 -> 0
A206: 5361 | B206: 514100 | C206: Култивисана имовина
A207: 5362 | B207: 515000 | C207: НЕМАТЕРИЈАЛНА ИМОВИНА (5363) | D207: =D208 -> 0
... 75 more rows

Sheet DP
A1: РЕПУБЛИЧКИ ФОНД ЗА ЗДРАВСТВЕНО | F1: ДП
A2: ОСИГУРАЊЕ - БЕОГРАД
A3: Јована Мариновића 2
B5: ДИРЕКТНА ПЛАЋАЊА у периоду од 01.01.2025. - 31.12.2025. године
A7: ="ФИЛИЈАЛА: " & Filijala -> ФИЛИЈАЛА: 09 ВАЉЕВО
A8: ="ЗДРАВСТВЕНА УСТАНОВА: " & ZU -> ЗДРАВСТВЕНА УСТАНОВА: 100209001 ДЗ УБ
F9: у хиљадама (000) динара
B10: Р. бр. | C10: Конто | D10: ИЗНОС НЕРЕАЛИЗОВАНИХ ОБРАЧУНСКИХ НАЛОГА ЗАКЉУЧНО СА 31.12.2024. КОЈИ СУ РЕАЛИЗОВАНИ У ПЕРИОДУ 01.01.-31.12.2025. ГОДИНE | E10: ИЗНОС РЕАЛИЗОВАНИХ ОБРАЧУНСКИХ НАЛОГА У 2025. ГОДИНИ ЗА ПЕРИОД 01.01.-31.12.2025. ГОДИНЕ | F10: ИЗНОС НЕРЕАЛИЗОВАНИХ ОБРАЧУНСКИХ НАЛОГА У 2025. ГОДИНИ ЗАКЉУЧНО СА 31.12.2025. ГОДИНЕ
B11: 1 | C11: 2 | D11: 3 | E11: 4 | F11: 5
B12: 1 | C12: 421200 - Енергетске услуге | D12: =+D13+D14 -> 0 | E12: =+E13+E14 -> 4355 | F12: =+F13+F14 -> 0
C13: 06C - Енергенти у ЗУ - примарна ЗЗ | E13: 4355
C14: 07C - Енергенти у ЗУ - секундарна и терцијарна ЗЗ
B15: 2 | C15: 423100 - Комуналне услуге | D15: =+D16 -> 0 | E15: =+E16 -> 0 | F15: =+F16 -> 0
C16: 07E - Накнада за материјалне и остале трошкове - секундарна и терцијарна ЗЗ
B17: 3 | C17: 423600 - Услуге за домаћинство и угоститељство | D17: =+D18 -> 0 | E17: =+E18 -> 0 | F17: =+F18 -> 0
C18: 07D - Исхрана болесника - секундарна и терцијарна ЗЗ
B19: 4 | C19: 426700 - Медицински и лабораторијски материјали | D19: =SUM(D20:D51) -> 0 | E19: =SUM(E20:E51) -> 23181 | F19: =SUM(F20:F51) -> 0
C20: 062 - Лекови у ЗУ - примарна ЗЗ | E20: 10733
C21: 064 - Санитетски и медицински потрошни материјал - примарна ЗЗ | E21: 8026
C22: 065 - Реагенси - примарна ЗЗ | E22: 4422
C23: 071 - Лекови у ЗУ - секундарна и терцијарна ЗЗ
C24: 073 - Цитостатици са Листе лекова
C25: 074 - Лекови са Ц Листе лекова
C26: 075 - Лекови за хемофилију
C27: 076 - Крв и лабилни продукти од крви
C28: 077 - Уградни материјал у ортопедији
C29: 078 - Имплантати у ортопедији
C30: 079 - Уградни материјал у кардиохирургији
C31: 07V - Варијабилни део накнаде по основу ДСГ учинка и показатеља квалитета
C32: 080 - Дијализни материјал
C33: 081 - Пејсмејкери и електроде
C34: 082 - Стентови
C35: 083 - Графтови
C36: 084 - Остали уградни материјал
C37: 085 - Санитетски и медицински потрошни материјал - секундарна и терцијарна ЗЗ
C38: 086 - Реагенси - секундарна и терцијарна ЗЗ
C39: 920 - Лекови ван листе лекова за лечење ретких урођених болести метаболизма
C40: 922 - Трансплантација срца
C41: 925 - Механичка екстракција тромба
C42: 926 - Лекови ван листе лекова за лечење ретких тумора
C43: 927 - Лекови за лечење хередитарног ангиоедема
C44: 930 - Off label лекови
C45: 958 - Лекови ван листе лекова
C46: 961 - Трансплантације бубрега
C47: 962 - Трансплантације јетре
C48: 963 - Трансплантације костне сржи
C49: 980 - Ендоваскуларно лечење интракранијалних анеуризми
C50: 986 - Октреотид и ланреотид
C51: 994 - Перкутана вертебропластика
C52: Укупно: | D52: =+D12+D15+D17+D19 -> 0 | E52: =+E12+E15+E17+E19 -> 27536 | F52: =+F12+F15+F17+F19 -> 0

Sheet Asignacije
A1: РЕПУБЛИЧКИ ФОНД ЗА ЗДРАВСТВЕНО | F1: АС
A2: ОСИГУРАЊЕ - БЕОГРАД
A3: Јована Мариновића 2
B5: АСИГНАЦИЈЕ у периоду од 01.01.2025. - 31.12.2025. године
A7: ="ФИЛИЈАЛА: " & Filijala -> ФИЛИЈАЛА: 09 ВАЉЕВО
A8: ="ЗДРАВСТВЕНА УСТАНОВА: " & ZU -> ЗДРАВСТВЕНА УСТАНОВА: 100209001 ДЗ УБ
F9: у хиљадама (000) динара
B10: Р. бр. | C10: Конто | D10: ИЗНОС НЕРЕАЛИЗОВАНИХ ОБРАЧУНСКИХ НАЛОГА ЗАКЉУЧНО СА 31.12.2024. КОЈИ СУ РЕАЛИЗОВАНИ У ПЕРИОДУ 01.01.-31.12.2025. ГОДИНE | E10: ИЗНОС РЕАЛИЗОВАНИХ ОБРАЧУНСКИХ НАЛОГА У 2025. ГОДИНИ ЗА ПЕРИОД 01.01.-31.12.2025. ГОДИНЕ | F10: ИЗНОС НЕРЕАЛИЗОВАНИХ ОБРАЧУНСКИХ НАЛОГА У 2025. ГОДИНИ ЗАКЉУЧНО СА 31.12.2025. ГОДИНЕ
B11: 1 | C11: 2 | D11: 3 | E11: 4 | F11: 5
B12: 1 | C12: 012 - Лекови на рецепт
B13: 2 | C13: 013 - Помагала у апотекама
B14: 3 | C14: 020 - Амбулантно-поликлиничке услуге у РХ
B15: 4 | C15: 021 - Стационарна рехабилитација у РХ
B16: 5 | C16: 05E - Остали директни и индиректни трошкови - стоматолошка ЗЗ
B17: 6 | C17: 062 - Лекови у ЗУ - примарна ЗЗ
B18: 7 | C18: 064 - Санитетски и медицински потрошни материјал - примарна ЗЗ
B19: 8 | C19: 065 - Реагенси - примарна ЗЗ
B20: 9 | C20: 06C - Енергенти у ЗУ - примарна ЗЗ
B21: 10 | C21: 06E - Накнада за материјалне и остале трошкове - примарна ЗЗ
B22: 11 | C22: 071 - Лекови у ЗУ - секундарна и терцијарна ЗЗ
B23: 12 | C23: 073 - Цитостатици са Листе лекова
B24: 13 | C24: 076 - Крв и лабилни продукти од крви
B25: 14 | C25: 077 - Уградни материјал у ортопедији
B26: 15 | C26: 078 - Имплантати у ортопедији
B27: 16 | C27: 07C - Енергенти у ЗУ - секундарна и терцијарна ЗЗ
B28: 17 | C28: 07D - Исхрана болесника - секундарна и терцијарна ЗЗ
B29: 18 | C29: 07E - Накнада за материјалне и остале трошкове - секундарна и терцијарна ЗЗ
B30: 19 | C30: 07V-30 - Лекови у ЗУ - варијабилни
B31: 20 | C31: 07V-31 - Санитетски и медицински потрошни материјал - варијабини
B32: 21 | C32: 07V-32 - Енергенти - варијабилни
B33: 22 | C33: 07V-33 - Накнада за материјалне и остале трошкове - варијабилни
B34: 23 | C34: 07V-35 - Реагенси - варијабилни
B35: 24 | C35: 080 - Дијализни материјал
B36: 25 | C36: 084 - Остали уградни материјал
B37: 26 | C37: 085 - Санитетски и медицински потрошни материјал - секундарна и терцијарна ЗЗ
B38: 27 | C38: 086 - Реагенси - секундарна и терцијарна ЗЗ
B39: 28 | C39: 087 - Лекови ван Листе лекова - секундарна и терцијарна ЗЗ
B40: 29 | C40: 919 - Медицински гасови - примарна ЗЗ
B41: 30 | C41: 930 - Off label лекови
B42: 31 | C42: 931 - Медицински гасови - секундарна и терцијарна ЗЗ
B43: 32 | C43: 958 - Лекови ван листе лекова
B44: 33 | C44: 981 - Дијeтетски производи за оболеле од фенилкетонурије и гликогенозе
B45: 34 | C45: 986 - Октреотид и ланреотид
C46: Укупно: | D46: =SUM(D12:D45) -> 0 | E46: =SUM(E12:E45) -> 0 | F46: =SUM(F12:F45) -> 0

Sheet VP
A1: РЕПУБЛИЧКИ ФОНД ЗА ЗДРАВСТВЕНО | J1: ВП
A2: ОСИГУРАЊЕ - БЕОГРАД
A3: Јована Мариновића 2
A7: ="ФИЛИЈАЛА: " & Filijala -> ФИЛИЈАЛА: 09 ВАЉЕВО
A8: ="ЗДРАВСТВЕНА УСТАНОВА: " & ZU -> ЗДРАВСТВЕНА УСТАНОВА: 100209001 ДЗ УБ
A14: КОРИШЋЕНИ НЕРАСПОРЕЂЕНИ ВИШАК ПРИХОДА И ПРИМАЊА ИЗ РАНИЈИХ ГОДИНА
A15: у периоду од 01.01.2025. - 31.12.2025. године
A17: I НЕРАСПОРЕЂЕНИ ВИШАК ПРИХОДА И ПРИМАЊА ИЗ РАНИЈИХ ГОДИНА | J17: у хиљадама (000) динара
A18: Ознака ОП | B18: Број конта | C18: Опис | D18: НЕРАСПОРЕЂЕНИ ВИШАК ПРИХОДА И ПРИМАЊА ИЗ РАНИЈИХ ГОДИНА
D19: Укупно (од 5 до 10) | E19: Приходи и примања из буџета | I19: Из донација и помоћи | J19: Из осталих извора
E20: Републике | F20: Аутономне покрајине | G20: Општине / града | H20: ООСО
A21: 1 | B21: 2 | C21: 3 | D21: 4 | E21: 5 | F21: 6 | G21: 7 | H21: 8 | I21: 9 | J21: 10
C22: НЕРАСПОРЕЂЕНИ ВИШАК ПРИХОДА И ПРИМАЊА ИЗ РАНИЈИХ ГОДИНА | D22: =SUM(E22:J22) -> 1924 | H22: 861 | J22: 1063
A26: II ИЗВРШЕНИ РАСХОДИ И ИЗДАЦИ ИЗ НЕРАСПОРЕЂЕНОГ ВИШКА ПРИХОДА И ПРИМАЊА ИЗ РАНИЈИХ ГОДИНА | J26: у хиљадама (000) динара
A27: Ознака ОП | B27: Број конта | C27: Опис | D27: Износ извршених расхода и издатака
D28: Укупно (од 5 до 10) | E28: Расходи и издаци на терет буџета | I28: Из донација и помоћи | J28: Из осталих извора
E29: Републике | F29: Аутономне покрајине | G29: Општине / града | H29: ООСО
A30: 1 | B30: 2 | C30: 3 | D30: 4 | E30: 5 | F30: 6 | G30: 7 | H30: 8 | I30: 9 | J30: 10
A31: 5172 | C31: ТЕКУЋИ РАСХОДИ И ИЗДАЦИ ЗА НЕФИНАНСИЈСКЕ ИМОВИНЕ (5173 + 5341) | D31: =SUM(E31:J31) -> 1924 | E31: =E32+E200 -> 0 | F31: 0 | G31: 0 | H31: 861 | I31: 0 | J31: 1063
A32: 5173 | B32: 400000 | C32: ТЕКУЋИ РАСХОДИ (5174 + 5196 + 5241 + 5256 + 5280 + 5293 + 5309 + 5324) | D32: 1557 | E32: =E33+E55+E100+E115+E139+E152+E168+E183 -> 0 | F32: 0 | G32: 0 | H32: 861 | I32: 0 | J32: 696
A33: 5174 | B33: 410000 | C33: РАСХОДИ ЗА ЗАПОСЛЕНЕ (5175 + 5177 + 5181 + 5183 + 5188 + 5190 + 5192 + 5194) | D33: 0 | E33: =E34+E36+E40+E42+E47+E49+E51+E53 -> 0 | F33: 0 | G33: 0 | H33: 0 | I33: 0 | J33: 0
A34: 5175 | B34: 411000 | C34: ПЛАТЕ, ДОДАЦИ И НАКНАДЕ ЗАПОСЛЕНИХ (ЗАРАДЕ) (5176) | D34: 0 | E34: =E35 -> 0 | F34: 0 | G34: 0 | H34: 0 | I34: 0 | J34: 0
A35: 5176 | B35: 411100 | C35: Плате, додаци и накнаде запослених | D35: 0
A36: 5177 | B36: 412000 | C36: СОЦИЈАЛНИ ДОПРИНОСИ НА ТЕРЕТ ПОСЛОДАВЦА (од 5178 до 5180) | D36: 0 | E36: =SUM(E37:E39) -> 0 | F36: 0 | G36: 0 | H36: 0 | I36: 0 | J36: 0
A37: 5178 | B37: 412100 | C37: Допринос за пензијско и инвалидско осигурање | D37: 0
A38: 5179 | B38: 412200 | C38: Допринос за здравствено осигурање | D38: 0
A39: 5180 | B39: 412300 | C39: Допринос за незапосленост | D39: 0
A40: 5181 | B40: 413000 | C40: НАКНАДЕ У НАТУРИ (5182) | D40: 0 | E40: =E41 -> 0 | F40: 0 | G40: 0 | H40: 0 | I40: 0 | J40: 0
A41: 5182 | B41: 413100 | C41: Накнаде у натури | D41: 0
A42: 5183 | B42: 414000 | C42: СОЦИЈАЛНА ДАВАЊА ЗАПОСЛЕНИМА (од 5184 до 5187) | D42: 0 | E42: =SUM(E43:E46) -> 0 | F42: 0 | G42: 0 | H42: 0 | I42: 0 | J42: 0
A43: 5184 | B43: 414100 | C43: Исплата накнада за време одсуствовања с посла на терет фондова | D43: 0
A44: 5185 | B44: 414200 | C44: Расходи за образовање деце запослених | D44: 0
A45: 5186 | B45: 414300 | C45: Отпремнине и помоћи | D45: 0
A46: 5187 | B46: 414400 | C46: Помоћ у медицинском лечењу запосленог или чланова уже породице и друге помоћи запосленом | D46: 0
A47: 5188 | B47: 415000 | C47: НАКНАДА ТРОШКОВА ЗА ЗАПОСЛЕНЕ (5189) | D47: 0 | E47: =E48 -> 0 | F47: 0 | G47: 0 | H47: 0 | I47: 0 | J47: 0
A48: 5189 | B48: 415100 | C48: Накнаде трошкова за запослене | D48: 0
A49: 5190 | B49: 416000 | C49: НАГРАДЕ ЗАПОСЛЕНИМА И ОСТАЛИ ПОСЕБНИ РАСХОДИ (5191) | D49: 0 | E49: =E50 -> 0 | F49: 0 | G49: 0 | H49: 0 | I49: 0 | J49: 0
A50: 5191 | B50: 416100 | C50: Награде запосленима и остали посебни расходи | D50: 0
A51: 5192 | B51: 417000 | C51: ПОСЛАНИЧКИ ДОДАТАК (5193) | D51: 0 | E51: =E52 -> 0 | F51: 0 | G51: 0 | H51: 0 | I51: 0 | J51: 0
A52: 5193 | B52: 417100 | C52: Посланички додатак | D52: 0
A53: 5194 | B53: 418000 | C53: СУДИЈСКИ ДОДАТАК (5195) | D53: 0 | E53: =E54 -> 0 | F53: 0 | G53: 0 | H53: 0 | I53: 0 | J53: 0
A54: 5195 | B54: 418100 | C54: Судијски додатак | D54: 0
A55: 5196 | B55: 420000 | C55: КОРИШЋЕЊЕ УСЛУГА И РОБА (5197 + 5205 + 5211 + 5220 + 5228 + 5231) | D55: 1421 | E55: =E56+E64+E70+E79+E87+E90 -> 0 | F55: 0 | G55: 0 | H55: 725 | I55: 0 | J55: 696
A56: 5197 | B56: 421000 | C56: СТАЛНИ ТРОШКОВИ (од 5198 до 5204) | D56: 619 | E56: =SUM(E57:E63) -> 0 | F56: 0 | G56: 0 | H56: 349 | I56: 0 | J56: 270
A57: 5198 | B57: 421100 | C57: Трошкови платног промета и банкарских услуга | D57: 1 | H57: 1
A58: 5199 | B58: 421200 | C58: Енергетске услуге | D58: 348 | H58: 348
A59: 5200 | B59: 421300 | C59: Комуналне услуге | D59: 270 | J59: 270
A60: 5201 | B60: 421400 | C60: Услуге комуникација | D60: 0
A61: 5202 | B61: 421500 | C61: Трошкови осигурања | D61: 0
A62: 5203 | B62: 421600 | C62: Закуп имовине и опреме | D62: 0
A63: 5204 | B63: 421900 | C63: Остали трошкови | D63: 0
A64: 5205 | B64: 422000 | C64: ТРОШКОВИ ПУТОВАЊА (од 5206 до 5210) | D64: 0 | E64: =SUM(E65:E69) -> 0 | F64: 0 | G64: 0 | H64: 0 | I64: 0 | J64: 0
A65: 5206 | B65: 422100 | C65: Трошкови службених путовања у земљи | D65: 0
A66: 5207 | B66: 422200 | C66: Трошкови службених путовања у иностранство | D66: 0
A67: 5208 | B67: 422300 | C67: Трошкови путовања у оквиру редовног рада | D67: 0
A68: 5209 | B68: 422400 | C68: Трошкови путовања ученика | D68: 0
A69: 5210 | B69: 422900 | C69: Остали трошкови транспорта | D69: 0
A70: 5211 | B70: 423000 | C70: УСЛУГЕ ПО УГОВОРУ (од 5212 до 5219) | D70: 28 | E70: =SUM(E71:E78) -> 0 | F70: 0 | G70: 0 | H70: 0 | I70: 0 | J70: 28
A71: 5212 | B71: 423100 | C71: Административне услуге | D71: 0
A72: 5213 | B72: 423200 | C72: Компјутерске услуге | D72: 28 | J72: 28
A73: 5214 | B73: 423300 | C73: Услуге образовања и усавршавања запослених | D73: 0
A74: 5215 | B74: 423400 | C74: Услуге информисања | D74: 0
A75: 5216 | B75: 423500 | C75: Стручне услуге | D75: 0
A76: 5217 | B76: 423600 | C76: Услуге за домаћинство и угоститељство | D76: 0
A77: 5218 | B77: 423700 | C77: Репрезентација | D77: 0
A78: 5219 | B78: 423900 | C78: Остале опште услуге | D78: 0
A79: 5220 | B79: 424000 | C79: СПЕЦИЈАЛИЗОВАНЕ УСЛУГЕ (од 5221 до 5227) | D79: 0 | E79: =SUM(E80:E86) -> 0 | F79: 0 | G79: 0 | H79: 0 | I79: 0 | J79: 0
A80: 5221 | B80: 424100 | C80: Пољопривредне услуге | D80: 0
A81: 5222 | B81: 424200 | C81: Услуге образовања, културе и спорта | D81: 0
A82: 5223 | B82: 424300 | C82: Медицинске услуге | D82: 0
A83: 5224 | B83: 424400 | C83: Услуге одржавања аутопутева | D83: 0
A84: 5225 | B84: 424500 | C84: Услуге одржавања националних паркова и природних површина | D84: 0
A85: 5226 | B85: 424600 | C85: Услуге очувања животне средине, науке и геодетске услуге | D85: 0
A86: 5227 | B86: 424900 | C86: Остале специјализоване услуге | D86: 0
A87: 5228 | B87: 425000 | C87: ТЕКУЋЕ ПОПРАВКЕ И ОДРЖАВАЊЕ (5229 + 5230) | D87: 12 | E87: =E88+E89 -> 0 | F87: 0 | G87: 0 | H87: 12 | I87: 0 | J87: 0
A88: 5229 | B88: 425100 | C88: Текуће поправке и одржавање зграда и објеката | D88: 0
A89: 5230 | B89: 425200 | C89: Текуће поправке и одржавање опреме | D89: 12 | H89: 12
A90: 5231 | B90: 426000 | C90: МАТЕРИЈАЛ (од 5232 до 5240) | D90: 762 | E90: =SUM(E91:E99) -> 0 | F90: 0 | G90: 0 | H90: 364 | I90: 0 | J90: 398
A91: 5232 | B91: 426100 | C91: Административни материјал | D91: 0
A92: 5233 | B92: 426200 | C92: Материјали за пољопривреду | D92: 0
A93: 5234 | B93: 426300 | C93: Материјали за образовање и усавршавање запослених | D93: 0
A94: 5235 | B94: 426400 | C94: Материјали за саобраћај | D94: 566 | H94: 350 | J94: 216
A95: 5236 | B95: 426500 | C95: Материјали за очување животне средине и науку | D95: =SUM(E95:J95) -> 0
A96: 5237 | B96: 426600 | C96: Материјали за образовање, културу и спорт | D96: 0
A97: 5238 | B97: 426700 | C97: Медицински и лабораторијски материјали | D97: 8 | H97: 8
A98: 5239 | B98: 426800 | C98: Материјали за одржавање хигијене и угоститељство | D98: 182 | J98: 182
A99: 5240 | B99: 426900 | C99: Материјали за посебне намене | D99: 6 | H99: 6
A100: 5241 | B100: 430000 | C100: АМОРТИЗАЦИЈА И УПОТРЕБА СРЕДСТАВА ЗА РАД (5242 + 5246 + 5248 + 5250 + 5254) | D100: 0 | E100: =E101+E105+E107+E109+E113 -> 0 | F100: 0 | G100: 0 | H100: 0 | I100: 0 | J100: 0
A101: 5242 | B101: 431000 | C101: АМОРТИЗАЦИЈА НЕКРЕТНИНА И ОПРЕМЕ (од 5243 до 5245) | D101: 0 | E101: =SUM(E102:E104) -> 0 | F101: 0 | G101: 0 | H101: 0 | I101: 0 | J101: 0
A102: 5243 | B102: 431100 | C102: Амортизација зграда и грађевинскиx објеката | D102: 0
A103: 5244 | B103: 431200 | C103: Амортизација опреме | D103: 0
A104: 5245 | B104: 431300 | C104: Амортизација осталих некретнина и опреме | D104: 0
A105: 5246 | B105: 432000 | C105: АМОРТИЗАЦИЈА КУЛТИВИСАНЕ ИМОВИНЕ (5247) | D105: 0 | E105: =E106 -> 0 | F105: 0 | G105: 0 | H105: 0 | I105: 0 | J105: 0
A106: 5247 | B106: 432100 | C106: Амортизација култивисане опреме | D106: 0
A107: 5248 | B107: 433000 | C107: УПОТРЕБА ДРАГОЦЕНОСТИ (5249) | D107: 0 | E107: =E108 -> 0 | F107: 0 | G107: 0 | H107: 0 | I107: 0 | J107: 0
A108: 5249 | B108: 433100 | C108: Употреба драгоцености | D108: 0
A109: 5250 | B109: 434000 | C109: УПОТРЕБА ПРИРОДНЕ ИМОВИНЕ (од 5251 до 5253) | D109: 0 | E109: =SUM(E110:E112) -> 0 | F109: 0 | G109: 0 | H109: 0 | I109: 0 | J109: 0
A110: 5251 | B110: 434100 | C110: Употреба земљишта | D110: 0
A111: 5252 | B111: 434200 | C111: Употреба подземног блага | D111: 0
A112: 5253 | B112: 434300 | C112: Употреба шума и вода | D112: 0
A113: 5254 | B113: 435000 | C113: АМОРТИЗАЦИЈА НЕМАТЕРИЈАЛНЕ ИМОВИНЕ (5255) | D113: 0 | E113: =E114 -> 0 | F113: 0 | G113: 0 | H113: 0 | I113: 0 | J113: 0
A114: 5255 | B114: 435100 | C114: Амортизација нематеријалне имовине | D114: 0
A115: 5256 | B115: 440000 | C115: ОТПЛАТА КАМАТА И ПРАТЕЋИ ТРОШКОВИ ЗАДУЖИВАЊА (5257 + 5267 + 5274 + 5276) | D115: 0 | E115: =E116+E126+E133+E135 -> 0 | F115: 0 | G115: 0 | H115: 0 | I115: 0 | J115: 0
A116: 5257 | B116: 441000 | C116: ОТПЛАТЕ ДОМАЋИХ КАМАТА (од 5258 до 5266) | D116: 0 | E116: =SUM(E117:E125) -> 0 | F116: 0 | G116: 0 | H116: 0 | I116: 0 | J116: 0
A117: 5258 | B117: 441100 | C117: Отплата камата на домаће хартије од вредности | D117: 0
A118: 5259 | B118: 441200 | C118: Отплата камата осталим нивоима власти | D118: 0
A119: 5260 | B119: 441300 | C119: Отплата камата домаћим јавним финансијским институцијама | D119: 0
A120: 5261 | B120: 441400 | C120: Отплата камата домаћим пословним банкама | D120: 0
A121: 5262 | B121: 441500 | C121: Отплата камата осталим домаћим кредиторима | D121: 0
A122: 5263 | B122: 441600 | C122: Отплата камата домаћинствима у земљи | D122: 0
A123: 5264 | B123: 441700 | C123: Отплата камата на домаће финансијске деривате | D123: 0
A124: 5265 | B124: 441800 | C124: Отплата камата на домаће менице | D124: 0
A125: 5266 | B125: 441900 | C125: Финансијске промене на финансијским лизинзима | D125: 0
A126: 5267 | B126: 442000 | C126: ОТПЛАТА СТРАНИХ КАМАТА (од 5268 до 5273) | D126: 0 | E126: =SUM(E127:E132) -> 0 | F126: 0 | G126: 0 | H126: 0 | I126: 0 | J126: 0
A127: 5268 | B127: 442100 | C127: Отплата камата на хартије од вредности емитоване на иностраном финансијском тржишту | D127: 0
A128: 5269 | B128: 442200 | C128: Отплата камата страним владама | D128: 0
A129: 5270 | B129: 442300 | C129: Отплата камата мултилатералним институцијама | D129: 0
A130: 5271 | B130: 442400 | C130: Отплата камата страним пословним банкама | D130: 0
A131: 5272 | B131: 442500 | C131: Отплата камата осталим страним кредиторима | D131: 0
A132: 5273 | B132: 442600 | C132: Отплата камата на стране финансијске деривате | D132: 0
A133: 5274 | B133: 443000 | C133: ОТПЛАТА КАМАТА ПО ГАРАНЦИЈАМА (5275) | D133: 0 | E133: =E134 -> 0 | F133: 0 | G133: 0 | H133: 0 | I133: 0 | J133: 0
A134: 5275 | B134: 443100 | C134: Отплата камата по гаранцијама | D134: 0
A135: 5276 | B135: 444000 | C135: ПРАТЕЋИ ТРОШКОВИ ЗАДУЖИВАЊА (од 5277 до 5279) | D135: 0 | E135: =SUM(E136:E138) -> 0 | F135: 0 | G135: 0 | H135: 0 | I135: 0 | J135: 0
A136: 5277 | B136: 444100 | C136: Негативне курсне разлике | D136: 0
A137: 5278 | B137: 444200 | C137: Казне за кашњење | D137: 0
A138: 5279 | B138: 444300 | C138: Остали пратећи трошкови задуживања | D138: 0
A139: 5280 | B139: 450000 | C139: СУБВЕНЦИЈЕ (5281 + 5284 + 5287 + 5290) | D139: 0 | E139: =E140+E143+E146+E149 -> 0 | F139: 0 | G139: 0 | H139: 0 | I139: 0 | J139: 0
A140: 5281 | B140: 451000 | C140: СУБВЕНЦИЈЕ ЈАВНИМ НЕФИНАНСИЈСКИМ ПРЕДУЗЕЋИМА И ОРГАНИЗАЦИЈАМА (5282 + 5283) | D140: 0 | E140: =E141+E142 -> 0 | F140: 0 | G140: 0 | H140: 0 | I140: 0 | J140: 0
A141: 5282 | B141: 451100 | C141: Текуће субвенције јавним нефинансијским предузећима и организацијама | D141: 0
A142: 5283 | B142: 451200 | C142: Капиталне субвенције јавним нефинансијским предузећима и организацијама | D142: 0
A143: 5284 | B143: 452000 | C143: СУБВЕНЦИЈЕ ПРИВАТНИМ ФИНАНСИЈСКИМ ИНСТИТУЦИЈАМА (5285 + 5286) | D143: 0 | E143: =E144+E145 -> 0 | F143: 0 | G143: 0 | H143: 0 | I143: 0 | J143: 0
A144: 5285 | B144: 452100 | C144: Текуће субвенције приватним финансијским институцијама | D144: 0
A145: 5286 | B145: 452200 | C145: Капиталне субвенције приватним финансијским институцијама | D145: 0
A146: 5287 | B146: 453000 | C146: СУБВЕНЦИЈЕ ЈАВНИМ ФИНАНСИЈСКИМ ИНСТИТУЦИЈАМА (5288 + 5289) | D146: 0 | E146: =E147+E148 -> 0 | F146: 0 | G146: 0 | H146: 0 | I146: 0 | J146: 0
A147: 5288 | B147: 453100 | C147: Текуће субвенције јавним финансијским институцијама | D147: 0
A148: 5289 | B148: 453200 | C148: Капиталне субвенције јавним финансијским институцијама | D148: 0
A149: 5290 | B149: 454000 | C149: СУБВЕНЦИЈЕ ПРИВАТНИМ ПРЕДУЗЕЋИМА (5291 + 5292) | D149: 0 | E149: =E150+E151 -> 0 | F149: 0 | G149: 0 | H149: 0 | I149: 0 | J149: 0
A150: 5291 | B150: 454100 | C150: Текуће субвенције приватним предузећима | D150: 0
A151: 5292 | B151: 454200 | C151: Капиталне субвенције приватним предузећима | D151: 0
A152: 5293 | B152: 460000 | C152: ДОНАЦИЈЕ, ДОТАЦИЈЕ И ТРАНСФЕРИ (5294 + 5297 + 5300 + 5303 + 5306) | D152: 136 | E152: =E153+E156+E159+E162+E165 -> 0 | F152: 0 | G152: 0 | H152: 136 | I152: 0 | J152: 0
A153: 5294 | B153: 461000 | C153: ДОНАЦИЈЕ СТРАНИМ ВЛАДАМА (5295 + 5296) | D153: 0 | E153: =E154+E155 -> 0 | F153: 0 | G153: 0 | H153: 0 | I153: 0 | J153: 0
A154: 5295 | B154: 461100 | C154: Текуће донације страним владама | D154: 0
A155: 5296 | B155: 461200 | C155: Капиталне донације страним владама | D155: 0
A156: 5297 | B156: 462000 | C156: ДОТАЦИЈЕ МЕЂУНАРОДНИМ ОРГАНИЗАЦИЈАМА (5298 + 5299) | D156: 0 | E156: =E157+E158 -> 0 | F156: 0 | G156: 0 | H156: 0 | I156: 0 | J156: 0
A157: 5298 | B157: 462100 | C157: Текуће дотације међународним организацијама | D157: 0
A158: 5299 | B158: 462200 | C158: Капиталне дотације међународним организацијама | D158: 0
A159: 5300 | B159: 463000 | C159: ТРАНСФЕРИ ОСТАЛИМ НИВОИМА ВЛАСТИ (5301 + 5302) | D159: =SUM(E159:J159) -> 0 | E159: =E160+E161 -> 0 | F159: 0 | G159: 0 | H159: 0 | I159: 0 | J159: 0
A160: 5301 | B160: 463100 | C160: Текући трансфери осталим нивоима власти | D160: 0
A161: 5302 | B161: 463200 | C161: Капитални трансфери осталим нивоима власти | D161: 0
A162: 5303 | B162: 464000 | C162: ДОТАЦИЈЕ ОРГАНИЗАЦИЈАМА ОБАВЕЗНОГ СОЦИЈАЛНОГ ОСИГУРАЊА (5304 + 5305) | D162: 0 | E162: =E163+E164 -> 0 | F162: 0 | G162: 0 | H162: 0 | I162: 0 | J162: 0
A163: 5304 | B163: 464100 | C163: Текуће дотације организацијама обавезног социјалног осигурања | D163: 0
A164: 5305 | B164: 464200 | C164: Капиталне дотације организацијама обавезног социјалног осигурања | D164: 0
A165: 5306 | B165: 465000 | C165: ОСТАЛЕ ДОТАЦИЈЕ И ТРАНСФЕРИ (5307 + 5308) | D165: 136 | E165: =E166+E167 -> 0 | F165: 0 | G165: 0 | H165: 136 | I165: 0 | J165: 0
A166: 5307 | B166: 465100 | C166: Остале текуће дотације и трансфери | D166: 136 | H166: 136
A167: 5308 | B167: 465200 | C167: Остале капиталне дотације и трансфери | D167: 0
A168: 5309 | B168: 470000 | C168: СОЦИЈАЛНО ОСИГУРАЊЕ И СОЦИЈАЛНА ЗАШТИТА (5310 + 5314) | D168: 0 | E168: =E169+E173 -> 0 | F168: 0 | G168: 0 | H168: 0 | I168: 0 | J168: 0
A169: 5310 | B169: 471000 | C169: ПРАВА ИЗ СОЦИЈАЛНОГ ОСИГУРАЊА (ОРГАНИЗАЦИЈЕ ОБАВЕЗНОГ СОЦИЈАЛНОГ ОСИГУРАЊА) (од 5311 до 5313) | D169: 0 | E169: =SUM(E170:E172) -> 0 | F169: 0 | G169: 0 | H169: 0 | I169: 0 | J169: 0
A170: 5311 | B170: 471100 | C170: Права из социјалног осигурања која се исплаћују непосредно домаћинствима | D170: 0
A171: 5312 | B171: 471200 | C171: Права из социјалног осигурања која се исплаћују непосредно пружаоцима услуга | D171: 0
A172: 5313 | B172: 471900 | C172: Трансфери другим организацијама обавезног социјалног осигурања за доприносе за осигурање | D172: 0
A173: 5314 | B173: 472000 | C173: НАКНАДЕ ЗА СОЦИЈАЛНУ ЗАШТИТУ ИЗ БУЏЕТА (од 5315 до 5323) | D173: 0 | E173: =SUM(E174:E182) -> 0 | F173: 0 | G173: 0 | H173: 0 | I173: 0 | J173: 0
A174: 5315 | B174: 472100 | C174: Накнаде из буџета у случају болести и инвалидности | D174: 0
A175: 5316 | B175: 472200 | C175: Накнаде из буџета за породиљско одсуство | D175: 0
A176: 5317 | B176: 472300 | C176: Накнаде из буџета за децу и породицу | D176: 0
A177: 5318 | B177: 472400 | C177: Накнаде из буџета за случај незапослености | D177: 0
A178: 5319 | B178: 472500 | C178: Старосне и породичне пензије из буџета | D178: 0
A179: 5320 | B179: 472600 | C179: Накнаде из буџета у случају смрти | D179: 0
A180: 5321 | B180: 472700 | C180: Накнаде из буџета за образовање, културу, науку и спорт | D180: 0
A181: 5322 | B181: 472800 | C181: Накнаде из буџета за становање и живот | D181: 0
A182: 5323 | B182: 472900 | C182: Остале накнаде из буџета | D182: 0
A183: 5324 | B183: 480000 | C183: ОСТАЛИ РАСХОДИ (5325 + 5328 + 5332 + 5334 + 5337 + 5339) | D183: 0 | E183: =E184+E187+E191+E193+E196+E198 -> 0 | F183: 0 | G183: 0 | H183: 0 | I183: 0 | J183: 0
A184: 5325 | B184: 481000 | C184: ДОТАЦИЈЕ НЕВЛАДИНИМ ОРГАНИЗАЦИЈАМА (5326 + 5327) | D184: 0 | E184: =E185+E186 -> 0 | F184: 0 | G184: 0 | H184: 0 | I184: 0 | J184: 0
A185: 5326 | B185: 481100 | C185: Дотације непрофитним организацијама које пружају помоћ домаћинствима | D185: 0
A186: 5327 | B186: 481900 | C186: Дотације осталим непрофитним институцијама | D186: 0
A187: 5328 | B187: 482000 | C187: ПОРЕЗИ, ОБАВЕЗНЕ ТАКСЕ, КАЗНЕ, ПЕНАЛИ И КАМАТЕ (од 5329 до 5331) | D187: 0 | E187: =SUM(E188:E190) -> 0 | F187: 0 | G187: 0 | H187: 0 | I187: 0 | J187: 0
A188: 5329 | B188: 482100 | C188: Остали порези | D188: 0
A189: 5330 | B189: 482200 | C189: Обавезне таксе | D189: 0
A190: 5331 | B190: 482300 | C190: Новчане казне, пенали и камате | D190: 0
A191: 5332 | B191: 483000 | C191: НОВЧАНЕ КАЗНЕ И ПЕНАЛИ ПО РЕШЕЊУ СУДОВА (5333) | D191: 0 | E191: =E192 -> 0 | F191: 0 | G191: 0 | H191: 0 | I191: 0 | J191: 0
A192: 5333 | B192: 483100 | C192: Новчане казне и пенали по решењу судова | D192: 0
A193: 5334 | B193: 484000 | C193: НАКНАДА ШТЕТЕ ЗА ПОВРЕДЕ ИЛИ ШТЕТУ НАСТАЛУ УСЛЕД ЕЛЕМЕНТАРНИХ НЕПОГОДА ИЛИ ДРУГИХ ПРИРОДНИХ УЗРОКА (5335 + 5336) | D193: 0 | E193: =E194+E195 -> 0 | F193: 0 | G193: 0 | H193: 0 | I193: 0 | J193: 0
A194: 5335 | B194: 484100 | C194: Накнада штете за повреде или штету насталу услед елементарних непогода | D194: 0
A195: 5336 | B195: 484200 | C195: Накнада штете од дивљачи | D195: 0
A196: 5337 | B196: 485000 | C196: НАКНАДА ШТЕТЕ ЗА ПОВРЕДЕ ИЛИ ШТЕТУ НАНЕТУ ОД СТРАНЕ ДРЖАВНИХ ОРГАНА (5338) | D196: 0 | E196: =E197 -> 0 | F196: 0 | G196: 0 | H196: 0 | I196: 0 | J196: 0
A197: 5338 | B197: 485100 | C197: Накнада штете за повреде или штету нанетих од стране државних органа | D197: 0
A198: 5339 | B198: 489000 | C198: РАСХОДИ КОЈИ СЕ ФИНАНСИРАЈУ ИЗ СРЕДСТАВА ЗА РЕАЛИЗАЦИЈУ НАЦИОНАЛНОГ ИНВЕСТИЦИОНОГ ПЛАНА (5340) | D198: 0 | E198: =E199 -> 0 | F198: 0 | G198: 0 | H198: 0 | I198: 0 | J198: 0
A199: 5340 | B199: 489100 | C199: Расходи који се финансирају из средстава за реализацију националног инвестиционог плана | D199: 0
A200: 5341 | B200: 500000 | C200: ИЗДАЦИ ЗА НЕФИНАНСИЈСКУ ИМОВИНУ (5342 + 5364 + 5373 + 5376 + 5384) | D200: 367 | E200: =E201+E223+E232+E235+E243 -> 0 | F200: 0 | G200: 0 | H200: 0 | I200: 0 | J200: 367
A201: 5342 | B201: 510000 | C201: ОСНОВНА СРЕДСТВА (5343 + 5348 + 5358 + 5360 + 5362) | D201: 367 | E201: =E202+E207+E217+E219+E221 -> 0 | F201: 0 | G201: 0 | H201: 0 | I201: 0 | J201: 367
A202: 5343 | B202: 511000 | C202: ЗГРАДЕ И ГРАЂЕВИНСКИ ОБЈЕКТИ (од 5344 до 5347) | D202: 0 | E202: =SUM(E203:E206) -> 0 | F202: 0 | G202: 0 | H202: 0 | I202: 0 | J202: 0
A203: 5344 | B203: 511100 | C203: Куповина зграда и објеката | D203: 0
A204: 5345 | B204: 511200 | C204: Изградња зграда и објеката | D204: 0
A205: 5346 | B205: 511300 | C205: Капитално одржавање зграда и објеката | D205: 0
A206: 5347 | B206: 511400 | C206: Пројектно планирање | D206: 0
A207: 5348 | B207: 512000 | C207: МАШИНЕ И ОПРЕМА (од 5349 до 5357) | D207: 87 | E207: =SUM(E208:E216) -> 0 | F207: 0 | G207: 0 | H207: 0 | I207: 0 | J207: 87
A208: 5349 | B208: 512100 | C208: Опрема за саобраћај | D208: 0
A209: 5350 | B209: 512200 | C209: Административна опрема | D209: 87 | J209: 87
A210: 5351 | B210: 512300 | C210: Опрема за пољопривреду | D210: 0
A211: 5352 | B211: 512400 | C211: Опрема за заштиту животне средине | D211: 0
A212: 5353 | B212: 512500 | C212: Медицинска и лабораторијска опрема | D212: 0
... 85 more rows

Sheet KontrolaF
A1: Matični broj | B1: Naziv ustanove | C1: R.Br. | G1: Odstupanja
A2: =MaticniBroj -> 17211692 | B2: =NazivKorisnika -> Дом здравља Уб | E2: 1 | G2: u 000 decimal | H2: u 000 din
E3: u decimal din | F3: u 000 din
C4: 2 | D4: 4712 iz CB ---> | F4: =ROUND(E4/1000,5) -> 0
C6: 3 | D6: 7811 iz OZPR | E6: ---> | F6: =OZPR!J31 -> 724
C8: 4 | D8: ZBIR = 2 + 3 | F8: =F4+F6 -> 724
C10: 5 | D10: 781100 iz obrasca 5 | E10: ---> | F10: =ObrazacIB!I138 -> 394157
C12: 6 | D12: RAZLIKA = 4 - 5 | G12: =F8-F10 -> -393433 | H12: =G12 -> -393433
C14: 7 | D14: PRERAČUNATI PDV | E14: --->
C16: 8 | D16: PDV iz participacije | E16: ---> | F16: =OZPR!E31*0.1 -> 0
C18: 9 | D18: ZBIR = 7 + 8 | F18: =F14+F16 -> 0
C20: 10 | D20: PDV iz K9 | E20: ---> | F20: =K9OOSO!E22 -> 0
C22: 11 | D22: Odstupanje = 9 - 10 | G22: =F18-F20 -> 0 | H22: =Odstupanje_1 -> 0
C24: 12 | D24: Asignacije | E24: ---> | F24: 0
C26: 13 | D26: Realizovane asignacije iz prethodne godine | E26: ---> | F26: 0
C28: 14 | D28: Obrazloženo odstupanje | E28: ---> | F28: 0
C30: 15 | D30: Konačno odstupanje = 11 - 12 - 13 - 14 | G30: =H22-F24-F26-F28 -> 0 | H30: =G30 -> 0

Sheet Kontrola
A1: Logicka Kontrola
A3: Nema gresaka!!!!!
A4: Kraj kontrole
